Workbook

Sheet 货运企业6月报
A1: 单位管理机构行政区划代码 | B1: 企业代码 | C1: 企业名称 | D1: 时期 | E1: 车辆数_总计 | F1: 标记吨位数_总计 | G1: 车辆数_牵引车 | H1: 车辆数_挂车 | I1: 标记吨位数_挂车 | J1: 车辆数_集装箱车 | K1: 标记吨位数_集装箱车 | L1: 货运量_总计 | M1: 货物周转量_总计 | N1: 货运量_集装箱 | O1: 货运量_煤炭及制品 | P1: 货运量_石油、天然气及制品（吨） | Q1: 货运量_其中：原油（吨） | R1: 货运量_金属矿石 | S1: 货运量_其中：铁矿石（吨） | T1: 货运量_矿物性建筑材料（吨） | U1: 货运量_粮食（吨）
A2: 江岸区(420102) | B2: 91420102059197370X | C2: 武汉吉祥顺泰物流有限公司 | D2: 2026年6月 | E2: 140 | F2: 1,548.00 | G2: 18 | H2: 14 | I2: 461 | J2: - | K2: - | L2: 148,855.00 | M2: 26,450,877.00 | N2: - | O2: - | P2: - | Q2: - | R2: - | S2: - | T2: - | U2: -
A3: 江岸区(420102) | B3: 91420102303632750F | C3: 武汉百世顺通汽车服务有限公司 | D3: 2026年6月 | E3: 63 | F3: 666 | G3: 9 | H3: 3 | I3: 101 | J3: - | K3: - | L3: 55,675.00 | M3: 10,115,045.00 | N3: - | O3: - | P3: - | Q3: - | R3: - | S3: - | T3: - | U3: -
A4: 江岸区(420102) | B4: 91420102551985045Y | C4: 武汉奥博华泰汽车运输服务有限公司 | D4: 2026年6月 | E4: 64 | F4: 757.6 | G4: 6 | H4: 4 | I4: 131.8 | J4: - | K4: - | L4: 49,052.00 | M4: 9,876,045.00 | N4: - | O4: - | P4: 49,052.00 | Q4: - | R4: - | S4: - | T4: - | U4: -
A5: 江岸区(420102) | B5: 91420102558422798F | C5: 湖北金叶储运有限公司 | D5: 2026年6月 | E5: 104 | F5: 1,478.00 | G5: 30 | H5: 29 | I5: 933 | J5: 16 | K5: 481 | L5: 11,950.00 | M5: 12,108,009.00 | N5: 3,109.00 | O5: - | P5: - | Q5: - | R5: - | S5: - | T5: - | U5: -
A6: 江岸区(420102) | B6: 91420102714579034N | C6: 武汉瑞达运输有限公司 | D6: 2026年6月 | E6: 58 | F6: 983 | G6: 27 | H6: 31 | I6: 983 | J6: 11 | K6: 348.7 | L6: 48,850.00 | M6: 13,386,021.00 | N6: 26,570.00 | O6: - | P6: - | Q6: - | R6: - | S6: - | T6: - | U6: -
A7: 江岸区(420102) | B7: 914201027414151153 | C7: 武汉市兴荣汽车运输有限公司 | D7: 2026年6月 | E7: 162 | F7: 1,765.00 | G7: 25 | H7: 27 | I7: 801 | J7: - | K7: - | L7: 105,885.00 | M7: 28,275,680.00 | N7: - | O7: - | P7: 105,885.00 | Q7: - | R7: - | S7: - | T7: - | U7: -
A8: 江岸区(420102) | B8: 91420102MA4F0BY63L | C8: 武汉市鑫鸿乐物流有限公司 | D8: 2026年6月 | E8: 180 | F8: 2,020.00 | G8: 12 | H8: 5 | I8: 163 | J8: - | K8: - | L8: 178,865.00 | M8: 33,175,069.00 | N8: - | O8: - | P8: - | Q8: - | R8: - | S8: - | T8: - | U8: -
A9: 江岸区(420102) | B9: 91420102MA4KXHRF3P | C9: 武汉市鸿乐物流有限公司 | D9: 2026年6月 | E9: 147 | F9: 1,536.00 | G9: 28 | H9: 13 | I9: 423 | J9: - | K9: - | L9: 159,025.00 | M9: 27,184,038.00 | N9: - | O9: - | P9: - | Q9: - | R9: - | S9: - | T9: - | U9: -
A10: 江汉区(420103) | B10: 914200001776095247 | C10: 湖北捷龙交通运业有限公司 | D10: 2026年6月 | E10: 50 | F10: 601.2 | G10: 8 | H10: 0 | I10: 0 | J10: 0 | K10: 0 | L10: 81,796.00 | M10: 1,472,335.00 | N10: - | O10: - | P10: - | Q10: - | R10: - | S10: - | T10: 81,796.00 | U10: -
A11: 江汉区(420103) | B11: 914201037375487912 | C11: 武汉龙林运贸有限责任公司 | D11: 2026年6月 | E11: 62 | F11: 829.5 | G11: 29 | H11: 20 | I11: 665.1 | J11: 0 | K11: 0 | L11: 74,704.00 | M11: 8,114,818.00 | N11: - | O11: - | P11: - | Q11: - | R11: - | S11: - | T11: 74,704.00 | U11: -
A12: 江汉区(420103) | B12: 91420103774589410H | C12: 武汉市荣欣物流有限公司 | D12: 2026年6月 | E12: 234 | F12: 5,056.10 | G12: 51 | H12: 156 | I12: 4,800.80 | J12: 135 | K12: 4,177.60 | L12: 40,923.00 | M12: 45,074,396.00 | N12: 35,711.00 | O12: - | P12: - | Q12: - | R12: - | S12: - | T12: - | U12: -
A13: 江汉区(420103) | B13: 91420103792439969D | C13: 武汉昆仑物流有限公司 | D13: 2026年6月 | E13: 114 | F13: 2,236.10 | G13: 43 | H13: 68 | I13: 2,216.10 | J13: 45 | K13: 1,463.40 | L13: 158,100.00 | M13: 9,918,660.00 | N13: 150,630.00 | O13: - | P13: - | Q13: - | R13: - | S13: - | T13: - | U13: -
A14: 硚口区(420104) | B14: 91420104578263253H | C14: 武汉华通达物流有限公司 | D14: 2026年6月 | E14: 57 | F14: 975.1 | G14: 28 | H14: 29 | I14: 975.1 | J14: - | K14: - | L14: 33,348.00 | M14: 2,149,081.00 | N14: - | O14: - | P14: - | Q14: - | R14: - | S14: - | T14: - | U14: -
A15: 硚口区(420104) | B15: 91420104792431377T | C15: 武汉诺佳物流有限公司 | D15: 2026年6月 | E15: 200 | F15: 2,462.00 | G15: 54 | H15: 54 | I15: 1,676.80 | J15: - | K15: - | L15: 41,617.00 | M15: 12,577,271.00 | N15: - | O15: - | P15: - | Q15: - | R15: - | S15: - | T15: - | U15: -
A16: 汉阳区(420105) | B16: 91420105732702235L | C16: 湖北经纬国际货运有限公司 | D16: 2026年6月 | E16: 112 | F16: 1,252.10 | G16: 26 | H16: 26 | I16: 706.9 | J16: - | K16: - | L16: 59,365.00 | M16: 14,168,368.00 | N16: - | O16: - | P16: - | Q16: - | R16: - | S16: - | T16: - | U16: -
A17: 汉阳区(420105) | B17: 91420105735198708B | C17: 湖北东方物流服务有限公司 | D17: 2026年6月 | E17: 73 | F17: 677.8 | G17: 2 | H17: 13 | I17: 119.3 | J17: - | K17: - | L17: 27,262.00 | M17: 9,678,294.00 | N17: - | O17: - | P17: - | Q17: - | R17: - | S17: - | T17: - | U17: -
A18: 汉阳区(420105) | B18: 91420105744757065M | C18: 武汉威伟机械设备实业有限公司 | D18: 2026年6月 | E18: 62 | F18: 857.7 | G18: 20 | H18: 16 | I18: 534.7 | J18: 26 | K18: 323 | L18: 18,750.00 | M18: 8,415,065.00 | N18: 7,176.00 | O18: - | P18: - | Q18: - | R18: - | S18: - | T18: - | U18: -
A19: 汉阳区(420105) | B19: 914201057781729037 | C19: 武汉金运达汽车运输服务有限公司 | D19: 2026年6月 | E19: 72 | F19: 1,187.00 | G19: 26 | H19: 26 | I19: 865.2 | J19: - | K19: - | L19: 16,467.00 | M19: 1,499,487.00 | N19: - | O19: - | P19: 16,467.00 | Q19: 16,467.00 | R19: - | S19: - | T19: - | U19: -
A20: 汉阳区(420105) | B20: 91420105MA4K23271U | C20: 武汉市隆升物流有限公司 | D20: 2026年6月 | E20: 224 | F20: 2,733.70 | G20: 80 | H20: 58 | I20: 1,922.10 | J20: - | K20: - | L20: 97,510.00 | M20: 31,000,618.00 | N20: - | O20: - | P20: - | Q20: - | R20: - | S20: - | T20: - | U20: -
A21: 汉阳区(420105) | B21: 91420105MA4L08FHXX | C21: 武汉顺之富物流有限公司 | D21: 2026年6月 | E21: 117 | F21: 1,081.40 | G21: 40 | H21: 19 | I21: 614.7 | J21: - | K21: - | L21: 49,702.00 | M21: 16,998,813.00 | N21: 0 | O21: 0 | P21: 0 | Q21: 0 | R21: 0 | S21: 0 | T21: 0 | U21: 0
A22: 武昌区(420106) | B22: 91420106796333010F | C22: 武汉汉石石油运输有限公司 | D22: 2026年6月 | E22: 89 | F22: 1,298.00 | G22: 4 | H22: 4 | I22: 132.6 | J22: - | K22: - | L22: 49,800.00 | M22: 3,257,600.00 | N22: - | O22: - | P22: 49,800.00 | Q22: - | R22: - | S22: - | T22: - | U22: -
A23: 青山区(420107) | B23: 42010000006 | C23: 武汉钢铁集团物流有限公司 | D23: 2026年6月 | E23: 153 | F23: 2,480.50 | G23: 73 | H23: 80 | I23: 2,480.50 | J23: - | K23: - | L23: 949,670.00 | M23: 21,081,868.00 | N23: - | O23: - | P23: - | Q23: - | R23: - | S23: - | T23: - | U23: -
A24: 青山区(420107) | B24: 91420100751827703K | C24: 武汉石化交通运输有限公司 | D24: 2026年6月 | E24: 61 | F24: 846.5 | G24: 21 | H24: 24 | I24: 790.5 | J24: - | K24: - | L24: 29,782.00 | M24: 12,713,224.00 | N24: - | O24: - | P24: - | Q24: - | R24: - | S24: - | T24: - | U24: -
A25: 青山区(420107) | B25: 91420107055747232J | C25: 武汉市鑫业兴物流有限公司 | D25: 2026年6月 | E25: 119 | F25: 1,269.90 | G25: 50 | H25: 23 | I25: 758.1 | J25: - | K25: - | L25: 205,180.00 | M25: 22,024,362.00 | N25: - | O25: - | P25: - | Q25: - | R25: - | S25: - | T25: - | U25: -
A26: 青山区(420107) | B26: 91420107663484528G | C26: 武汉恒泰达汽车运输有限责任公司 | D26: 2026年6月 | E26: 83 | F26: 379 | G26: 10 | H26: 9 | I26: 162 | J26: - | K26: - | L26: 38,159.00 | M26: 4,654,047.00 | N26: 0 | O26: 0 | P26: 0 | Q26: 0 | R26: 0 | S26: 0 | T26: 0 | U26: 0
A27: 青山区(420107) | B27: 9142010768231345XW | C27: 武汉西马钢铁物流有限公司 | D27: 2026年6月 | E27: 405 | F27: 6,753.00 | G27: 191 | H27: 203 | I27: 6,604.00 | J27: - | K27: - | L27: 925,021.00 | M27: 89,390,219.00 | N27: - | O27: - | P27: - | Q27: - | R27: - | S27: - | T27: 925,021.00 | U27: -
A28: 青山区(420107) | B28: 91420107698311037Q | C28: 武汉盛联华物流有限公司 | D28: 2026年6月 | E28: 64 | F28: 914.9 | G28: 36 | H28: 28 | I28: 914.9 | J28: - | K28: - | L28: 140,802.00 | M28: 13,729,409.00 | N28: - | O28: - | P28: - | Q28: - | R28: - | S28: - | T28: 140,802.00 | U28: -
A29: 青山区(420107) | B29: 9142010771194936X1 | C29: 武汉市华春物流有限公司 | D29: 2026年6月 | E29: 51 | F29: 860 | G29: 24 | H29: 27 | I29: 860 | J29: - | K29: - | L29: 136,269.00 | M29: 9,751,652.00 | N29: - | O29: - | P29: - | Q29: - | R29: - | S29: - | T29: 136,269.00 | U29: -
A30: 青山区(420107) | B30: 91420107737544619R | C30: 武汉宏青运贸有限公司 | D30: 2026年6月 | E30: 75 | F30: 1,295.60 | G30: 33 | H30: 38 | I30: 1,230.80 | J30: - | K30: - | L30: 190,538.00 | M30: 14,985,016.00 | N30: - | O30: - | P30: - | Q30: - | R30: - | S30: - | T30: 190,538.00 | U30: -
A31: 青山区(420107) | B31: 91420107MA4KXHJC8L | C31: 湖北中升运输有限公司 | D31: 2026年6月 | E31: 60 | F31: 961 | G31: 30 | H31: 30 | I31: 961 | J31: - | K31: - | L31: 49,728.00 | M31: 13,273,536.00 | N31: - | O31: - | P31: - | Q31: - | R31: - | S31: - | T31: 49,728.00 | U31: -
A32: 洪山区(420111) | B32: 91420100MA4KY1U60P | C32: 武汉伍福聚通物流有限公司 | D32: 2026年6月 | E32: 52 | F32: 852.8 | G32: 21 | H32: 21 | I32: 693.7 | J32: - | K32: - | L32: 37,152.00 | M32: 3,497,085.00 | N32: - | O32: - | P32: - | Q32: - | R32: - | S32: - | T32: 37,152.00 | U32: -
A33: 洪山区(420111) | B33: 914201113335999550 | C33: 武汉华丁元国际物流有限公司 | D33: 2026年6月 | E33: 114 | F33: 1,727.40 | G33: 46 | H33: 41 | I33: 1,338.20 | J33: - | K33: - | L33: 62,150.00 | M33: 11,853,368.00 | N33: - | O33: - | P33: - | Q33: - | R33: - | S33: - | T33: - | U33: -
A34: 洪山区(420111) | B34: 91420111MA49J23510 | C34: 武汉市聚运通物流有限公司 | D34: 2026年6月 | E34: 51 | F34: 1,147.10 | G34: 14 | H34: 34 | I34: 1,101.00 | J34: - | K34: - | L34: 98,102.00 | M34: 3,190,312.00 | N34: - | O34: - | P34: - | Q34: - | R34: - | S34: - | T34: - | U34: -
A35: 洪山区(420111) | B35: 91420111MA49NBPQXU | C35: 武汉福鑫高照物流有限公司 | D35: 2026年6月 | E35: 97 | F35: 1,709.00 | G35: - | H35: 1 | I35: 33.7 | J35: - | K35: - | L35: 30,991.00 | M35: 6,396,225.00 | N35: - | O35: - | P35: - | Q35: - | R35: - | S35: - | T35: - | U35: -
A36: 洪山区(420111) | B36: 91420111MA49PGM613 | C36: 武汉祺瑞达物流有限责任公司 | D36: 2026年6月 | E36: 81 | F36: 1,413.80 | G36: 31 | H36: 39 | I36: 1,265.70 | J36: 11 | K36: 148.2 | L36: 26,742.00 | M36: 7,604,540.00 | N36: 2,989.00 | O36: - | P36: - | Q36: - | R36: - | S36: - | T36: - | U36: -
A37: 洪山区(420111) | B37: 91420111MA49RC467P | C37: 武汉熊昊伟肖汽车服务有限公司 | D37: 2026年6月 | E37: 74 | F37: 935.6 | G37: 43 | H37: 27 | I37: 882.5 | J37: - | K37: - | L37: 39,090.00 | M37: 8,178,000.00 | N37: - | O37: - | P37: - | Q37: - | R37: - | S37: - | T37: - | U37: -
A38: 洪山区(420111) | B38: 91420111MA4KRX114W | C38: 武汉江南淮天汽车销售服务有限公司 | D38: 2026年6月 | E38: 162 | F38: 2,661.40 | G38: 72 | H38: 79 | I38: 2,539.50 | J38: - | K38: - | L38: 57,270.00 | M38: 16,645,800.00 | N38: - | O38: - | P38: - | Q38: - | R38: - | S38: - | T38: - | U38: -
A39: 洪山区(420111) | B39: 91420111MA4KT8LD2Y | C39: 武汉诚功达汽车服务有限公司 | D39: 2026年6月 | E39: 351 | F39: 6,117.50 | G39: 152 | H39: 179 | I39: 5,819.10 | J39: - | K39: - | L39: 139,560.00 | M39: 58,212,120.00 | N39: - | O39: - | P39: - | Q39: - | R39: - | S39: - | T39: - | U39: -
A40: 洪山区(420111) | B40: 91420112MA49G0UD7K | C40: 武汉鸿诚运达物流有限公司 | D40: 2026年6月 | E40: 49 | F40: 557 | G40: 32 | H40: 17 | I40: 557 | J40: - | K40: - | L40: 28,165.00 | M40: 6,942,470.00 | N40: - | O40: - | P40: - | Q40: - | R40: - | S40: - | T40: - | U40: -
A41: 东西湖区(420112) | B41: 91420106MA49HCCY29 | C41: 武汉誉川丰物流有限公司 | D41: 2026年6月 | E41: 73 | F41: 823.3 | G41: 22 | H41: 12 | I41: 391 | J41: 1 | K41: 35 | L41: 27,983.00 | M41: 6,999,721.00 | N41: 301 | O41: - | P41: - | Q41: - | R41: - | S41: - | T41: 27,682.00 | U41: -
A42: 东西湖区(420112) | B42: 91420112055732575C | C42: 武汉旭元汽车运输服务有限公司 | D42: 2026年6月 | E42: 63 | F42: 963.4 | G42: 10 | H42: 13 | I42: 397.6 | J42: - | K42: - | L42: 42,214.00 | M42: 3,156,332.00 | N42: - | O42: - | P42: - | Q42: - | R42: - | S42: - | T42: - | U42: -
A43: 东西湖区(420112) | B43: 91420112055746272N | C43: 武汉乐康物流有限公司 | D43: 2026年6月 | E43: 108 | F43: 853 | G43: 48 | H43: 58 | I43: 821 | J43: 58 | K43: 821 | L43: 15,786.00 | M43: 5,688,976.00 | N43: 15,786.00 | O43: - | P43: - | Q43: - | R43: - | S43: - | T43: - | U43: -
A44: 东西湖区(420112) | B44: 914201120591921900 | C44: 武汉荣横物流有限公司 | D44: 2026年6月 | E44: 444 | F44: 8,924.00 | G44: 114 | H44: 300 | I44: 8,597.00 | J44: 286 | K44: 8,210.00 | L44: 72,365.00 | M44: 70,306,797.00 | N44: 72,265.00 | O44: - | P44: - | Q44: - | R44: - | S44: - | T44: - | U44: -
A45: 东西湖区(420112) | B45: 9142011206300368X1 | C45: 武汉安顺容通物流有限公司 | D45: 2026年6月 | E45: 55 | F45: 681 | G45: 12 | H45: 3 | I45: 93 | J45: 1 | K45: 34 | L45: 22,698.00 | M45: 1,811,563.00 | N45: 1,100.00 | O45: - | P45: - | Q45: - | R45: - | S45: - | T45: - | U45: -
A46: 东西湖区(420112) | B46: 914201120908282494 | C46: 武汉万利路物流有限公司 | D46: 2026年6月 | E46: 50 | F46: 728.6 | G46: 15 | H46: 9 | I46: 296 | J46: - | K46: - | L46: 16,029.00 | M46: 4,039,358.00 | N46: - | O46: - | P46: - | Q46: - | R46: - | S46: - | T46: - | U46: -
A47: 东西湖区(420112) | B47: 914201120966897962 | C47: 湖北联程中转物流有限公司 | D47: 2026年6月 | E47: 69 | F47: 1,417.20 | G47: 23 | H47: 44 | I47: 1,398.10 | J47: 40 | K47: 1,266.00 | L47: 106,314.00 | M47: 8,505,120.00 | N47: 91,182.00 | O47: - | P47: - | Q47: - | R47: - | S47: - | T47: - | U47: -
A48: 东西湖区(420112) | B48: 91420112303504169E | C48: 九州通医药集团物流有限公司 | D48: 2026年6月 | E48: 56 | F48: 332.9 | G48: - | H48: - | I48: - | J48: - | K48: - | L48: 2,985.00 | M48: 1,486,593.00 | N48: - | O48: - | P48: - | Q48: - | R48: - | S48: - | T48: - | U48: -
A49: 东西湖区(420112) | B49: 91420112303526587Y | C49: 武汉市兴叶联合物流有限公司 | D49: 2026年6月 | E49: 84 | F49: 1,643.00 | G49: 27 | H49: 43 | I49: 1,518.00 | J49: 43 | K49: 1,518.00 | L49: 17,714.00 | M49: 16,741,605.00 | N49: 9,792.00 | O49: - | P49: 7,922.00 | Q49: - | R49: - | S49: - | T49: - | U49: -
A50: 东西湖区(420112) | B50: 91420112303543360M | C50: 武汉鸿锦源物流有限公司 | D50: 2026年6月 | E50: 62 | F50: 816 | G50: 11 | H50: 10 | I50: 326 | J50: - | K50: - | L50: 27,195.00 | M50: 3,230,080.00 | N50: - | O50: - | P50: - | Q50: - | R50: - | S50: - | T50: - | U50: -
A51: 东西湖区(420112) | B51: 914201125584038966 | C51: 武汉航达顺物流有限公司 | D51: 2026年6月 | E51: 105 | F51: 2,062.00 | G51: 42 | H51: 63 | I51: 2,062.00 | J51: - | K51: - | L51: 68,196.00 | M51: 3,091,782.00 | N51: - | O51: - | P51: - | Q51: - | R51: - | S51: - | T51: - | U51: -
A52: 东西湖区(420112) | B52: 91420112558443820B | C52: 湖北长峡富烨绿电供应链有限公司 | D52: 2026年6月 | E52: 70 | F52: 1,645.70 | G52: 14 | H52: 53 | I52: 1,627.20 | J52: 49 | K52: 1,498.00 | L52: 10,172.00 | M52: 3,234,265.00 | N52: 9,303.00 | O52: - | P52: - | Q52: - | R52: - | S52: - | T52: - | U52: -
A53: 东西湖区(420112) | B53: 91420112574939295U | C53: 湖北顺丰运输有限公司 | D53: 2026年6月 | E53: 288 | F53: 3,040.00 | G53: 141 | H53: 83 | I53: 2,385.00 | J53: 55 | K53: 1,715.00 | L53: 40,062.00 | M53: 25,260,109.00 | N53: 29,896.00 | O53: - | P53: - | Q53: - | R53: - | S53: - | T53: - | U53: -
A54: 东西湖区(420112) | B54: 914201126854053765 | C54: 武汉乐道物流有限公司 | D54: 2026年6月 | E54: 68 | F54: 1,124.90 | G54: 17 | H54: 26 | I54: 767.2 | J54: 12 | K54: 370 | L54: 7,639.00 | M54: 4,341,161.00 | N54: 3,100.00 | O54: - | P54: - | Q54: - | R54: - | S54: - | T54: - | U54: -
A55: 东西湖区(420112) | B55: 91420112688821703T | C55: 武汉中联顺达物流有限公司 | D55: 2026年6月 | E55: 74 | F55: 1,067.00 | G55: 14 | H55: 14 | I55: 462.1 | J55: 1 | K55: 34 | L55: 20,234.00 | M55: 3,815,424.00 | N55: 1,340.00 | O55: - | P55: - | Q55: - | R55: - | S55: - | T55: - | U55: -
A56: 东西湖区(420112) | B56: 91420112691862290B | C56: 武汉市湘通顺达冷藏运输有限公司 | D56: 2026年6月 | E56: 89 | F56: 890.6 | G56: 13 | H56: 16 | I56: 502 | J56: 3 | K56: 105 | L56: 16,763.00 | M56: 3,971,956.00 | N56: 0 | O56: - | P56: - | Q56: - | R56: - | S56: - | T56: - | U56: -
A57: 东西湖区(420112) | B57: 91420112711955022A | C57: 武汉市梦园冷链物流有限公司 | D57: 2026年6月 | E57: 54 | F57: 338 | G57: - | H57: - | I57: - | J57: - | K57: - | L57: 11,082.00 | M57: 3,140,892.00 | N57: - | O57: - | P57: - | Q57: - | R57: - | S57: - | T57: - | U57: -
A58: 东西湖区(420112) | B58: 91420112725780008K | C58: 武汉市东西湖国强运输有限公司 | D58: 2026年6月 | E58: 223 | F58: 2,426.00 | G58: 42 | H58: 42 | I58: 1,314.00 | J58: - | K58: - | L58: 28,075.00 | M58: 2,929,523.00 | N58: - | O58: - | P58: - | Q58: - | R58: - | S58: - | T58: - | U58: -
A59: 东西湖区(420112) | B59: 91420112744767028N | C59: 武汉市南北物流有限公司 | D59: 2026年6月 | E59: 74 | F59: 756.4 | G59: - | H59: 37 | I59: 372.5 | J59: - | K59: - | L59: 3,218.00 | M59: 2,820,878.00 | N59: - | O59: - | P59: - | Q59: - | R59: - | S59: - | T59: - | U59: -
A60: 东西湖区(420112) | B60: 91420112751801925Q | C60: 武汉双汇物流有限公司 | D60: 2026年6月 | E60: 88 | F60: 795 | G60: 16 | H60: 7 | I60: 207 | J60: 7 | K60: 207 | L60: 9,149.00 | M60: 8,219,751.00 | N60: 2,998.00 | O60: - | P60: - | Q60: - | R60: - | S60: - | T60: - | U60: -
A61: 东西湖区(420112) | B61: 91420112751812843X | C61: 武汉市东西湖三联汽车运输有限公司 | D61: 2026年6月 | E61: 226 | F61: 1,819.00 | G61: 28 | H61: 31 | I61: 995.4 | J61: 6 | K61: 209 | L61: 26,870.00 | M61: 3,348,598.00 | N61: 1,670.00 | O61: - | P61: 3,156.00 | Q61: - | R61: - | S61: - | T61: - | U61: -
A62: 东西湖区(420112) | B62: 914201127581624411 | C62: 武汉天虎物流有限责任公司 | D62: 2026年6月 | E62: 90 | F62: 1,779.30 | G62: 16 | H62: 38 | I62: 1,261.60 | J62: 5 | K62: 154 | L62: 14,500.00 | M62: 8,500,145.00 | N62: 2,150.00 | O62: - | P62: - | Q62: - | R62: - | S62: - | T62: - | U62: -
A63: 东西湖区(420112) | B63: 9142011276460017X3 | C63: 武汉愚公物流有限公司 | D63: 2026年6月 | E63: 101 | F63: 1,537.00 | G63: 27 | H63: 28 | I63: 915 | J63: 15 | K63: 515 | L63: 64,983.00 | M63: 10,344,774.00 | N63: 15,938.00 | O63: - | P63: - | Q63: - | R63: - | S63: - | T63: - | U63: -
A64: 东西湖区(420112) | B64: 91420112774562701K | C64: 武汉市永强物流有限公司 | D64: 2026年6月 | E64: 92 | F64: 1,230.00 | G64: 42 | H64: 35 | I64: 1,057.00 | J64: - | K64: - | L64: 25,274.00 | M64: 3,834,226.00 | N64: - | O64: - | P64: - | Q64: - | R64: - | S64: - | T64: - | U64: -
A65: 东西湖区(420112) | B65: 91420112MA49B9EQ9M | C65: 武汉恒达远供应链有限公司 | D65: 2026年6月 | E65: 168 | F65: 2,311.00 | G65: 93 | H65: 67 | I65: 2,214.00 | J65: 5 | K65: 171 | L65: 52,497.00 | M65: 21,193,992.00 | N65: 3,630.00 | O65: - | P65: - | Q65: - | R65: - | S65: - | T65: - | U65: -
A66: 东西湖区(420112) | B66: 91420112MA49CL6T0M | C66: 武汉君缘众汽车销售服务有限公司 | D66: 2026年6月 | E66: 50 | F66: 654.9 | G66: 21 | H66: 15 | I66: 490.3 | J66: 2 | K66: 64 | L66: 35,083.00 | M66: 4,291,628.00 | N66: - | O66: - | P66: - | Q66: - | R66: - | S66: - | T66: - | U66: -
A67: 东西湖区(420112) | B67: 91420112MA49CLC87T | C67: 湖北中卓盛物流有限公司 | D67: 2026年6月 | E67: 130 | F67: 1,931.90 | G67: 53 | H67: 45 | I67: 1,473.40 | J67: - | K67: - | L67: 46,190.00 | M67: 8,211,884.00 | N67: - | O67: - | P67: - | Q67: - | R67: - | S67: - | T67: - | U67: -
A68: 东西湖区(420112) | B68: 91420112MA49D0994Q | C68: 湖北海韵通物流有限公司 | D68: 2026年6月 | E68: 146 | F68: 2,116.30 | G68: 80 | H68: 64 | I68: 2,080.50 | J68: - | K68: - | L68: 49,169.00 | M68: 11,457,164.00 | N68: - | O68: - | P68: - | Q68: - | R68: - | S68: - | T68: 49,169.00 | U68: -
A69: 东西湖区(420112) | B69: 91420112MA49EEL351 | C69: 武汉程安商贸有限公司 | D69: 2026年6月 | E69: 87 | F69: 1,434.00 | G69: 42 | H69: 43 | I69: 1,409.00 | J69: 1 | K69: 35 | L69: 64,328.00 | M69: 3,186,900.00 | N69: 580 | O69: - | P69: - | Q69: - | R69: - | S69: - | T69: - | U69: -
A70: 东西湖区(420112) | B70: 91420112MA49GD3M48 | C70: 武汉胜之发物流有限公司 | D70: 2026年6月 | E70: 126 | F70: 2,018.00 | G70: 48 | H70: 51 | I70: 1,651.50 | J70: 1 | K70: 35 | L70: 33,327.00 | M70: 7,319,743.00 | N70: 0 | O70: 0 | P70: 0 | Q70: 0 | R70: 0 | S70: 0 | T70: 0 | U70: 0
A71: 东西湖区(420112) | B71: 91420112MA49H9MQ26 | C71: 武汉质道达物流有限公司 | D71: 2026年6月 | E71: 139 | F71: 1,292.90 | G71: 45 | H71: 14 | I71: 452.8 | J71: - | K71: - | L71: 57,125.00 | M71: 6,515,895.00 | N71: - | O71: - | P71: - | Q71: - | R71: - | S71: - | T71: 57,125.00 | U71: -
A72: 东西湖区(420112) | B72: 91420112MA49HEUA6A | C72: 鸿蒙汽车服务（武汉）有限公司 | D72: 2026年6月 | E72: 135 | F72: 1,987.00 | G72: 47 | H72: 38 | I72: 1,241.00 | J72: - | K72: - | L72: 29,200.00 | M72: 8,870,953.00 | N72: - | O72: - | P72: - | Q72: - | R72: - | S72: - | T72: - | U72: -
A73: 东西湖区(420112) | B73: 91420112MA49JD8U8N | C73: 武汉荆楚纵横运输有限公司 | D73: 2026年6月 | E73: 69 | F73: 763.6 | G73: 9 | H73: 6 | I73: 200 | J73: 1 | K73: 33 | L73: 14,597.00 | M73: 5,999,367.00 | N73: 0 | O73: - | P73: - | Q73: - | R73: - | S73: - | T73: - | U73: -
A74: 东西湖区(420112) | B74: 91420112MA49KA72XA | C74: 武汉新启正汽车服务有限公司 | D74: 2026年6月 | E74: 144 | F74: 1,990.70 | G74: 82 | H74: 59 | I74: 1,949.10 | J74: 1 | K74: 35 | L74: 69,273.00 | M74: 12,673,526.00 | N74: 245 | O74: - | P74: - | Q74: - | R74: - | S74: - | T74: - | U74: -
A75: 东西湖区(420112) | B75: 91420112MA49KJX899 | C75: 湖北景迅安程物流有限公司 | D75: 2026年6月 | E75: 87 | F75: 1,394.00 | G75: 43 | H75: 44 | I75: 1,394.00 | J75: - | K75: - | L75: 76,482.00 | M75: 3,328,446.00 | N75: - | O75: - | P75: - | Q75: - | R75: - | S75: - | T75: - | U75: -
A76: 东西湖区(420112) | B76: 91420112MA49LDCB9F | C76: 武汉市奥狮物流有限公司 | D76: 2026年6月 | E76: 128 | F76: 1,529.80 | G76: 50 | H76: 27 | I76: 896.6 | J76: 6 | K76: 193 | L76: 25,100.00 | M76: 9,313,175.00 | N76: 1,176.00 | O76: - | P76: - | Q76: - | R76: - | S76: - | T76: - | U76: -
A77: 东西湖区(420112) | B77: 91420112MA49M76F28 | C77: 湖北中飞盛物流有限公司 | D77: 2026年6月 | E77: 57 | F77: 840.4 | G77: 29 | H77: 24 | I77: 790.3 | J77: - | K77: - | L77: 22,157.00 | M77: 4,460,054.00 | N77: - | O77: - | P77: - | Q77: - | R77: - | S77: - | T77: - | U77: -
A78: 东西湖区(420112) | B78: 91420112MA49MRKL5J | C78: 湖北中可盛物流有限公司 | D78: 2026年6月 | E78: 95 | F78: 1,548.00 | G78: 36 | H78: 37 | I78: 1,220.00 | J78: 2 | K78: 70 | L78: 64,656.00 | M78: 8,695,894.00 | N78: 470 | O78: - | P78: - | Q78: - | R78: - | S78: - | T78: - | U78: -
A79: 东西湖区(420112) | B79: 91420112MA49MYFM0H | C79: 右转汽车服务（武汉）有限公司 | D79: 2026年6月 | E79: 198 | F79: 2,963.00 | G79: 76 | H79: 67 | I79: 2,201.00 | J79: - | K79: - | L79: 56,166.00 | M79: 14,159,839.00 | N79: - | O79: - | P79: - | Q79: - | R79: - | S79: - | T79: - | U79: -
A80: 东西湖区(420112) | B80: 91420112MA49NPNX2W | C80: 武汉市泽恩物流有限公司 | D80: 2026年6月 | E80: 73 | F80: 633 | G80: 44 | H80: 12 | I80: 388 | J80: - | K80: - | L80: 153,364.00 | M80: 6,833,549.00 | N80: - | O80: - | P80: - | Q80: - | R80: - | S80: - | T80: - | U80: -
A81: 东西湖区(420112) | B81: 91420112MA49NPTF38 | C81: 武汉市泽耀物流有限公司 | D81: 2026年6月 | E81: 144 | F81: 1,654.40 | G81: 90 | H81: 48 | I81: 1,571.10 | J81: - | K81: - | L81: 249,148.00 | M81: 20,112,350.00 | N81: - | O81: - | P81: - | Q81: - | R81: - | S81: - | T81: - | U81: -
A82: 东西湖区(420112) | B82: 91420112MA49P8BE5K | C82: 武汉顺晟发物流有限公司 | D82: 2026年6月 | E82: 93 | F82: 1,286.00 | G82: 31 | H82: 24 | I82: 778.1 | J82: - | K82: - | L82: 25,618.00 | M82: 4,801,017.00 | N82: 0 | O82: 0 | P82: 0 | Q82: 0 | R82: 0 | S82: 0 | T82: 0 | U82: 0
A83: 东西湖区(420112) | B83: 91420112MA49PKXR4H | C83: 武汉宏鑫旺物流有限公司 | D83: 2026年6月 | E83: 128 | F83: 905.2 | G83: 95 | H83: 25 | I83: 798.3 | J83: - | K83: - | L83: 79,099.00 | M83: 14,822,065.00 | N83: - | O83: - | P83: - | Q83: - | R83: - | S83: - | T83: - | U83: -
A84: 东西湖区(420112) | B84: 91420112MA4F044G5E | C84: 武汉盛世康供应链管理有限公司 | D84: 2026年6月 | E84: 42 | F84: 535.9 | G84: 16 | H84: 12 | I84: 397.3 | J84: 12 | K84: 397 | L84: 27,325.00 | M84: 7,142,563.00 | N84: 14,215.00 | O84: - | P84: - | Q84: - | R84: - | S84: - | T84: - | U84: -
A85: 东西湖区(420112) | B85: 91420112MA4F0DREXY | C85: 武汉品运捷达物流有限公司 | D85: 2026年6月 | E85: 143 | F85: 1,942.00 | G85: 80 | H85: 55 | I85: 1,814.00 | J85: 19 | K85: 644 | L85: 43,273.00 | M85: 15,489,015.00 | N85: 16,376.00 | O85: - | P85: - | Q85: - | R85: - | S85: - | T85: - | U85: -
A86: 东西湖区(420112) | B86: 91420112MA4F37QM9E | C86: 武汉盛国物流有限公司 | D86: 2026年6月 | E86: 114 | F86: 948.2 | G86: 66 | H86: 21 | I86: 663 | J86: - | K86: - | L86: 48,539.00 | M86: 10,027,489.00 | N86: 0 | O86: 0 | P86: 0 | Q86: 0 | R86: 0 | S86: 0 | T86: 0 | U86: 0
A87: 东西湖区(420112) | B87: 91420112MA4F3DLA5B | C87: 湖北行大道供应链管理有限公司 | D87: 2026年6月 | E87: 110 | F87: 2,239.80 | G87: 24 | H87: 61 | I87: 1,972.60 | J87: 43 | K87: 1,406.00 | L87: 32,585.00 | M87: 6,332,854.00 | N87: 20,836.00 | O87: - | P87: - | Q87: - | R87: - | S87: - | T87: - | U87: -
A88: 东西湖区(420112) | B88: 91420112MA4K27K508 | C88: 武汉市隆顺汽车运输有限公司 | D88: 2026年6月 | E88: 194 | F88: 2,828.00 | G88: 75 | H88: 66 | I88: 2,103.00 | J88: - | K88: - | L88: 249,354.00 | M88: 13,522,014.00 | N88: - | O88: - | P88: - | Q88: - | R88: - | S88: - | T88: - | U88: -
A89: 东西湖区(420112) | B89: 91420112MA4K2U064A | C89: 武汉华杰承顺物流有限公司 | D89: 2026年6月 | E89: 80 | F89: 1,375.70 | G89: 26 | H89: 32 | I89: 1,044.90 | J89: - | K89: - | L89: 13,393.00 | M89: 3,237,253.00 | N89: - | O89: - | P89: - | Q89: - | R89: - | S89: - | T89: - | U89: -
A90: 东西湖区(420112) | B90: 91420112MA4K3H2B8N | C90: 武汉志达道汽车服务有限公司 | D90: 2026年6月 | E90: 134 | F90: 1,380.40 | G90: 2 | H90: 1 | I90: 31.8 | J90: - | K90: - | L90: 115,674.00 | M90: 4,235,935.00 | N90: - | O90: - | P90: - | Q90: - | R90: - | S90: - | T90: 115,674.00 | U90: -
A91: 东西湖区(420112) | B91: 91420112MA4K3LNG3K | C91: 武汉启正汽车服务有限公司 | D91: 2026年6月 | E91: 106 | F91: 1,756.50 | G91: 47 | H91: 50 | I91: 1,628.80 | J91: - | K91: - | L91: 47,832.00 | M91: 9,538,724.00 | N91: - | O91: - | P91: - | Q91: - | R91: - | S91: - | T91: - | U91: -
A92: 东西湖区(420112) | B92: 91420112MA4K3MA7XX | C92: 湖北瑞锦供应链有限公司 | D92: 2026年6月 | E92: 53 | F92: 340.3 | G92: 27 | H92: 12 | I92: 208.5 | J92: 11 | K92: 177 | L92: 18,208.00 | M92: 7,169,955.00 | N92: 18,172.00 | O92: - | P92: - | Q92: - | R92: - | S92: - | T92: - | U92: -
A93: 东西湖区(420112) | B93: 91420112MA4K4MNY9K | C93: 武汉市泽盛物流有限公司 | D93: 2026年6月 | E93: 210 | F93: 3,061.00 | G93: 62 | H93: 49 | I93: 1,563.00 | J93: - | K93: - | L93: 346,657.00 | M93: 19,666,581.00 | N93: - | O93: - | P93: - | Q93: - | R93: - | S93: - | T93: - | U93: -
A94: 东西湖区(420112) | B94: 91420112MA4K4MQ509 | C94: 武汉市泽福物流有限公司 | D94: 2026年6月 | E94: 186 | F94: 2,729.70 | G94: 77 | H94: 64 | I94: 2,068.20 | J94: 1 | K94: 35 | L94: 319,574.00 | M94: 19,014,474.00 | N94: 650 | O94: - | P94: - | Q94: - | R94: - | S94: - | T94: - | U94: -
A95: 东西湖区(420112) | B95: 91420112MA4K4N8K17 | C95: 武汉顺之发物流有限公司 | D95: 2026年6月 | E95: 87 | F95: 1,415.00 | G95: 18 | H95: 31 | I95: 996 | J95: - | K95: - | L95: 16,586.00 | M95: 3,479,550.00 | N95: 0 | O95: 0 | P95: 0 | Q95: 0 | R95: 0 | S95: 0 | T95: 0 | U95: 0
A96: 东西湖区(420112) | B96: 91420112MA4K4W4A9B | C96: 武汉吉盛腾达物流有限公司 | D96: 2026年6月 | E96: 60 | F96: 718.3 | G96: 13 | H96: 7 | I96: 233.3 | J96: - | K96: - | L96: 20,104.00 | M96: 2,714,040.00 | N96: - | O96: - | P96: - | Q96: - | R96: - | S96: - | T96: - | U96: -
A97: 东西湖区(420112) | B97: 91420112MA4KM4R56A | C97: 武汉北方晟通捷运国际物流有限公司 | D97: 2026年6月 | E97: 52 | F97: 709 | G97: 29 | H97: 21 | I97: 685 | J97: - | K97: - | L97: 35,547.00 | M97: 2,516,019.00 | N97: - | O97: - | P97: - | Q97: - | R97: - | S97: - | T97: - | U97: -
A98: 东西湖区(420112) | B98: 91420112MA4KM8C00M | C98: 武汉鑫速飞达物流有限公司 | D98: 2026年6月 | E98: 123 | F98: 1,709.30 | G98: 70 | H98: 51 | I98: 1,675.00 | J98: 0 | K98: - | L98: 63,061.00 | M98: 12,547,845.00 | N98: - | O98: - | P98: - | Q98: - | R98: - | S98: - | T98: 63,061.00 | U98: -
A99: 东西湖区(420112) | B99: 91420112MA4KMLRCXC | C99: 湖北腾晟远成物流发展有限公司 | D99: 2026年6月 | E99: 186 | F99: 4,714.30 | G99: 35 | H99: 148 | I99: 4,690.30 | J99: 118 | K99: 3,697.00 | L99: 18,833.00 | M99: 13,445,900.00 | N99: 17,523.00 | O99: - | P99: - | Q99: - | R99: - | S99: - | T99: - | U99: -
A100: 东西湖区(420112) | B100: 91420112MA4KMND164 | C100: 武汉宏宏物流有限公司 | D100: 2026年6月 | E100: 80 | F100: 1,137.00 | G100: 10 | H100: 4 | I100: 125 | J100: - | K100: - | L100: 20,726.00 | M100: 2,297,880.00 | N100: - | O100: - | P100: - | Q100: - | R100: - | S100: - | T100: - | U100: -
A101: 东西湖区(420112) | B101: 91420112MA4KNLCYXW | C101: 湖北衡诚物流有限公司 | D101: 2026年6月 | E101: 100 | F101: 1,238.60 | G101: 46 | H101: 26 | I101: 847.5 | J101: 1 | K101: 31 | L101: 39,752.00 | M101: 6,451,744.00 | N101: 420 | O101: - | P101: - | Q101: - | R101: - | S101: - | T101: - | U101: -
A102: 东西湖区(420112) | B102: 91420112MA4KNLPK8Y | C102: 湖北众合盛物流有限公司 | D102: 2026年6月 | E102: 180 | F102: 1,818.50 | G102: 59 | H102: 16 | I102: 531.7 | J102: 1 | K102: 36 | L102: 108,063.00 | M102: 17,826,553.00 | N102: 450 | O102: - | P102: - | Q102: - | R102: - | S102: - | T102: - | U102: -
A103: 东西湖区(420112) | B103: 91420112MA4KPA292A | C103: 武汉市锦华物流有限公司 | D103: 2026年6月 | E103: 230 | F103: 3,263.00 | G103: 112 | H103: 86 | I103: 2,807.00 | J103: 1 | K103: 35 | L103: 53,027.00 | M103: 13,198,670.00 | N103: 140 | O103: - | P103: - | Q103: - | R103: - | S103: - | T103: - | U103: -
A104: 东西湖区(420112) | B104: 91420112MA4KQD1KX0 | C104: 武汉聚义源物流有限公司 | D104: 2026年6月 | E104: 81 | F104: 1,012.00 | G104: 14 | H104: 6 | I104: 193 | J104: - | K104: - | L104: 24,534.00 | M104: 5,790,621.00 | N104: - | O104: - | P104: - | Q104: - | R104: - | S104: - | T104: - | U104: -
A105: 东西湖区(420112) | B105: 91420112MA4KRA8P2A | C105: 武汉翀富安达汽车运输有限公司 | D105: 2026年6月 | E105: 89 | F105: 1,262.40 | G105: 20 | H105: 17 | I105: 548.4 | J105: - | K105: - | L105: 16,750.00 | M105: 2,281,895.00 | N105: - | O105: - | P105: - | Q105: - | R105: - | S105: - | T105: - | U105: -
A106: 东西湖区(420112) | B106: 91420112MA4KT7QEXH | C106: 武汉君之友汽车服务有限公司 | D106: 2026年6月 | E106: 90 | F106: 1,071.10 | G106: 35 | H106: 16 | I106: 520.6 | J106: - | K106: - | L106: 42,392.00 | M106: 8,713,267.00 | N106: - | O106: - | P106: - | Q106: - | R106: - | S106: - | T106: - | U106: -
A107: 东西湖区(420112) | B107: 91420112MA4KTC6K5A | C107: 武汉润邦天下供应链有限公司 | D107: 2026年6月 | E107: 84 | F107: 1,040.90 | G107: 48 | H107: 29 | I107: 938.4 | J107: 21 | K107: 677 | L107: 21,044.00 | M107: 11,736,932.00 | N107: 7,132.00 | O107: - | P107: - | Q107: - | R107: - | S107: - | T107: - | U107: -
A108: 东西湖区(420112) | B108: 91420112MA4KW6E29N | C108: 湖北京邦达供应链科技有限公司 | D108: 2026年6月 | E108: 1,054.00 | F108: 27,603.60 | G108: 120 | H108: 799 | I108: 26,285.60 | J108: 798 | K108: 26,254.00 | L108: 285,512.00 | M108: 113,228,580.00 | N108: 159,207.00 | O108: - | P108: - | Q108: - | R108: - | S108: - | T108: - | U108: -
A109: 东西湖区(420112) | B109: 91420112MA4KWE3N21 | C109: 武汉众顺联达物流有限公司 | D109: 2026年6月 | E109: 67 | F109: 786.7 | G109: 24 | H109: 12 | I109: 380.1 | J109: - | K109: - | L109: 30,392.00 | M109: 5,790,260.00 | N109: - | O109: - | P109: - | Q109: - | R109: - | S109: - | T109: - | U109: -
A110: 东西湖区(420112) | B110: 91420112MA4KWHDX63 | C110: 武汉金瑞物流有限公司 | D110: 2026年6月 | E110: 156 | F110: 3,251.90 | G110: 53 | H110: 89 | I110: 3,131.00 | J110: 89 | K110: 3,131.00 | L110: 85,014.00 | M110: 5,757,197.00 | N110: 82,850.00 | O110: - | P110: - | Q110: - | R110: - | S110: - | T110: - | U110: -
A111: 东西湖区(420112) | B111: 91420112MA4KWJEG9U | C111: 湖北中德盛物流有限公司 | D111: 2026年6月 | E111: 149 | F111: 2,008.70 | G111: 64 | H111: 45 | I111: 1,472.90 | J111: 2 | K111: 69 | L111: 66,297.00 | M111: 8,796,750.00 | N111: 1,490.00 | O111: - | P111: - | Q111: - | R111: - | S111: - | T111: - | U111: -
A112: 东西湖区(420112) | B112: 91420112MA4KWMY2XU | C112: 武汉市联运物流有限公司 | D112: 2026年6月 | E112: 78 | F112: 1,479.00 | G112: 18 | H112: 39 | I112: 1,280.00 | J112: 37 | K112: 1,215.00 | L112: 88,883.00 | M112: 5,021,554.00 | N112: 71,894.00 | O112: - | P112: - | Q112: - | R112: - | S112: - | T112: - | U112: -
A113: 东西湖区(420112) | B113: 91420112MA4KWUY563 | C113: 武汉瑞丰源物流有限公司 | D113: 2026年6月 | E113: 140 | F113: 1,956.00 | G113: 48 | H113: 26 | I113: 858.8 | J113: - | K113: - | L113: 53,824.00 | M113: 6,420,865.00 | N113: - | O113: - | P113: - | Q113: - | R113: - | S113: - | T113: - | U113: -
A114: 东西湖区(420112) | B114: 91420112MA4KWYFU0P | C114: 武汉市泽诚汽车运输有限公司 | D114: 2026年6月 | E114: 167 | F114: 2,151.30 | G114: 63 | H114: 35 | I114: 1,102.00 | J114: - | K114: - | L114: 113,541.00 | M114: 12,014,740.00 | N114: - | O114: - | P114: - | Q114: - | R114: - | S114: - | T114: - | U114: -
A115: 东西湖区(420112) | B115: 91420112MA4KX5EB54 | C115: 武汉利捷物流有限公司 | D115: 2026年6月 | E115: 94 | F115: 1,004.70 | G115: 6 | H115: 7 | I115: 217.9 | J115: 6 | K115: 185 | L115: 89,811.00 | M115: 11,784,111.00 | N115: 6,727.00 | O115: - | P115: - | Q115: - | R115: - | S115: - | T115: - | U115: -
A116: 东西湖区(420112) | B116: 91420112MA4KX73C9H | C116: 武汉佑通物流有限公司 | D116: 2026年6月 | E116: 59 | F116: 844.9 | G116: 31 | H116: 24 | I116: 781.3 | J116: - | K116: - | L116: 17,107.00 | M116: 3,905,484.00 | N116: - | O116: - | P116: - | Q116: - | R116: - | S116: - | T116: - | U116: -
A117: 东西湖区(420112) | B117: 91420112MA4KXGKR4B | C117: 武汉翀道物流有限公司 | D117: 2026年6月 | E117: 148 | F117: 2,301.60 | G117: 22 | H117: 22 | I117: 719.8 | J117: - | K117: - | L117: 21,360.00 | M117: 3,168,245.00 | N117: - | O117: - | P117: - | Q117: - | R117: - | S117: - | T117: - | U117: -
A118: 东西湖区(420112) | B118: 91420112MA4KXJ0T1M | C118: 武汉市瑞业天祥物流有限公司 | D118: 2026年6月 | E118: 58 | F118: 946 | G118: 31 | H118: 27 | I118: 946 | J118: 27 | K118: 946 | L118: 9,788.00 | M118: 4,884,681.00 | N118: - | O118: - | P118: - | Q118: - | R118: - | S118: - | T118: - | U118: -
A119: 东西湖区(420112) | B119: 91420112MA4KXJCX0R | C119: 武汉荣达通物流有限公司 | D119: 2026年6月 | E119: 192 | F119: 2,693.70 | G119: 105 | H119: 77 | I119: 2,510.70 | J119: 5 | K119: 172 | L119: 139,629.00 | M119: 17,910,382.00 | N119: 2,590.00 | O119: - | P119: - | Q119: - | R119: - | S119: - | T119: - | U119: -
A120: 东西湖区(420112) | B120: 91420112MA4KY87C2H | C120: 武汉俊易发物流有限公司 | D120: 2026年6月 | E120: 87 | F120: 1,437.90 | G120: 26 | H120: 37 | I120: 1,187.80 | J120: 36 | K120: 1,155.00 | L120: 21,310.00 | M120: 5,605,327.00 | N120: 17,490.00 | O120: - | P120: - | Q120: - | R120: - | S120: - | T120: - | U120: -
A121: 东西湖区(420112) | B121: 91420112MA4KYHC35Y | C121: 武汉运诚鑫物流有限公司 | D121: 2026年6月 | E121: 126 | F121: 941.9 | G121: 87 | H121: 23 | I121: 753.1 | J121: - | K121: - | L121: 42,037.00 | M121: 13,999,386.00 | N121: - | O121: - | P121: - | Q121: - | R121: - | S121: - | T121: - | U121: -
A122: 东西湖区(420112) | B122: 91420112MA4L0E6T7F | C122: 武汉安驰顺供应链管理有限公司 | D122: 2026年6月 | E122: 237 | F122: 3,170.00 | G122: 122 | H122: 95 | I122: 2,910.00 | J122: 51 | K122: 1,585.00 | L122: 25,595.00 | M122: 20,398,000.00 | N122: 12,797.00 | O122: - | P122: - | Q122: - | R122: - | S122: - | T122: - | U122: -
A123: 东西湖区(420112) | B123: 91420112MA4L0FNP58 | C123: 武汉九瀛物流有限公司 | D123: 2026年6月 | E123: 87 | F123: 1,455.80 | G123: 34 | H123: 36 | I123: 1,159.30 | J123: - | K123: - | L123: 43,036.00 | M123: 4,393,630.00 | N123: - | O123: - | P123: - | Q123: - | R123: - | S123: - | T123: - | U123: -
A124: 东西湖区(420112) | B124: 91420112MA4L0LBM0C | C124: 武汉市亦政堂物流有限公司 | D124: 2026年6月 | E124: 233 | F124: 3,367.80 | G124: 101 | H124: 79 | I124: 2,522.00 | J124: - | K124: - | L124: 236,871.00 | M124: 13,966,522.00 | N124: - | O124: - | P124: - | Q124: - | R124: - | S124: - | T124: - | U124: -
A125: 东西湖区(420112) | B125: 91420112MA7HHQ367G | C125: 武汉游隆物流有限公司 | D125: 2026年6月 | E125: 68 | F125: 980.4 | G125: 4 | H125: 9 | I125: 295.8 | J125: 1 | K125: 35 | L125: 62,942.00 | M125: 1,657,893.00 | N125: 241 | O125: - | P125: - | Q125: - | R125: - | S125: - | T125: 62,701.00 | U125: -
A126: 东西湖区(420112) | B126: 91420112MA7NEQ6D2Y | C126: 湖北星耀物流有限公司 | D126: 2026年6月 | E126: 73 | F126: 560.4 | G126: 20 | H126: 13 | I126: 196.6 | J126: 13 | K126: 197 | L126: 22,938.00 | M126: 7,204,949.00 | N126: 4,262.00 | O126: - | P126: - | Q126: - | R126: - | S126: - | T126: - | U126: -
A127: 东西湖区(420112) | B127: 91420112MABPQTNR80 | C127: 湖北顺时针供应链有限公司 | D127: 2026年6月 | E127: 142 | F127: 2,167.00 | G127: 61 | H127: 67 | I127: 2,029.60 | J127: 66 | K127: 1,994.60 | L127: 37,574.00 | M127: 36,707,566.00 | N127: 34,685.00 | O127: - | P127: - | Q127: - | R127: - | S127: - | T127: - | U127: -
A128: 东西湖区(420112) | B128: 91420112MABTL0KM5E | C128: 武汉顺国物流有限公司 | D128: 2026年6月 | E128: 163 | F128: 2,925.00 | G128: 42 | H128: 88 | I128: 2,673.00 | J128: 1 | K128: 35 | L128: 30,609.00 | M128: 5,490,813.00 | N128: 0 | O128: 0 | P128: 0 | Q128: 0 | R128: 0 | S128: 0 | T128: 0 | U128: 0
A129: 东西湖区(420112) | B129: 91420112MACUK7G65H | C129: 湖北恒平汽车运输有限公司 | D129: 2026年6月 | E129: 119 | F129: 1,123.10 | G129: - | H129: 59 | I129: 581.9 | J129: - | K129: - | L129: 30,290.00 | M129: 13,827,022.00 | N129: - | O129: - | P129: - | Q129: - | R129: - | S129: - | T129: - | U129: -
A130: 东西湖区(420112) | B130: 914201147308764422 | C130: 湖北安捷物流有限公司 | D130: 2026年6月 | E130: 56 | F130: 965.9 | G130: 22 | H130: 27 | I130: 896 | J130: 12 | K130: 415 | L130: 13,980.00 | M130: 4,923,156.00 | N130: 7,192.00 | O130: - | P130: - | Q130: - | R130: - | S130: - | T130: - | U130: -
A131: 东西湖区(420112) | B131: 91420921MA488EN18W | C131: 武汉恒平物流有限公司 | D131: 2026年6月 | E131: 136 | F131: 1,136.40 | G131: 1 | H131: 66 | I131: 595.3 | J131: - | K131: - | L131: 15,422.00 | M131: 11,615,211.00 | N131: - | O131: - | P131: - | Q131: - | R131: - | S131: - | T131: - | U131: -
A132: 汉南区(420113) | B132: 914201002718923708 | C132: 武汉神龙物流有限公司 | D132: 2026年6月 | E132: 66 | F132: 524.1 | G132: 6 | H132: 14 | I132: 112 | J132: - | K132: - | L132: 9,439.00 | M132: 11,416,734.00 | N132: - | O132: - | P132: - | Q132: - | R132: - | S132: - | T132: - | U132: -
A133: 汉南区(420113) | B133: 9142010030375773XG | C133: 武汉红昌顺物流有限公司 | D133: 2026年6月 | E133: 68 | F133: 1,124.50 | G133: 26 | H133: 27 | I133: 878.6 | J133: - | K133: - | L133: 39,732.00 | M133: 16,023,121.00 | N133: - | O133: - | P133: - | Q133: - | R133: - | S133: - | T133: 39,732.00 | U133: -
A134: 汉南区(420113) | B134: 91420100714599916G | C134: 武汉市三维联运有限责任公司 | D134: 2026年6月 | E134: 55 | F134: 446.5 | G134: 3 | H134: 30 | I134: 290 | J134: - | K134: - | L134: 10,540.00 | M134: 6,856,634.00 | N134: - | O134: - | P134: - | Q134: - | R134: - | S134: - | T134: - | U134: -
A135: 汉南区(420113) | B135: 9142010075815752XB | C135: 武汉中铁伊通物流有限公司 | D135: 2026年6月 | E135: 81 | F135: 1,058.30 | G135: 39 | H135: 33 | I135: 965.5 | J135: - | K135: - | L135: 122,716.00 | M135: 9,482,238.00 | N135: - | O135: - | P135: - | Q135: - | R135: - | S135: - | T135: - | U135: -
A136: 汉南区(420113) | B136: 91420100MA49GYT74T | C136: 武汉白鲸物流有限公司 | D136: 2026年6月 | E136: 111 | F136: 1,129.90 | G136: 6 | H136: 54 | I136: 580.3 | J136: - | K136: - | L136: 14,665.00 | M136: 12,183,209.00 | N136: - | O136: - | P136: - | Q136: - | R136: - | S136: - | T136: - | U136: -
A137: 汉南区(420113) | B137: 91420100MA4KML5F44 | C137: 武汉安信双福物流有限公司 | D137: 2026年6月 | E137: 98 | F137: 1,370.10 | G137: 4 | H137: 1 | I137: 32 | J137: - | K137: - | L137: 142,081.00 | M137: 10,496,926.00 | N137: - | O137: - | P137: - | Q137: - | R137: - | S137: - | T137: 142,081.00 | U137: -
A138: 汉南区(420113) | B138: 91420100MA7MLHKLXG | C138: 湖北氢动力科技服务有限公司 | D138: 2026年6月 | E138: 158 | F138: 143.9 | G138: 1 | H138: - | I138: - | J138: - | K138: - | L138: 26,928.00 | M138: 1,516,312.00 | N138: - | O138: - | P138: - | Q138: - | R138: - | S138: - | T138: - | U138: -
A139: 汉南区(420113) | B139: 91420113737517944J | C139: 武汉市中南物流配送有限公司 | D139: 2026年6月 | E139: 278 | F139: 2,278.80 | G139: 16 | H139: 144 | I139: 1,344.90 | J139: - | K139: - | L139: 28,905.00 | M139: 25,389,774.00 | N139: - | O139: - | P139: - | Q139: - | R139: - | S139: - | T139: - | U139: -
A140: 汉南区(420113) | B140: 91420113MA4K3LM30M | C140: 武汉璟阳供应链管理有限公司 | D140: 2026年6月 | E140: 154 | F140: 1,495.10 | G140: 20 | H140: 75 | I140: 892.3 | J140: 0 | K140: 0 | L140: 26,847.00 | M140: 30,087,574.00 | N140: 0 | O140: 0 | P140: 0 | Q140: 0 | R140: 0 | S140: 0 | T140: 0 | U140: 0
A141: 汉南区(420113) | B141: 91420113MAD6EHJ181 | C141: 湖北安捷楚道供应链有限公司 | D141: 2026年6月 | E141: 125 | F141: 2,621.50 | G141: 34 | H141: 69 | I141: 2,312.40 | J141: 29 | K141: 927.4 | L141: 38,730.00 | M141: 21,753,254.00 | N141: 13,701.00 | O141: - | P141: - | Q141: - | R141: - | S141: - | T141: - | U141: -
A142: 蔡甸区(420114) | B142: 91420114584896305D | C142: 尚鸿物流武汉有限公司 | D142: 2026年6月 | E142: 100 | F142: 807 | G142: 22 | H142: 51 | I142: 498 | J142: - | K142: - | L142: 2,747.00 | M142: 3,537,146.00 | N142: - | O142: - | P142: - | Q142: - | R142: - | S142: - | T142: - | U142: -
A143: 蔡甸区(420114) | B143: 91420114594511253Y | C143: 武汉通利达物流有限公司 | D143: 2026年6月 | E143: 113 | F143: 1,779.00 | G143: 41 | H143: 41 | I143: 1,356.00 | J143: - | K143: - | L143: 40,789.00 | M143: 12,323,801.00 | N143: - | O143: - | P143: - | Q143: - | R143: - | S143: - | T143: - | U143: -
A144: 蔡甸区(420114) | B144: 91420114672765284Q | C144: 武汉鸿程物流有限公司 | D144: 2026年6月 | E144: 112 | F144: 1,048.00 | G144: 0 | H144: 26 | I144: 211.5 | J144: - | K144: - | L144: 16,556.00 | M144: 14,621,816.00 | N144: - | O144: - | P144: - | Q144: - | R144: - | S144: - | T144: - | U144: -
A145: 蔡甸区(420114) | B145: 91420114717949299R | C145: 武汉中原发展汽车物流股份有限公司 | D145: 2026年6月 | E145: 450 | F145: 3,649.00 | G145: 4 | H145: 229 | I145: 2,043.00 | J145: - | K145: - | L145: 30,118.00 | M145: 30,176,561.00 | N145: - | O145: - | P145: - | Q145: - | R145: - | S145: - | T145: - | U145: -
A146: 蔡甸区(420114) | B146: 91420114774593946X | C146: 武汉兴达汽车物流有限责任公司 | D146: 2026年6月 | E146: 202 | F146: 1,761.00 | G146: 2 | H146: 102 | I146: 889 | J146: - | K146: - | L146: 15,924.00 | M146: 15,510,994.00 | N146: - | O146: - | P146: - | Q146: - | R146: - | S146: - | T146: - | U146: -
A147: 蔡甸区(420114) | B147: 91420114799790292H | C147: 武汉市京顺达物流有限公司 | D147: 2026年6月 | E147: 149 | F147: 1,328.60 | G147: 2 | H147: 80 | I147: 886.1 | J147: - | K147: - | L147: 11,620.00 | M147: 8,467,098.00 | N147: 0 | O147: 0 | P147: 0 | Q147: 0 | R147: 0 | S147: 0 | T147: 0 | U147: 0
A148: 蔡甸区(420114) | B148: 91420114MA49LCXQ2D | C148: 武汉洛达物流有限公司 | D148: 2026年6月 | E148: 141 | F148: 2,217.00 | G148: 66 | H148: 63 | I148: 2,068.00 | J148: - | K148: - | L148: 91,571.00 | M148: 25,848,899.00 | N148: - | O148: - | P148: - | Q148: - | R148: - | S148: - | T148: - | U148: -
A149: 蔡甸区(420114) | B149: 91420114MA4K3EPU10 | C149: 武汉辉途物流有限公司 | D149: 2026年6月 | E149: 216 | F149: 3,741.00 | G149: 97 | H149: 113 | I149: 3,657.00 | J149: - | K149: - | L149: 84,625.00 | M149: 22,848,899.00 | N149: - | O149: - | P149: - | Q149: - | R149: - | S149: - | T149: - | U149: -
A150: 蔡甸区(420114) | B150: 91420114MA4KQL6R08 | C150: 武汉市风鑫物流有限责任公司 | D150: 2026年6月 | E150: 112 | F150: 1,700.00 | G150: 46 | H150: 41 | I150: 1,338.00 | J150: - | K150: - | L150: 66,560.00 | M150: 14,310,598.00 | N150: - | O150: - | P150: - | Q150: - | R150: - | S150: - | T150: - | U150: -
A151: 蔡甸区(420114) | B151: 91420114MA4KX3R61F | C151: 武汉荆鼎汽车工程有限公司 | D151: 2026年6月 | E151: 109 | F151: 2,161.00 | G151: 33 | H151: 61 | I151: 1,968.00 | J151: - | K151: - | L151: 68,730.00 | M151: 9,531,485.00 | N151: - | O151: - | P151: - | Q151: - | R151: - | S151: - | T151: - | U151: -
A152: 江夏区(420115) | B152: 42011500004 | C152: 安吉汽车物流（湖北）有限公司 | D152: 2026年6月 | E152: 192 | F152: 1,929.00 | G152: - | H152: 96 | I152: 1,058.00 | J152: - | K152: - | L152: 10,856.00 | M152: 8,520,732.00 | N152: - | O152: - | P152: - | Q152: - | R152: - | S152: - | T152: - | U152: -
A153: 江夏区(420115) | B153: 9142011530352803XB | C153: 武汉远航顺达物流有限公司 | D153: 2026年6月 | E153: 74 | F153: 448.2 | G153: 20 | H153: 1 | I153: 30 | J153: - | K153: - | L153: 5,921.00 | M153: 209,249.00 | N153: - | O153: - | P153: - | Q153: - | R153: - | S153: - | T153: - | U153: -
A154: 江夏区(420115) | B154: 91420115303795365T | C154: 武汉通翔汽车运输有限公司 | D154: 2026年6月 | E154: 84 | F154: 825 | G154: 37 | H154: 27 | I154: 613 | J154: - | K154: - | L154: 16,140.00 | M154: 1,024,202.00 | N154: - | O154: - | P154: - | Q154: - | R154: - | S154: - | T154: - | U154: -
A155: 江夏区(420115) | B155: 914201153335294557 | C155: 武汉欣源易通汽车运输有限公司 | D155: 2026年6月 | E155: 56 | F155: 770.1 | G155: - | H155: 2 | I155: 54.8 | J155: - | K155: - | L155: 14,680.00 | M155: 1,088,262.00 | N155: - | O155: - | P155: - | Q155: - | R155: - | S155: - | T155: - | U155: -
A156: 江夏区(420115) | B156: 91420115MA49AH7838 | C156: 武汉聚义丰物流有限公司 | D156: 2026年6月 | E156: 129 | F156: 2,008.00 | G156: 67 | H156: 62 | I156: 2,008.00 | J156: - | K156: - | L156: 77,077.00 | M156: 9,257,961.00 | N156: - | O156: - | P156: - | Q156: - | R156: - | S156: - | T156: 77,077.00 | U156: -
A157: 江夏区(420115) | B157: 91420115MA49B5KN1M | C157: 武汉泉胜物流有限公司 | D157: 2026年6月 | E157: 123 | F157: 1,955.30 | G157: 60 | H157: 57 | I157: 1,872.80 | J157: - | K157: - | L157: 53,175.00 | M157: 8,253,756.00 | N157: - | O157: - | P157: - | Q157: - | R157: - | S157: - | T157: - | U157: -
A158: 江夏区(420115) | B158: 91420115MA49CRQD37 | C158: 武汉望道物流有限公司 | D158: 2026年6月 | E158: 179 | F158: 2,970.80 | G158: 79 | H158: 83 | I158: 2,728.00 | J158: - | K158: - | L158: 52,481.00 | M158: 21,978,875.00 | N158: - | O158: - | P158: - | Q158: - | R158: - | S158: - | T158: - | U158: -
A159: 江夏区(420115) | B159: 91420115MA49CT808M | C159: 武汉道擎物流有限公司 | D159: 2026年6月 | E159: 100 | F159: 1,451.40 | G159: 53 | H159: 42 | I159: 1,369.80 | J159: - | K159: - | L159: 36,524.00 | M159: 15,326,979.00 | N159: - | O159: - | P159: - | Q159: - | R159: - | S159: - | T159: - | U159: -
A160: 江夏区(420115) | B160: 91420115MA4K418X8T | C160: 武汉汇义丰汽车服务有限公司 | D160: 2026年6月 | E160: 115 | F160: 1,638.00 | G160: 62 | H160: 49 | I160: 1,575.00 | J160: - | K160: - | L160: 57,335.00 | M160: 7,606,360.00 | N160: - | O160: - | P160: - | Q160: - | R160: - | S160: - | T160: 57,335.00 | U160: -
A161: 江夏区(420115) | B161: 91420115MA4K4CXL9B | C161: 武汉轩通运输有限公司 | D161: 2026年6月 | E161: 84 | F161: 1,350.80 | G161: 31 | H161: 33 | I161: 1,059.00 | J161: - | K161: - | L161: 18,525.00 | M161: 2,064,092.00 | N161: - | O161: - | P161: - | Q161: - | R161: - | S161: - | T161: - | U161: -
A162: 江夏区(420115) | B162: 91420115MA4KL78N5H | C162: 武汉旺途物流有限公司 | D162: 2026年6月 | E162: 204 | F162: 2,526.70 | G162: 92 | H162: 48 | I162: 1,551.70 | J162: - | K162: - | L162: 59,910.00 | M162: 15,332,953.00 | N162: - | O162: - | P162: - | Q162: - | R162: - | S162: - | T162: - | U162: -
A163: 江夏区(420115) | B163: 91420115MA4L04MK8K | C163: 武汉金鸿顺物流有限责任公司 | D163: 2026年6月 | E163: 213 | F163: 3,301.00 | G163: 111 | H163: 102 | I163: 3,301.00 | J163: - | K163: - | L163: 128,261.00 | M163: 3,739,418.00 | N163: - | O163: - | P163: - | Q163: - | R163: - | S163: - | T163: 128,261.00 | U163: -
A164: 江夏区(420115) | B164: 91420115MA4L0M4P3J | C164: 武汉安运八方物流有限公司 | D164: 2026年6月 | E164: 148 | F164: 2,232.40 | G164: 73 | H164: 63 | I164: 2,045.60 | J164: - | K164: - | L164: 49,525.00 | M164: 20,346,789.00 | N164: - | O164: - | P164: - | Q164: - | R164: - | S164: - | T164: - | U164: -
A165: 江夏区(420115) | B165: 91420115MA4L0U7L1M | C165: 武汉武嘉物流有限公司 | D165: 2026年6月 | E165: 201 | F165: 3,726.00 | G165: 86 | H165: 115 | I165: 3,726.00 | J165: - | K165: - | L165: 36,636.00 | M165: 4,034,622.00 | N165: - | O165: - | P165: - | Q165: - | R165: - | S165: - | T165: 36,636.00 | U165: -
A166: 黄陂区(420116) | B166: 9142010230341821XF | C166: 武汉德龙吉祥物流有限公司 | D166: 2026年6月 | E166: 63 | F166: 965 | G166: 4 | H166: 6 | I166: 191 | J166: - | K166: - | L166: 70,198.00 | M166: 6,452,076.00 | N166: - | O166: - | P166: - | Q166: - | R166: - | S166: - | T166: - | U166: -
A167: 黄陂区(420116) | B167: 914201023037166041 | C167: 武汉盛世冠宇物流有限公司 | D167: 2026年6月 | E167: 75 | F167: 1,086.00 | G167: 15 | H167: 15 | I167: 491.4 | J167: - | K167: - | L167: 89,338.00 | M167: 8,637,409.00 | N167: - | O167: - | P167: - | Q167: - | R167: - | S167: - | T167: - | U167: -
A168: 黄陂区(420116) | B168: 91420112MA4K32BQ7P | C168: 武汉云洋缘物流有限公司 | D168: 2026年6月 | E168: 117 | F168: 1,864.80 | G168: 41 | H168: 41 | I168: 1,335.90 | J168: - | K168: - | L168: 160,135.00 | M168: 13,435,639.00 | N168: - | O168: - | P168: - | Q168: - | R168: - | S168: - | T168: - | U168: -
A169: 黄陂区(420116) | B169: 91420112MA4KPFY06G | C169: 武汉金宏杰物流有限公司 | D169: 2026年6月 | E169: 52 | F169: 947 | G169: 9 | H169: 18 | I169: 577 | J169: - | K169: - | L169: 73,397.00 | M169: 6,450,430.00 | N169: - | O169: - | P169: - | Q169: - | R169: - | S169: - | T169: - | U169: -
A170: 黄陂区(420116) | B170: 91420112MA4KYQRJ6X | C170: 武汉振昊双龙物流有限公司 | D170: 2026年6月 | E170: 107 | F170: 1,638.40 | G170: 6 | H170: 5 | I170: 162.9 | J170: - | K170: - | L170: 114,489.00 | M170: 11,885,258.00 | N170: - | O170: - | P170: - | Q170: - | R170: - | S170: - | T170: - | U170: -
A171: 黄陂区(420116) | B171: 91420116303454122J | C171: 武汉市群星明物流股份有限公司 | D171: 2026年6月 | E171: 200 | F171: 2,704.80 | G171: 99 | H171: 99 | I171: 2,676.90 | J171: - | K171: - | L171: 23,675.00 | M171: 13,241,976.00 | N171: - | O171: - | P171: - | Q171: - | R171: - | S171: - | T171: - | U171: -
A172: 黄陂区(420116) | B172: 914201163035566044 | C172: 武汉市长松物流配送有限公司 | D172: 2026年6月 | E172: 57 | F172: 663 | G172: 7 | H172: 11 | I172: 367 | J172: - | K172: - | L172: 48,717.00 | M172: 5,074,125.00 | N172: - | O172: - | P172: - | Q172: - | R172: - | S172: - | T172: - | U172: -
A173: 黄陂区(420116) | B173: 91420116333504223D | C173: 武汉市港兴汽车运输有限公司 | D173: 2026年6月 | E173: 66 | F173: 1,026.40 | G173: 16 | H173: 15 | I173: 494.4 | J173: - | K173: - | L173: 110,972.00 | M173: 11,238,692.00 | N173: - | O173: - | P173: - | Q173: - | R173: - | S173: - | T173: - | U173: -
A174: 黄陂区(420116) | B174: 91420116333603838B | C174: 武汉创新三军物流有限公司 | D174: 2026年6月 | E174: 164 | F174: 2,468.90 | G174: 34 | H174: 47 | I174: 1,491.20 | J174: - | K174: - | L174: 209,040.00 | M174: 19,805,683.00 | N174: - | O174: - | P174: - | Q174: - | R174: - | S174: - | T174: - | U174: -
A175: 黄陂区(420116) | B175: 91420116MA49HD5X27 | C175: 武汉嘉晟圣杰物流有限公司 | D175: 2026年6月 | E175: 101 | F175: 1,498.90 | G175: 44 | H175: 36 | I175: 1,170.00 | J175: - | K175: - | L175: 120,209.00 | M175: 11,220,487.00 | N175: - | O175: - | P175: - | Q175: - | R175: - | S175: - | T175: - | U175: -
A176: 黄陂区(420116) | B176: 91420116MA49KP4D1M | C176: 武汉捷赢汽车销售有限公司 | D176: 2026年6月 | E176: 98 | F176: 1,546.00 | G176: 50 | H176: 47 | I176: 1,531.00 | J176: - | K176: - | L176: 113,391.00 | M176: 11,709,926.00 | N176: - | O176: - | P176: - | Q176: - | R176: - | S176: - | T176: - | U176: -
A177: 黄陂区(420116) | B177: 91420116MA49QNAR1K | C177: 湖北圆涔物流有限公司 | D177: 2026年6月 | E177: 1,763.00 | F177: 36,525.60 | G177: 418 | H177: 1,345.00 | I177: 36,525.60 | J177: - | K177: - | L177: 151,953.00 | M177: 31,778,586.00 | N177: - | O177: - | P177: - | Q177: - | R177: - | S177: - | T177: - | U177: -
A178: 黄陂区(420116) | B178: 91420116MA49RL8J3G | C178: 湖北犇赢物流有限公司 | D178: 2026年6月 | E178: 84 | F178: 1,355.00 | G178: 43 | H178: 41 | I178: 1,355.00 | J178: - | K178: - | L178: 94,041.00 | M178: 11,207,024.00 | N178: - | O178: - | P178: - | Q178: - | R178: - | S178: - | T178: - | U178: -
A179: 黄陂区(420116) | B179: 91420116MA49RM0N8X | C179: 湖北京犇物流有限公司 | D179: 2026年6月 | E179: 64 | F179: 1,284.40 | G179: 26 | H179: 38 | I179: 1,284.40 | J179: 38 | K179: 1,284.40 | L179: 77,368.00 | M179: 10,298,184.00 | N179: 77,368.00 | O179: - | P179: - | Q179: - | R179: - | S179: - | T179: - | U179: -
A180: 黄陂区(420116) | B180: 91420116MA4KWWXN2K | C180: 武汉嘉晟汉北物流有限公司 | D180: 2026年6月 | E180: 182 | F180: 2,839.60 | G180: 72 | H180: 66 | I180: 2,152.40 | J180: - | K180: - | L180: 195,626.00 | M180: 19,293,030.00 | N180: - | O180: - | P180: - | Q180: - | R180: - | S180: - | T180: - | U180: -
A181: 新洲区(420117) | B181: 91420117MA4KX88J0P | C181: 武汉臻锋物流有限公司 | D181: 2026年6月 | E181: 90 | F181: 1,677.40 | G181: 40 | H181: 50 | I181: 1,677.40 | J181: - | K181: - | L181: 27,903.00 | M181: 2,869,946.00 | N181: - | O181: - | P181: - | Q181: - | R181: - | S181: - | T181: - | U181: -
A182: 长江新区(420130) | B182: 333442050 | C182: 武汉陆生畅通物流有限公司 | D182: 2026年6月 | E182: 73 | F182: 963.6 | G182: 6 | H182: 7 | I182: 231.5 | J182: - | K182: - | L182: 45,766.00 | M182: 7,982,905.00 | N182: - | O182: - | P182: - | Q182: - | R182: - | S182: - | T182: - | U182: -
A183: 长江新区(420130) | B183: 91420114MA4K3CA21X | C183: 武汉世纪胜航物流有限公司 | D183: 2026年6月 | E183: 217 | F183: 3,750.80 | G183: 86 | H183: 105 | I183: 3,382.20 | J183: - | K183: - | L183: 148,972.00 | M183: 33,035,951.00 | N183: - | O183: - | P183: - | Q183: - | R183: - | S183: - | T183: - | U183: -
A184: 长江新区(420130) | B184: 91420116MA49BMCA0G | C184: 武汉盛世辉腾物流有限责任公司 | D184: 2026年6月 | E184: 52 | F184: 582 | G184: 3 | H184: 2 | I184: 66.5 | J184: - | K184: - | L184: 22,854.00 | M184: 6,115,195.00 | N184: - | O184: - | P184: - | Q184: - | R184: - | S184: - | T184: - | U184: -
A185: 长江新区(420130) | B185: 91420116MA4F018A3W | C185: 武汉隆腾盛物流有限公司 | D185: 2026年6月 | E185: 105 | F185: 1,556.50 | G185: 49 | H185: 41 | I185: 1,328.60 | J185: - | K185: - | L185: 27,748.00 | M185: 10,422,812.00 | N185: - | O185: - | P185: - | Q185: - | R185: - | S185: - | T185: - | U185: -
A186: 长江新区(420130) | B186: 91420116MA4F0NFD2C | C186: 武汉夯途茂璟商贸有限公司 | D186: 2026年6月 | E186: 29 | F186: 446 | G186: - | H186: - | I186: - | J186: - | K186: - | L186: 72,540.00 | M186: 2,931,495.00 | N186: - | O186: - | P186: - | Q186: - | R186: - | S186: - | T186: - | U186: -
A187: 长江新区(420130) | B187: 91420116MA4F505R8A | C187: 武汉锦荣通物流有限责任公司 | D187: 2026年6月 | E187: 205 | F187: 2,025.30 | G187: 93 | H187: 31 | I187: 1,024.00 | J187: - | K187: - | L187: 108,413.00 | M187: 22,656,837.00 | N187: - | O187: - | P187: - | Q187: - | R187: - | S187: - | T187: - | U187: -
A188: 长江新区(420130) | B188: 91420116MA4KR0M422 | C188: 武汉山峰物流有限公司 | D188: 2026年6月 | E188: 47 | F188: 568.1 | G188: 3 | H188: 8 | I188: 254 | J188: - | K188: - | L188: 12,327.00 | M188: 2,204,280.00 | N188: - | O188: - | P188: - | Q188: - | R188: - | S188: - | T188: - | U188: -
A189: 长江新区(420130) | B189: 91420116MA4KTDXU1R | C189: 武汉顺旺金物流运输有限公司 | D189: 2026年6月 | E189: 53 | F189: 579.3 | G189: 11 | H189: 10 | I189: 326.8 | J189: - | K189: - | L189: 16,667.00 | M189: 8,612,980.00 | N189: - | O189: - | P189: - | Q189: - | R189: - | S189: - | T189: - | U189: -
A190: 长江新区(420130) | B190: 91420116MA4KTT0P48 | C190: 武汉展新胜安物流有限公司 | D190: 2026年6月 | E190: 113 | F190: 1,749.70 | G190: 59 | H190: 53 | I190: 1,738.00 | J190: - | K190: - | L190: 72,870.00 | M190: 16,814,367.00 | N190: - | O190: - | P190: - | Q190: - | R190: - | S190: - | T190: - | U190: -
A191: 长江新区(420130) | B191: 91420116MA4KWP9L42 | C191: 武汉金广进物流有限公司 | D191: 2026年6月 | E191: 60 | F191: 876 | G191: 18 | H191: 14 | I191: 456 | J191: - | K191: - | L191: 27,716.00 | M191: 3,214,488.00 | N191: - | O191: - | P191: - | Q191: - | R191: - | S191: - | T191: - | U191: -
A192: 长江新区(420130) | B192: 91420116MA4KYFG43U | C192: 武汉汇程物流有限公司 | D192: 2026年6月 | E192: 85 | F192: 1,352.70 | G192: 18 | H192: 20 | I192: 654.2 | J192: - | K192: - | L192: 50,225.00 | M192: 8,907,357.00 | N192: - | O192: - | P192: - | Q192: - | R192: - | S192: - | T192: - | U192: -
A193: 长江新区(420130) | B193: 91420116MA4L00LE1L | C193: 武汉吉永康物流有限公司 | D193: 2026年6月 | E193: 130 | F193: 1,606.50 | G193: 64 | H193: 39 | I193: 1,284.60 | J193: - | K193: - | L193: 61,860.00 | M193: 12,977,867.00 | N193: - | O193: - | P193: - | Q193: - | R193: - | S193: - | T193: - | U193: -
A194: 长江新区(420130) | B194: 91420116MA7H915F18 | C194: 武汉盛世捷通物流有限公司 | D194: 2026年6月 | E194: 87 | F194: 1,202.90 | G194: 42 | H194: 31 | I194: 1,021.70 | J194: - | K194: - | L194: 24,189.00 | M194: 7,011,544.00 | N194: - | O194: - | P194: - | Q194: - | R194: - | S194: - | T194: - | U194: -
A195: 长江新区(420130) | B195: 91420116MABTAD3537 | C195: 武汉盛广佳仁物流有限公司 | D195: 2026年6月 | E195: 67 | F195: 632.8 | G195: 24 | H195: 8 | I195: 266.2 | J195: - | K195: - | L195: 14,502.00 | M195: 9,404,038.00 | N195: - | O195: - | P195: - | Q195: - | R195: - | S195: - | T195: - | U195: -
A196: 长江新区(420130) | B196: 9142011706303948XG | C196: 武汉德旺港口物流有限公司 | D196: 2026年6月 | E196: 47 | F196: 879.8 | G196: 22 | H196: 25 | I196: 879.8 | J196: - | K196: - | L196: 95,760.00 | M196: 4,788,000.00 | N196: - | O196: - | P196: - | Q196: - | R196: - | S196: - | T196: - | U196: -
A197: 长江新区(420130) | B197: 91420117MA49QE9U51 | C197: 武汉大合长盛国际供应链管理有限公司 | D197: 2026年6月 | E197: 102 | F197: 1,864.00 | G197: 47 | H197: 54 | I197: 1,852.00 | J197: 36 | K197: 1,245.00 | L197: 27,034.00 | M197: 9,298,676.00 | N197: 4,217.00 | O197: - | P197: - | Q197: - | R197: - | S197: - | T197: - | U197: -
A198: 长江新区(420130) | B198: 91420117MA4K29X08B | C198: 湖北迅凯达物流有限公司 | D198: 2026年6月 | E198: 74 | F198: 1,326.00 | G198: 35 | H198: 39 | I198: 1,326.00 | J198: - | K198: - | L198: 24,718.00 | M198: 7,148,330.00 | N198: - | O198: - | P198: - | Q198: - | R198: - | S198: - | T198: - | U198: -
A199: 长江新区(420130) | B199: 91420117MA4K4RU33N | C199: 武汉天珑号物流有限公司 | D199: 2026年6月 | E199: 56 | F199: 726.5 | G199: 34 | H199: 22 | I199: 726.5 | J199: - | K199: - | L199: 68,415.00 | M199: 8,965,099.00 | N199: - | O199: 68,415.00 | P199: - | Q199: - | R199: - | S199: - | T199: - | U199: -
A200: 长江新区(420130) | B200: 91420117MA4K4W1LXT | C200: 武汉南升汽车运输有限公司 | D200: 2026年6月 | E200: 215 | F200: 2,748.40 | G200: 70 | H200: 42 | I200: 1,358.20 | J200: - | K200: - | L200: 87,143.00 | M200: 27,401,270.00 | N200: - | O200: - | P200: - | Q200: - | R200: - | S200: - | T200: - | U200: -
... 437 more rows

Sheet 运政车辆
A1: 企业名称 | B1: 总牵引车数 | C1: 总挂车数 | D1: 其它车辆数 | E1: 挂车总吨位(吨) | F1: 其它车辆总吨位(吨)
A2: 安吉汽车物流（湖北）有限公司 | B2: 0 | C2: 96 | D2: 96 | E2: 1057.708 | F2: 871.56
A3: 安陆市乐顺建材有限公司 | B3: 22 | C3: 17 | D3: 11 | E3: 559.53 | F3: 156.21
A4: 邦达泰华供应链（黄石）有限公司 | B4: 14 | C4: 29 | D4: 2 | E4: 947.2 | F4: 24.35
A5: 保康县丰弛物流运输有限公司 | B5: 23 | C5: 20 | D5: 0 | E5: 665.86 | F5: 0
A6: 保康县恒丰物流有限公司 | B6: 42 | C6: 38 | D6: 0 | E6: 1271.39 | F6: 0
A7: 保康县华润物流有限公司 | B7: 35 | C7: 22 | D7: 0 | E7: 718 | F7: 0
A8: 保康县远成物流有限公司 | B8: 32 | C8: 11 | D8: 26 | E8: 359.7 | F8: 360.845
A9: 保康县鑫远鑫物流有限公司 | B9: 14 | C9: 25 | D9: 0 | E9: 828.73 | F9: 0
A10: 保康信义物流有限责任公司 | B10: 26 | C10: 26 | D10: 0 | E10: 858.7 | F10: 0
A11: 赤壁大润发仓储有限公司 | B11: 0 | C11: 55 | D11: 0 | E11: 1100 | F11: 0
A12: 赤壁市海通建材有限公司 | B12: 35 | C12: 34 | D12: 8 | E12: 1085.26 | F12: 99.43
A13: 赤壁市交投集团盛安物流有限公司 | B13: 30 | C13: 45 | D13: 75 | E13: 1292.2 | F13: 580.38
A14: 赤壁市任泽商贸有限公司 | B14: 17 | C14: 16 | D14: 30 | E14: 521.65 | F14: 278.395
A15: 崇阳县陆波汽车运输有限公司 | B15: 2 | C15: 1 | D15: 84 | E15: 33.2 | F15: 1081.51
A16: 大悟长缨运输有限公司 | B16: 1 | C16: 1 | D16: 47 | E16: 32.9 | F16: 627.075
A17: 大冶有色物流有限公司 | B17: 22 | C17: 24 | D17: 14 | E17: 729.5 | F17: 136.025
A18: 丹江口市禾源运输贸易有限公司 | B18: 14 | C18: 16 | D18: 1 | E18: 553.2 | F18: 7.48
A19: 丹江口市佳顺物流有限公司 | B19: 30 | C19: 28 | D19: 0 | E19: 971.6 | F19: 0
A20: 丹江口市津珊运输有限责任公司 | B20: 35 | C20: 32 | D20: 1 | E20: 1113.69 | F20: 1.495
A21: 丹江口市平步九洲运输有限公司 | B21: 24 | C21: 23 | D21: 0 | E21: 802.5 | F21: 0
A22: 丹江口市前程伟业物流贸易有限公司 | B22: 52 | C22: 55 | D22: 0 | E22: 1848.68 | F22: 0
A23: 丹江口市未来运输有限责任公司 | B23: 129 | C23: 21 | D23: 2 | E23: 674.5 | F23: 33.36
A24: 丹江口市亚洲运输有限责任公司 | B24: 26 | C24: 30 | D24: 1 | E24: 1044.72 | F24: 0.9
A25: 当阳市长盛运输有限公司 | B25: 30 | C25: 35 | D25: 0 | E25: 1121 | F25: 0
A26: 德邦（湖北）运输有限公司 | B26: 17 | C26: 0 | D26: 94 | E26: 0 | F26: 933.053
A27: 鄂州市富弘土石方工程有限公司 | B27: 0 | C27: 0 | D27: 65 | E27: 0 | F27: 349.05
A28: 鄂州市全顺燃气运输有限公司 | B28: 14 | C28: 15 | D28: 46 | E28: 496 | F28: 251.819
A29: 恩施鹏程物流有限公司 | B29: 42 | C29: 40 | D29: 11 | E29: 1365.13 | F29: 134.92
A30: 恩施市承红物流有限责任公司 | B30: 22 | C30: 25 | D30: 1 | E30: 819.6 | F30: 15.85
A31: 恩施州恒盛石化运输有限责任公司 | B31: 30 | C31: 29 | D31: 27 | E31: 932.5 | F31: 449.025
A32: 公安县楚运物流有限公司 | B32: 26 | C32: 23 | D32: 0 | E32: 773.45 | F32: 0
A33: 公安县三源物流有限公司 | B33: 30 | C33: 27 | D33: 61 | E33: 905.08 | F33: 776.355
A34: 公安县通运危险品运输有限公司 | B34: 55 | C34: 71 | D34: 13 | E34: 2202.345 | F34: 132.085
A35: 公安县维群物流有限公司 | B35: 41 | C35: 39 | D35: 0 | E35: 1282.61 | F35: 0
A36: 公安县新天龙汽车服务有限公司 | B36: 32 | C36: 23 | D36: 2 | E36: 759.2 | F36: 30.87
A37: 公安县源达汽车运输服务有限公司 | B37: 33 | C37: 33 | D37: 22 | E37: 1120.8 | F37: 280.84
A38: 谷城利通物流有限公司 | B38: 26 | C38: 22 | D38: 0 | E38: 733.4 | F38: 0
A39: 谷满仓道路运输（黄冈）有限公司 | B39: 32 | C39: 29 | D39: 1 | E39: 949.34 | F39: 8.07
A40: 广水鸿程物流有限公司 | B40: 0 | C40: 63 | D40: 0 | E40: 717.91 | F40: 0
A41: 广水市博硕物流运输有限公司 | B41: 0 | C41: 82 | D41: 4 | E41: 2751.1 | F41: 52.48
A42: 广水市联运达物流有限公司 | B42: 16 | C42: 33 | D42: 0 | E42: 1092 | F42: 0
A43: 广水市麒麟物资有限责任公司 | B43: 13 | C43: 103 | D43: 82 | E43: 961.93 | F43: 583.77
A44: 汉川市安心物流有限公司 | B44: 1 | C44: 1 | D44: 48 | E44: 33.7 | F44: 490.7
A45: 鸿蒙汽车服务（武汉）有限公司 | B45: 47 | C45: 38 | D45: 50 | E45: 1241.36 | F45: 746.23
A46: 洪湖市胜合道路运输有限公司 | B46: 2 | C46: 2 | D46: 93 | E46: 67.6 | F46: 532.17
A47: 洪湖市兴荣辉物流有限责任公司 | B47: 25 | C47: 23 | D47: 0 | E47: 743.16 | F47: 0
A48: 红安县常乐运输有限公司 | B48: 9 | C48: 4 | D48: 25 | E48: 132 | F48: 304.845
A49: 红安县交投物流服务有限公司 | B49: 0 | C49: 0 | D49: 50 | E49: 0 | F49: 714.49
A50: 湖北犇赢物流有限公司 | B50: 43 | C50: 41 | D50: 0 | E50: 1354.96 | F50: 0
A51: 湖北安捷楚道供应链有限公司 | B51: 34 | C51: 69 | D51: 22 | E51: 2312.37 | F51: 309.175
A52: 湖北安捷物流有限公司 | B52: 22 | C52: 27 | D52: 7 | E52: 895.97 | F52: 69.97
A53: 湖北安欣物流有限责任公司 | B53: 25 | C53: 42 | D53: 0 | E53: 1385.09 | F53: 0
A54: 湖北安卅物流有限公司 | B54: 6 | C54: 7 | D54: 20 | E54: 191.02 | F54: 177.076
A55: 湖北长方物流有限公司 | B55: 0 | C55: 23 | D55: 0 | E55: 791.9 | F55: 0
A56: 湖北长峡富烨绿电供应链有限公司 | B56: 14 | C56: 53 | D56: 3 | E56: 1627.27 | F56: 18.445
A57: 湖北辰昌汽车服务有限公司 | B57: 14 | C57: 42 | D57: 0 | E57: 1353.77 | F57: 0
A58: 湖北诚为物流有限公司 | B58: 0 | C58: 0 | D58: 66 | E58: 0 | F58: 372.295
A59: 湖北驰运天下物流运输有限公司 | B59: 87 | C59: 3 | D59: 3 | E59: 95 | F59: 55.8
A60: 湖北赤方物流有限公司 | B60: 7 | C60: 5 | D60: 39 | E60: 162.63 | F60: 448.31
A61: 湖北赤湾东方物流有限公司 | B61: 11 | C61: 612 | D61: 0 | E61: 21145.22 | F61: 0
A62: 湖北楚湘行物流有限公司 | B62: 63 | C62: 25 | D62: 5 | E62: 825.1 | F62: 79.82
A63: 湖北楚元石化物流有限公司 | B63: 42 | C63: 38 | D63: 9 | E63: 1235.1 | F63: 46.39
A64: 湖北大别山陆港物流有限公司 | B64: 20 | C64: 20 | D64: 30 | E64: 662.2 | F64: 138.1
A65: 湖北大通临空物流有限公司 | B65: 11 | C65: 19 | D65: 30 | E65: 614.32 | F65: 282.9
A66: 湖北大通物流有限公司 | B66: 18 | C66: 28 | D66: 9 | E66: 884.4 | F66: 56.83
A67: 湖北鼎旺物流有限公司 | B67: 62 | C67: 45 | D67: 6 | E67: 1504.34 | F67: 81.715
A68: 湖北东方物流服务有限公司 | B68: 2 | C68: 13 | D68: 58 | E68: 119.295 | F68: 558.49
A69: 湖北东神天神实业有限公司 | B69: 3 | C69: 3 | D69: 98 | E69: 98.5 | F69: 375.22
A70: 湖北鄂钢钢星汽车运输有限责任公司 | B70: 20 | C70: 34 | D70: 27 | E70: 1074.8 | F70: 185.465
A71: 湖北枫晟物流有限公司 | B71: 0 | C71: 0 | D71: 54 | E71: 0 | F71: 765.75
A72: 湖北供销惠侬物流运输有限公司 | B72: 0 | C72: 0 | D72: 85 | E72: 0 | F72: 176.12
A73: 湖北广运远道物流有限公司 | B73: 26 | C73: 34 | D73: 1 | E73: 1147.45 | F73: 16.34
A74: 湖北海通华宇贸易有限公司 | B74: 48 | C74: 26 | D74: 8 | E74: 852.5 | F74: 123.69
A75: 湖北海沃物流有限公司 | B75: 28 | C75: 22 | D75: 24 | E75: 717.34 | F75: 442.79
A76: 湖北海运物流运输有限公司 | B76: 42 | C76: 9 | D76: 0 | E76: 295.05 | F76: 0
A77: 湖北海韵通物流有限公司 | B77: 80 | C77: 64 | D77: 2 | E77: 2080.46 | F77: 35.81
A78: 湖北浩威汽车贸易有限公司 | B78: 0 | C78: 1 | D78: 68 | E78: 29.39 | F78: 792.275
A79: 湖北浩洲运输有限公司 | B79: 28 | C79: 34 | D79: 3 | E79: 1180.19 | F79: 26.98
A80: 湖北和兴供应链有限公司 | B80: 27 | C80: 36 | D80: 3 | E80: 1246.21 | F80: 27.975
A81: 湖北和远气体运输有限公司 | B81: 64 | C81: 296 | D81: 8 | E81: 9444.6 | F81: 116.46
A82: 湖北合兴包装印刷有限公司 | B82: 0 | C82: 0 | D82: 59 | E82: 0 | F82: 631.45
A83: 湖北衡诚物流有限公司 | B83: 46 | C83: 26 | D83: 28 | E83: 847.49 | F83: 391.1
A84: 湖北恒平汽车运输有限公司 | B84: 0 | C84: 59 | D84: 60 | E84: 581.9 | F84: 541.225
A85: 湖北恒泰汽车服务有限责任公司 | B85: 14 | C85: 29 | D85: 1 | E85: 926.8 | F85: 17.785
A86: 湖北鸿福锦物流有限公司 | B86: 34 | C86: 45 | D86: 4 | E86: 1485.45 | F86: 31.125
A87: 湖北鸿茂物流有限责任公司 | B87: 57 | C87: 37 | D87: 0 | E87: 1224.4 | F87: 0
A88: 湖北弘飞伟业物流有限公司 | B88: 21 | C88: 28 | D88: 0 | E88: 915.36 | F88: 0
A89: 湖北弘雷物流有限公司 | B89: 6 | C89: 27 | D89: 23 | E89: 300.9 | F89: 212.22
A90: 湖北红喜廷好运输有限公司 | B90: 44 | C90: 17 | D90: 17 | E90: 557.31 | F90: 201.975
A91: 湖北华耀昌顺物流有限责任公司 | B91: 12 | C91: 2 | D91: 37 | E91: 62.81 | F91: 434.095
A92: 湖北汇九寰供应链物流管理有限公司 | B92: 23 | C92: 27 | D92: 1 | E92: 897.81 | F92: 18.635
A93: 湖北汇宁物流股份有限公司 | B93: 25 | C93: 15 | D93: 8 | E93: 508.45 | F93: 36.5
A94: 湖北吉安达物流有限公司 | B94: 27 | C94: 26 | D94: 0 | E94: 862.54 | F94: 0
A95: 湖北佳星物流有限公司 | B95: 0 | C95: 0 | D95: 49 | E95: 0 | F95: 649
A96: 湖北捷安运输有限责任公司 | B96: 17 | C96: 33 | D96: 5 | E96: 1080.14 | F96: 39.115
A97: 湖北捷楚供应链管理有限公司 | B97: 10 | C97: 10 | D97: 28 | E97: 328.508 | F97: 304.335
A98: 湖北捷达供应链有限公司 | B98: 34 | C98: 22 | D98: 0 | E98: 715.74 | F98: 0
A99: 湖北捷龙交通运业有限公司 | B99: 8 | C99: 0 | D99: 114 | E99: 0 | F99: 601.231
A100: 湖北金博物流有限公司 | B100: 66 | C100: 59 | D100: 3 | E100: 1951.41 | F100: 50.905
A101: 湖北金叶储运有限公司 | B101: 31 | C101: 29 | D101: 46 | E101: 932.49 | F101: 557.759
A102: 湖北金鑫石油运输有限公司 | B102: 26 | C102: 26 | D102: 5 | E102: 861.22 | F102: 87.91
A103: 湖北进川物流有限公司 | B103: 51 | C103: 94 | D103: 0 | E103: 3053.34 | F103: 0
A104: 湖北荆飞马货物运输有限公司 | B104: 0 | C104: 0 | D104: 71 | E104: 0 | F104: 598.235
A105: 湖北京犇物流有限公司 | B105: 26 | C105: 38 | D105: 0 | E105: 1284.4 | F105: 0
A106: 湖北京邦达供应链科技有限公司 | B106: 120 | C106: 799 | D106: 135 | E106: 26285.58 | F106: 1299.86
A107: 湖北经纬国际货运有限公司 | B107: 26 | C107: 26 | D107: 60 | E107: 706.94 | F107: 545.2
A108: 湖北景迅安程物流有限公司 | B108: 43 | C108: 44 | D108: 0 | E108: 1393.83 | F108: 0
A109: 湖北靖栋土石方工程有限公司 | B109: 1 | C109: 0 | D109: 50 | E109: 0 | F109: 724.69
A110: 湖北九鼎物流有限公司 | B110: 32 | C110: 26 | D110: 2 | E110: 852.68 | F110: 30.71
A111: 湖北九通天然气有限公司 | B111: 30 | C111: 30 | D111: 0 | E111: 735.6 | F111: 0
A112: 湖北九原通危货运输有限公司 | B112: 23 | C112: 23 | D112: 5 | E112: 761.45 | F112: 42.305
A113: 湖北骏安翔物流有限公司 | B113: 17 | C113: 22 | D113: 34 | E113: 717.18 | F113: 397.695
A114: 湖北卡友汇物流有限公司 | B114: 20 | C114: 31 | D114: 23 | E114: 1015.57 | F114: 292.6
A115: 湖北凯赢运输有限公司 | B115: 20 | C115: 23 | D115: 2 | E115: 752 | F115: 32.095
A116: 湖北立晋物流有限公司 | B116: 52 | C116: 90 | D116: 0 | E116: 2990.19 | F116: 0
A117: 湖北力创物流有限公司 | B117: 30 | C117: 30 | D117: 0 | E117: 1013.52 | F117: 0
A118: 湖北联程中转物流有限公司 | B118: 23 | C118: 44 | D118: 2 | E118: 1398.08 | F118: 19.065
A119: 湖北龙帝良运运输有限公司 | B119: 26 | C119: 32 | D119: 27 | E119: 1003.65 | F119: 296.84
A120: 湖北龙鹏科技发展有限公司 | B120: 18 | C120: 28 | D120: 14 | E120: 907.6 | F120: 125.85
A121: 湖北民坤建筑工程有限公司 | B121: 0 | C121: 0 | D121: 79 | E121: 0 | F121: 1078.237
A122: 湖北牧运兴通物流有限公司 | B122: 32 | C122: 69 | D122: 93 | E122: 2180.86 | F122: 1607.345
A123: 湖北鹏达联合运输有限公司 | B123: 52 | C123: 48 | D123: 3 | E123: 1611.95 | F123: 15.03
A124: 湖北潜润物流有限公司 | B124: 43 | C124: 42 | D124: 1 | E124: 1377.05 | F124: 18.4
A125: 湖北氢动力科技服务有限公司 | B125: 1 | C125: 0 | D125: 157 | E125: 0 | F125: 143.9
A126: 湖北荣吉物流有限公司 | B126: 40 | C126: 31 | D126: 5 | E126: 1026.7 | F126: 69.245
A127: 湖北荣吉祥汽车销售有限公司 | B127: 0 | C127: 0 | D127: 116 | E127: 0 | F127: 1948.365
A128: 湖北荣运达物流有限公司 | B128: 35 | C128: 12 | D128: 0 | E128: 405.66 | F128: 0
A129: 湖北瑞福来汽车运输有限公司 | B129: 83 | C129: 57 | D129: 14 | E129: 1895.87 | F129: 181.95
A130: 湖北瑞锦供应链有限公司 | B130: 27 | C130: 12 | D130: 14 | E130: 208.5 | F130: 131.845
A131: 湖北瑞泰运输有限公司 | B131: 0 | C131: 5 | D131: 41 | E131: 164.58 | F131: 705.755
A132: 湖北锐耘物流有限公司 | B132: 17 | C132: 17 | D132: 25 | E132: 578.6 | F132: 178.125
A133: 湖北润璟化工有限公司 | B133: 67 | C133: 72 | D133: 0 | E133: 2322.1 | F133: 0
A134: 湖北省德敏物流有限公司 | B134: 23 | C134: 28 | D134: 4 | E134: 907.36 | F134: 60.101
A135: 湖北省锐驰供应链管理有限公司 | B135: 18 | C135: 55 | D135: 69 | E135: 1821.25 | F135: 1397.97
A136: 湖北省申瑞运输服务有限公司 | B136: 133 | C136: 10 | D136: 14 | E136: 360 | F136: 132.47
A137: 湖北省万钧驰运物流有限责任公司 | B137: 6 | C137: 6 | D137: 37 | E137: 191.19 | F137: 554.62
A138: 湖北省仙到家运输有限公司 | B138: 25 | C138: 25 | D138: 0 | E138: 819.84 | F138: 0
A139: 湖北省鑫佰通物流有限公司 | B139: 63 | C139: 12 | D139: 7 | E139: 396.9 | F139: 95.43
A140: 湖北双鸿物流有限公司 | B140: 52 | C140: 42 | D140: 1 | E140: 1324.7 | F140: 12.325
A141: 湖北双捷物流有限公司 | B141: 19 | C141: 39 | D141: 1 | E141: 1315.3 | F141: 15.5
A142: 湖北顺驰物流运输有限责任公司 | B142: 26 | C142: 26 | D142: 2 | E142: 833.1 | F142: 41.065
A143: 湖北顺丰运输有限公司 | B143: 141 | C143: 83 | D143: 64 | E143: 2385.45 | F143: 654.68
A144: 湖北顺时针供应链有限公司 | B144: 61 | C144: 67 | D144: 14 | E144: 2029.6 | F144: 137.42
A145: 湖北四海通达物流发展有限公司 | B145: 33 | C145: 23 | D145: 5 | E145: 666 | F145: 87
A146: 湖北索氏汽车贸易有限公司 | B146: 4 | C146: 2 | D146: 112 | E146: 66.2 | F146: 1376.835
A147: 湖北泰航汽车服务有限公司 | B147: 43 | C147: 26 | D147: 11 | E147: 877.85 | F147: 141.365
A148: 湖北腾晟远成物流发展有限公司 | B148: 35 | C148: 148 | D148: 3 | E148: 4690.34 | F148: 23.91
A149: 湖北通晟物流有限公司 | B149: 19 | C149: 17 | D149: 3 | E149: 526.64 | F149: 45.65
A150: 湖北拓峰市政工程有限公司 | B150: 0 | C150: 0 | D150: 55 | E150: 0 | F150: 762.735
A151: 湖北万品运输有限公司 | B151: 50 | C151: 51 | D151: 0 | E151: 1720.63 | F151: 0
A152: 湖北伟华物流有限公司 | B152: 25 | C152: 40 | D152: 0 | E152: 1318.59 | F152: 0
A153: 湖北祥远物流有限公司 | B153: 28 | C153: 25 | D153: 0 | E153: 839.17 | F153: 0
A154: 湖北欣怡物流供应链有限公司 | B154: 13 | C154: 14 | D154: 26 | E154: 486.92 | F154: 260.945
A155: 湖北星耀物流有限公司 | B155: 20 | C155: 13 | D155: 40 | E155: 196.55 | F155: 363.85
A156: 湖北兴道达物流有限公司 | B156: 36 | C156: 36 | D156: 0 | E156: 1037.946 | F156: 0
A157: 湖北行大道供应链管理有限公司 | B157: 24 | C157: 61 | D157: 25 | E157: 1972.56 | F157: 267.25
A158: 湖北迅凯达物流有限公司 | B158: 35 | C158: 39 | D158: 0 | E158: 1326 | F158: 0
A159: 湖北彦希供应链管理有限公司 | B159: 26 | C159: 19 | D159: 16 | E159: 624.48 | F159: 214.89
A160: 湖北扬航物流有限公司 | B160: 42 | C160: 36 | D160: 3 | E160: 1187.15 | F160: 44.61
A161: 湖北亿路发物流有限公司 | B161: 5 | C161: 47 | D161: 6 | E161: 1551.22 | F161: 70.875
A162: 湖北亿路顺物流有限公司 | B162: 2 | C162: 25 | D162: 24 | E162: 266.2 | F162: 228.3
A163: 湖北优达物流运输有限公司 | B163: 2 | C163: 2 | D163: 81 | E163: 68.6 | F163: 277.94
A164: 湖北雨泽天下物流有限公司 | B164: 15 | C164: 76 | D164: 3 | E164: 2054.47 | F164: 32.185
A165: 湖北誉源物流有限公司 | B165: 2 | C165: 2 | D165: 131 | E165: 65.35 | F165: 925.522
A166: 湖北訸运石化物流有限公司 | B166: 52 | C166: 59 | D166: 6 | E166: 1858.074 | F166: 60.985
A167: 湖北圆涔物流有限公司 | B167: 418 | C167: 1345 | D167: 0 | E167: 36525.559 | F167: 0
A168: 湖北云起物流有限公司 | B168: 46 | C168: 42 | D168: 0 | E168: 1422.7 | F168: 0
A169: 湖北云信多式联运有限公司 | B169: 31 | C169: 37 | D169: 0 | E169: 1234.9 | F169: 0
A170: 湖北正宏物流发展有限公司 | B170: 106 | C170: 82 | D170: 7 | E170: 2673.38 | F170: 98.355
A171: 湖北志豪吉晟物流有限公司 | B171: 35 | C171: 35 | D171: 0 | E171: 1131.1 | F171: 0
A172: 湖北中德盛物流有限公司 | B172: 64 | C172: 45 | D172: 40 | E172: 1472.92 | F172: 535.8
A173: 湖北中飞盛物流有限公司 | B173: 29 | C173: 24 | D173: 4 | E173: 790.3 | F173: 50.07
A174: 湖北中凯运输有限公司 | B174: 4 | C174: 4 | D174: 43 | E174: 142.4 | F174: 433.61
A175: 湖北中可盛物流有限公司 | B175: 36 | C175: 37 | D175: 22 | E175: 1220.42 | F175: 327.635
A176: 湖北中升运输有限公司 | B176: 30 | C176: 30 | D176: 0 | E176: 961 | F176: 0
A177: 湖北中卓盛物流有限公司 | B177: 53 | C177: 45 | D177: 32 | E177: 1473.35 | F177: 458.52
A178: 湖北众垚土石方工程有限公司 | B178: 0 | C178: 0 | D178: 50 | E178: 0 | F178: 631.235
A179: 湖北众成汽车服务有限公司 | B179: 191 | C179: 119 | D179: 10 | E179: 3987.8 | F179: 129.695
A180: 湖北众合盛物流有限公司 | B180: 59 | C180: 16 | D180: 105 | E180: 531.65 | F180: 1286.865
A181: 湖北众旺达物流有限公司 | B181: 63 | C181: 9 | D181: 12 | E181: 299.9 | F181: 141.47
A182: 湖北周正物流有限公司 | B182: 35 | C182: 47 | D182: 0 | E182: 1526.6 | F182: 0
A183: 湖北蕲春安捷物流有限公司 | B183: 19 | C183: 8 | D183: 121 | E183: 262.3 | F183: 1336.8777
A184: 湖北珑鑫道路运输有限公司 | B184: 3 | C184: 3 | D184: 45 | E184: 98.6 | F184: 590.325
A185: 湖北鑫开源汽车服务有限公司 | B185: 57 | C185: 8 | D185: 21 | E185: 215.95 | F185: 241.08
A186: 湖北鑫润物流有限公司 | B186: 76 | C186: 101 | D186: 0 | E186: 3314.12 | F186: 0
A187: 湖北鑫欣物流有限公司 | B187: 19 | C187: 14 | D187: 15 | E187: 448.8 | F187: 229.345
A188: 黄冈长九物流运输有限公司 | B188: 28 | C188: 24 | D188: 10 | E188: 785.4 | F188: 129.975
A189: 黄冈道安汽车咨询服务有限公司 | B189: 12 | C189: 6 | D189: 53 | E189: 194.3 | F189: 733.525
A190: 黄冈启程物流有限公司 | B190: 72 | C190: 115 | D190: 23 | E190: 4005.55 | F190: 352.92
A191: 黄冈市宝信汽车咨询服务有限公司 | B191: 27 | C191: 13 | D191: 4 | E191: 409.6 | F191: 45.79
A192: 黄冈市驰骏商贸有限公司 | B192: 5 | C192: 19 | D192: 37 | E192: 634.28 | F192: 494.54
A193: 黄冈市东捷物流有限公司 | B193: 25 | C193: 25 | D193: 0 | E193: 542.9 | F193: 0
A194: 黄冈市黄州益民运输有限责任公司 | B194: 25 | C194: 28 | D194: 26 | E194: 913.92 | F194: 179.28
A195: 黄冈市龙兴物流运输有限公司 | B195: 0 | C195: 0 | D195: 52 | E195: 0 | F195: 173.79
A196: 黄冈市隆顺汽车运输有限公司 | B196: 15 | C196: 0 | D196: 64 | E196: 0 | F196: 869.035
A197: 黄冈市铭达汽车咨询服务有限公司 | B197: 39 | C197: 4 | D197: 44 | E197: 132 | F197: 627.87
A198: 黄冈市如峰汽车咨询服务有限公司 | B198: 24 | C198: 65 | D198: 25 | E198: 2039.13 | F198: 208.765
A199: 黄冈市如顺商贸有限公司 | B199: 6 | C199: 4 | D199: 30 | E199: 127.7 | F199: 421.22
A200: 黄冈市瑞驰商贸有限公司 | B200: 1 | C200: 2 | D200: 28 | E200: 65.9 | F200: 193.195
... 436 more rows

Sheet 轨迹里程
B1: 企业名称 | C1: 月度总里程(公里) | D1: 有里程的车辆数
A2: 1 | B2: 湖北中升运输有限公司 | C2: 150427.03 | D2: 29
A3: 2 | B3: 十堰市鑫顺物流有限公司 | C3: 613745.3 | D3: 203
A4: 3 | B4: 湖北顺丰运输有限公司 | C4: 3764510.28 | D4: 201
A5: 4 | B5: 荆州市佰安运输有限公司 | C5: 121261.69 | D5: 27
A6: 5 | B6: 湖北红喜廷好运输有限公司 | C6: 181653.12 | D6: 42
A7: 6 | B7: 湖北衡诚物流有限公司 | C7: 240813.84 | D7: 70
A8: 7 | B8: 武汉顺国物流有限公司 | C8: 240886.14 | D8: 67
A9: 8 | B9: 英山吉祥物流有限公司 | C9: 163188.46 | D9: 25
A10: 9 | B10: 黄梅县万通汽车咨询服务有限公司 | C10: 180081.14 | D10: 56
A11: 10 | B11: 随州利扬物流有限公司 | C11: 279991.8 | D11: 44
A12: 11 | B12: 湖北众合盛物流有限公司 | C12: 546850.89 | D12: 145
A13: 12 | B13: 宜城市鸿运通达物流有限公司 | C13: 260504.59 | D13: 44
A14: 13 | B14: 武汉市锦华物流有限公司 | C14: 519485.49 | D14: 123
A15: 14 | B15: 荆州市扬航物流有限公司 | C15: 152753.49 | D15: 48
A16: 15 | B16: 枣阳市成立建筑工程机械租赁有限公司 | C16: 103346.89 | D16: 61
A17: 16 | B17: 武汉荣达通物流有限公司 | C17: 369227.22 | D17: 89
A18: 17 | B18: 武汉恒平物流有限公司 | C18: 694978.3 | D18: 64
A19: 18 | B19: 武汉市亦政堂物流有限公司 | C19: 185560.21 | D19: 78
A20: 19 | B20: 宜昌鸿隆建设工程有限公司 | C20: 102532.06 | D20: 55
A21: 20 | B21: 黄冈市宇翔汽车运输有限公司 | C21: 47374.25 | D21: 16
A22: 21 | B22: 武汉天珑号物流有限公司 | C22: 146303.72 | D22: 33
A23: 22 | B23: 武汉恒达远供应链有限公司 | C23: 376717.69 | D23: 89
A24: 23 | B24: 武汉市鸿乐物流有限公司 | C24: 436664.3 | D24: 119
A25: 24 | B25: 湖北海沃物流有限公司 | C25: 211169.35 | D25: 47
A26: 25 | B26: 湖北京邦达供应链科技有限公司 | C26: 5529369.65 | D26: 317
A27: 26 | B27: 湖北正宏物流发展有限公司 | C27: 549526.16 | D27: 108
A28: 27 | B28: 武汉乐康物流有限公司 | C28: 511315.56 | D28: 49
A29: 28 | B29: 湖北索氏汽车贸易有限公司 | C29: 567379.39 | D29: 102
A30: 29 | B30: 宜昌至盛物流有限公司 | C30: 192111.87 | D30: 41
A31: 30 | B31: 武汉诺佳物流有限公司 | C31: 536628.74 | D31: 137
A32: 31 | B32: 宜昌华程供应链管理有限公司 | C32: 1518251.89 | D32: 168
A33: 32 | B33: 宜昌赣宜汽车运输有限公司 | C33: 81584.07 | D33: 24
A34: 33 | B34: 湖北潜润物流有限公司 | C34: 173934.2 | D34: 43
A35: 34 | B35: 武汉安顺容通物流有限公司 | C35: 53392.01 | D35: 27
A36: 35 | B36: 湖北鑫润物流有限公司 | C36: 639432.72 | D36: 73
A37: 36 | B37: 荆门市巨源化工有限公司 | C37: 505879.78 | D37: 56
A38: 37 | B38: 湖北供销惠侬物流运输有限公司 | C38: 31418.18 | D38: 82
A39: 38 | B39: 武汉祺瑞达物流有限责任公司 | C39: 81002.04 | D39: 33
A40: 39 | B40: 宜昌市亿源国油运输有限责任公司 | C40: 157354.71 | D40: 34
A41: 40 | B41: 钟祥市兆领汽车运输有限公司 | C41: 70013.43 | D41: 33
A42: 41 | B42: 武汉轩通运输有限公司 | C42: 65187.14 | D42: 19
A43: 42 | B43: 湖北瑞福来汽车运输有限公司 | C43: 328905.08 | D43: 82
A44: 43 | B44: 武汉市兴叶联合物流有限公司 | C44: 515222.42 | D44: 36
A45: 44 | B45: 湖北瑞锦供应链有限公司 | C45: 330453.46 | D45: 39
A46: 45 | B46: 黄石东顺物流有限公司 | C46: 484765.27 | D46: 70
A47: 46 | B47: 襄阳市顺顺顺汽车服务有限公司 | C47: 115547.94 | D47: 25
A48: 47 | B48: 武汉誉川丰物流有限公司 | C48: 126340.66 | D48: 55
A49: 48 | B49: 湖北楚湘行物流有限公司 | C49: 300437.47 | D49: 58
A50: 49 | B50: 武汉钢铁集团物流有限公司 | C50: 188468.17 | D50: 71
A51: 50 | B51: 湖北和远气体运输有限公司 | C51: 718596.86 | D51: 72
A52: 51 | B52: 枝江市宁港物流有限公司 | C52: 132397.94 | D52: 67
A53: 52 | B53: 湖北枫晟物流有限公司 | C53: 246731.64 | D53: 53
A54: 53 | B54: 赤壁市交投集团盛安物流有限公司 | C54: 346873.28 | D54: 104
A55: 54 | B55: 黄冈市东捷物流有限公司 | C55: 188583.25 | D55: 25
A56: 55 | B56: 湖北和兴供应链有限公司 | C56: 254654.01 | D56: 30
A57: 56 | B57: 武穴市志达道路运输有限公司 | C57: 78118.5 | D57: 29
A58: 57 | B58: 孝感运通商贸物流有限公司 | C58: 570504.31 | D58: 54
A59: 58 | B59: 湖北安卅物流有限公司 | C59: 95207.79 | D59: 26
A60: 59 | B60: 当阳市长盛运输有限公司 | C60: 287366.32 | D60: 28
A61: 60 | B61: 武汉市聚运通物流有限公司 | C61: 56829.44 | D61: 16
A62: 61 | B62: 湖北长峡富烨绿电供应链有限公司 | C62: 105415.19 | D62: 16
A63: 62 | B63: 武汉市港兴汽车运输有限公司 | C63: 91695.78 | D63: 40
A64: 63 | B64: 公安县新天龙汽车服务有限公司 | C64: 233693.12 | D64: 34
A65: 64 | B65: 老河口远安达物流有限公司 | C65: 5894.87 | D65: 2
A66: 65 | B66: 湖北祥远物流有限公司 | C66: 209944.48 | D66: 28
A67: 66 | B67: 武汉捷赢汽车销售有限公司 | C67: 121109.98 | D67: 40
A68: 67 | B68: 荆州市吉达集装箱运输有限公司 | C68: 64164.12 | D68: 31
A69: 68 | B69: 潜江市驰鸿顺运输有限公司 | C69: 106207.1 | D69: 26
A70: 69 | B70: 宜昌金泽夯森化工有限公司 | C70: 247463.17 | D70: 29
A71: 70 | B71: 随州兆希物流有限公司 | C71: 21844.05 | D71: 11
A72: 71 | B72: 黄冈市瑞驰商贸有限公司 | C72: 7778.49 | D72: 5
A73: 72 | B73: 武汉润邦天下供应链有限公司 | C73: 391745.92 | D73: 47
A74: 73 | B74: 宜昌市宏泰运输有限公司 | C74: 1250030.03 | D74: 80
A75: 74 | B75: 武汉鑫速飞达物流有限公司 | C75: 256712.56 | D75: 54
A76: 75 | B76: 黄石市骏腾物流有限责任公司 | C76: 272376.93 | D76: 41
A77: 76 | B77: 恩施州恒盛石化运输有限责任公司 | C77: 256212.23 | D77: 56
A78: 77 | B78: 武汉世纪胜航物流有限公司 | C78: 328850.1 | D78: 88
A79: 78 | B79: 荆门丰辉运输有限公司 | C79: 454189.9 | D79: 85
A80: 79 | B80: 湖北众成汽车服务有限公司 | C80: 1084403.02 | D80: 177
A81: 80 | B81: 枣阳市金佳茗物流有限公司 | C81: 1380466.13 | D81: 107
A82: 81 | B82: 武汉市京顺达物流有限公司 | C82: 390215.94 | D82: 64
A83: 82 | B83: 武汉市泽盛物流有限公司 | C83: 287140.62 | D83: 112
A84: 83 | B84: 江陵县祥林运输有限公司 | C84: 170297.73 | D84: 31
A85: 84 | B85: 荆门市民丰科技有限责任公司 | C85: 460250.23 | D85: 86
A86: 85 | B86: 武汉启正汽车服务有限公司 | C86: 191857.92 | D86: 50
A87: 86 | B87: 黄梅县鸿联汽车销售服务有限公司 | C87: 452765.69 | D87: 79
A88: 87 | B88: 武汉欣源易通汽车运输有限公司 | C88: 39278.07 | D88: 24
A89: 88 | B89: 宜昌晟达物流有限公司 | C89: 247484.97 | D89: 43
A90: 89 | B90: 荆州市顺泽汽车运输服务有限公司 | C90: 218266.97 | D90: 46
A91: 90 | B91: 襄阳市优太汽车运输有限公司 | C91: 269926.46 | D91: 63
A92: 91 | B92: 宜昌民祥工贸有限责任公司 | C92: 239550.1 | D92: 42
A93: 92 | B93: 湖北赤湾东方物流有限公司 | C93: 11362.58 | D93: 11
A94: 93 | B94: 宜昌实华商贸有限责任公司 | C94: 358448.75 | D94: 47
A95: 94 | B95: 武汉中铁伊通物流有限公司 | C95: 60307.61 | D95: 45
A96: 95 | B96: 湖北鄂钢钢星汽车运输有限责任公司 | C96: 106755.11 | D96: 47
A97: 96 | B97: 宜昌金路物流有限公司 | C97: 66947.06 | D97: 23
A98: 97 | B98: 湖北拓峰市政工程有限公司 | C98: 71287.76 | D98: 46
A99: 98 | B99: 武汉神龙物流有限公司 | C99: 110597.16 | D99: 31
A100: 99 | B100: 湖北蕲春安捷物流有限公司 | C100: 274336.49 | D100: 64
A101: 100 | B101: 武汉鸿锦源物流有限公司 | C101: 124809.17 | D101: 45
A102: 101 | B102: 湖北龙鹏科技发展有限公司 | C102: 154503.59 | D102: 32
A103: 102 | B103: 武穴市陆顺汽车运输有限公司 | C103: 165133.51 | D103: 62
A104: 103 | B104: 宜昌市江煜物流供应链有限公司 | C104: 71609.68 | D104: 22
A105: 104 | B105: 湖北鑫欣物流有限公司 | C105: 130958.85 | D105: 29
A106: 105 | B106: 钟祥市鑫泰物流有限公司 | C106: 321651.99 | D106: 50
A107: 106 | B107: 阳新县顺发运输有限责任公司 | C107: 69047.72 | D107: 13
A108: 107 | B108: 襄阳吉通达运输有限公司 | C108: 173856.78 | D108: 32
A109: 108 | B109: 武汉市长松物流配送有限公司 | C109: 203044.65 | D109: 31
A110: 109 | B110: 武汉佑通物流有限公司 | C110: 155552.24 | D110: 33
A111: 110 | B111: 武汉航达顺物流有限公司 | C111: 136628.85 | D111: 40
A112: 111 | B112: 湖北省德敏物流有限公司 | C112: 135099.9 | D112: 27
A113: 112 | B113: 武汉盛广佳仁物流有限公司 | C113: 229673.7 | D113: 56
A114: 113 | B114: 武汉市永强物流有限公司 | C114: 106106.6 | D114: 49
A115: 114 | B115: 湖北欣怡物流供应链有限公司 | C115: 209598.19 | D115: 38
A116: 115 | B116: 保康县远成物流有限公司 | C116: 138516.5 | D116: 47
A117: 116 | B117: 神农架双利物流有限公司 | C117: 239460.81 | D117: 44
A118: 117 | B118: 武汉市华春物流有限公司 | C118: 26880.8 | D118: 23
A119: 118 | B119: 枝江雅文商贸有限公司 | C119: 74111.24 | D119: 24
A120: 119 | B120: 湖北牧运兴通物流有限公司 | C120: 726113.68 | D120: 105
A121: 120 | B121: 武汉俊易发物流有限公司 | C121: 349594.57 | D121: 47
A122: 121 | B122: 湖北兴道达物流有限公司 | C122: 255011.37 | D122: 36
A123: 122 | B123: 湖北海运物流运输有限公司 | C123: 117358.87 | D123: 42
A124: 123 | B124: 宜昌市瑞弘物流有限公司 | C124: 174719.5 | D124: 34
A125: 124 | B125: 湖北恒平汽车运输有限公司 | C125: 626798.75 | D125: 57
A126: 125 | B126: 孝感宏力汽车运输有限公司 | C126: 432873.15 | D126: 73
A127: 126 | B127: 公安县楚运物流有限公司 | C127: 151510.78 | D127: 25
A128: 127 | B128: 宜城市楚风物流有限公司 | C128: 332591.83 | D128: 67
A129: 128 | B129: 枣阳市车多顺运输有限公司 | C129: 233182.63 | D129: 27
A130: 129 | B130: 武汉顺之富物流有限公司 | C130: 336483.47 | D130: 86
A131: 130 | B131: 谷满仓道路运输（黄冈）有限公司 | C131: 229300.02 | D131: 27
A132: 131 | B132: 九州通医药集团物流有限公司 | C132: 138998.94 | D132: 27
A133: 132 | B133: 保康县华润物流有限公司 | C133: 73693.2 | D133: 23
A134: 133 | B134: 湖北安捷物流有限公司 | C134: 168857.86 | D134: 24
A135: 134 | B135: 武穴市安泰道路运输有限公司 | C135: 28383.5 | D135: 26
A136: 135 | B136: 湖北亿路顺物流有限公司 | C136: 88811.12 | D136: 24
A137: 136 | B137: 武汉盛世康供应链管理有限公司 | C137: 195315.73 | D137: 25
A138: 137 | B138: 荆门顺龙运输有限公司 | C138: 168932.38 | D138: 20
A139: 138 | B139: 武汉吉永康物流有限公司 | C139: 280801.17 | D139: 73
A140: 139 | B140: 宜昌华贵土石方工程有限公司 | C140: 99253.35 | D140: 46
A141: 140 | B141: 武汉程安商贸有限公司 | C141: 118590.77 | D141: 32
A142: 141 | B142: 湖北省仙到家运输有限公司 | C142: 119248.52 | D142: 20
A143: 142 | B143: 武汉威伟机械设备实业有限公司 | C143: 225470.46 | D143: 44
A144: 143 | B144: 荆门市金鸿和瑞燃气有限公司 | C144: 334944.61 | D144: 46
A145: 144 | B145: 荆州市宏达盛物流股份有限公司 | C145: 1336805.84 | D145: 120
A146: 145 | B146: 公安县源达汽车运输服务有限公司 | C146: 292939.49 | D146: 55
A147: 146 | B147: 德邦（湖北）运输有限公司 | C147: 902192.7 | D147: 108
A148: 147 | B148: 湖北九原通危货运输有限公司 | C148: 95213.39 | D148: 28
A149: 148 | B149: 武汉市隆顺汽车运输有限公司 | C149: 191302.63 | D149: 72
A150: 149 | B150: 武汉西马钢铁物流有限公司 | C150: 561863.62 | D150: 201
A151: 150 | B151: 武汉云洋缘物流有限公司 | C151: 201637.63 | D151: 57
A152: 151 | B152: 湖北经纬国际货运有限公司 | C152: 154641.32 | D152: 85
A153: 152 | B153: 湖北景迅安程物流有限公司 | C153: 106416.23 | D153: 40
A154: 153 | B154: 武汉市中南物流配送有限公司 | C154: 423530.18 | D154: 119
A155: 154 | B155: 湖北腾晟远成物流发展有限公司 | C155: 328877.17 | D155: 31
A156: 155 | B156: 黄石鑫旺物流有限公司 | C156: 824930.44 | D156: 130
A157: 156 | B157: 宜昌达利货物运输有限公司 | C157: 108250.67 | D157: 36
A158: 157 | B158: 钟祥市兴达物流有限公司 | C158: 684257.4 | D158: 121
A159: 158 | B159: 武汉华丁元国际物流有限公司 | C159: 103719.68 | D159: 38
A160: 159 | B160: 天门天运汽车服务有限公司 | C160: 210630.24 | D160: 70
A161: 160 | B161: 武汉望道物流有限公司 | C161: 336983.72 | D161: 78
A162: 161 | B162: 武汉福鑫高照物流有限公司 | C162: 154119.85 | D162: 92
A163: 162 | B163: 湖北省锐驰供应链管理有限公司 | C163: 275085.28 | D163: 77
A164: 163 | B164: 襄阳九州悦途物流有限公司 | C164: 416360.87 | D164: 53
A165: 164 | B165: 随州万润物流运输有限公司 | C165: 80758.92 | D165: 41
A166: 165 | B166: 武汉瑞丰源物流有限公司 | C166: 220240.12 | D166: 98
A167: 166 | B167: 湖北捷安运输有限责任公司 | C167: 133569.07 | D167: 22
A168: 167 | B168: 恩施市承红物流有限责任公司 | C168: 130290.18 | D168: 22
A169: 168 | B169: 武汉君之友汽车服务有限公司 | C169: 246292.66 | D169: 66
A170: 169 | B170: 武汉市兴荣汽车运输有限公司 | C170: 340629.35 | D170: 122
A171: 170 | B171: 武汉隆腾盛物流有限公司 | C171: 172131.84 | D171: 42
A172: 171 | B172: 阳新胜发物流有限公司 | C172: 194056.85 | D172: 53
A173: 172 | B173: 湖北京犇物流有限公司 | C173: 190229.44 | D173: 26
A174: 173 | B174: 湖北凯赢运输有限公司 | C174: 99664.76 | D174: 21
A175: 174 | B175: 湖北力创物流有限公司 | C175: 144430.94 | D175: 30
A176: 175 | B176: 武汉市泽恩物流有限公司 | C176: 162457.84 | D176: 42
A177: 176 | B177: 襄阳顺驰达物流有限公司 | C177: 99111.63 | D177: 27
A178: 177 | B178: 湖北浩洲运输有限公司 | C178: 122752.43 | D178: 30
A179: 178 | B179: 武汉盛联华物流有限公司 | C179: 78380.46 | D179: 36
A180: 179 | B180: 通城县路畅通运输有限公司 | C180: 37384.89 | D180: 33
A181: 180 | B181: 宜昌鑫昌达物流有限公司 | C181: 187844.91 | D181: 34
A182: 181 | B182: 湖北周正物流有限公司 | C182: 210320.73 | D182: 30
A183: 182 | B183: 公安县维群物流有限公司 | C183: 329247.68 | D183: 41
A184: 183 | B184: 武汉市瑞业天祥物流有限公司 | C184: 143172.85 | D184: 29
A185: 184 | B185: 黄梅广通汽车运输有限公司 | C185: 110987.91 | D185: 34
A186: 185 | B186: 钟祥市鼎盛物流有限公司 | C186: 500106.74 | D186: 86
A187: 186 | B187: 武汉汇义丰汽车服务有限公司 | C187: 186647.27 | D187: 46
A188: 187 | B188: 湖北金鑫石油运输有限公司 | C188: 127531.98 | D188: 31
A189: 188 | B189: 南漳龙蟒磷制品有限责任公司 | C189: 109756.3 | D189: 36
A190: 189 | B190: 随州万鼎物流有限公司 | C190: 25765.15 | D190: 17
A191: 190 | B191: 湖北伟华物流有限公司 | C191: 82278.05 | D191: 23
A192: 191 | B192: 荆州市华鑫汽车运输有限公司 | C192: 315199.8 | D192: 47
A193: 192 | B193: 湖北众垚土石方工程有限公司 | C193: 48069.65 | D193: 40
A194: 193 | B194: 黄冈启程物流有限公司 | C194: 329695.42 | D194: 71
A195: 194 | B195: 钟祥市四喜物流有限公司 | C195: 420737.58 | D195: 59
A196: 195 | B196: 湖北广运远道物流有限公司 | C196: 94748.66 | D196: 27
A197: 196 | B197: 湖北双捷物流有限公司 | C197: 125967.37 | D197: 20
A198: 197 | B198: 武穴市春盛汽车运输有限公司 | C198: 214092.49 | D198: 59
A199: 198 | B199: 武汉大合长盛国际供应链管理有限公司 | C199: 277487.53 | D199: 45
A200: 199 | B200: 湖北省万钧驰运物流有限责任公司 | C200: 40914.62 | D200: 32
... 429 more rows

Sheet 规上规下拆分表格
A1: 2026年6月各市州运输量明细表
A2: 市州 | B2: 规上企业运输量 | F2: 规下运输量 | J2: 运输量（规上+规下）
B3: 周转量 | C3: 排名 | D3: 同比 | E3: 增速排名 | F3: 周转量 | G3: 排名 | H3: 同比 | I3: 增速排名 | J3: 周转量 | K3: 排名 | L3: 同比 | M3: 增速排名
A4: 武汉市 | B4: 241660 | C4: 1 | D4: -0.8% | E4: 7 | F4: 445444 | G4: 1 | H4: 2.6% | I4: 11 | J4: 687104 | K4: 1 | L4: 1.4% | M4: 10
A5: 黄石市 | B5: 16045 | C5: 8 | D5: -20.9% | E5: 13 | F5: 33122 | G5: 10 | H5: 17.2% | I5: 3 | J5: 49167 | K5: 11 | L5: 1.3% | M5: 11
A6: 十堰市 | B6: 3954 | C6: 14 | D6: -1.4% | E6: 8 | F6: 41388 | G6: 8 | H6: 2.5% | I6: 12 | J6: 45342 | K6: 12 | L6: 2.2% | M6: 4
A7: 宜昌市 | B7: 69261 | C7: 4 | D7: 0.2% | E7: 6 | F7: 56518 | G7: 7 | H7: 0.9% | I7: 13 | J7: 125779 | K7: 7 | L7: 0.5% | M7: 13
A8: 襄阳市 | B8: 99449 | C8: 3 | D8: -16.8% | E8: 12 | F8: 436161 | G8: 2 | H8: 6.0% | I8: 7 | J8: 535610 | K8: 2 | L8: 0.8% | M8: 12
A9: 鄂州市 | B9: 4837 | C9: 13 | D9: -47.0% | E9: 16 | F9: 10175 | G9: 16 | H9: 61.5% | I9: 2 | J9: 15012 | K9: 16 | L9: -2.7% | M9: 16
A10: 荆门市 | B10: 23590 | C10: 7 | D10: -14.5% | E10: 11 | F10: 104495 | G10: 5 | H10: 6.0% | I10: 6 | J10: 128085 | K10: 5 | L10: 1.5% | M10: 9
A11: 孝感市 | B11: 31955 | C11: 6 | D11: 11.4% | E11: 3 | F11: 18848 | G11: 13 | H11: -14.9% | I11: 16 | J11: 50803 | K11: 10 | L11: -0.1% | M11: 15
A12: 荆州市 | B12: 54790 | C12: 5 | D12: -6.1% | E12: 10 | F12: 110390 | G12: 4 | H12: 6.2% | I12: 5 | J12: 165180 | K12: 3 | L12: 1.8% | M12: 6
A13: 黄冈市 | B13: 99635 | C13: 2 | D13: 14.7% | E13: 2 | F13: 28313 | G13: 11 | H13: -22.6% | I13: 17 | J13: 127948 | K13: 6 | L13: 3.6% | M13: 3
A14: 咸宁市 | B14: 10863 | C14: 11 | D14: -4.4% | E14: 9 | F14: 40874 | G14: 9 | H14: 3.4% | I14: 9 | J14: 51736 | K14: 9 | L14: 1.6% | M14: 8
A15: 随州市 | B15: 14081 | C15: 10 | D15: -39.9% | E15: 15 | F15: 116852 | G15: 3 | H15: 15.6% | I15: 4 | J15: 130934 | K15: 4 | L15: 5.2% | M15: 1
A16: 恩施市 | B16: 721 | C16: 16 | D16: 49.8% | E16: 1 | F16: 59389 | G16: 6 | H16: -0.3% | I16: 14 | J16: 60110 | K16: 8 | L16: 0.1% | M16: 14
A17: 仙桃市 | B17: 1457 | C17: 15 | D17: -24.8% | E17: 14 | F17: 15995 | G17: 15 | H17: 5.1% | I17: 8 | J17: 17452 | K17: 15 | L17: 1.7% | M17: 7
A18: 潜江市 | B18: 14872 | C18: 9 | D18: 4.9% | E18: 5 | F18: 17746 | G18: 14 | H18: -0.5% | I18: 15 | J18: 32618 | K18: 13 | L18: 1.9% | M18: 5
A19: 天门 | B19: 5371 | C19: 12 | D19: 9.2% | E19: 4 | F19: 26212 | G19: 12 | H19: 2.8% | I19: 10 | J19: 31583 | K19: 14 | L19: 3.8% | M19: 2
A20: 林区 | B20: 274 | C20: 17 | D20: -75.4% | E20: 17 | F20: 981 | G20: 17 | H20: 310.6% | I20: 1 | J20: 1255 | K20: 17 | L20: -7.4% | M20: 17
A21: 全省 | B21: 692814 | D21: -4.4% | F21: 1562903 | H21: 4.4% | J21: 2255717 | L21: 1.5%
A23: 2026年6月累计各市州运输量明细表
A24: 市州 | B24: 规上企业运输量 | F24: 规下运输量 | J24: 运输量（规上+规下）
B25: 周转量 | C25: 排名 | D25: 同比 | E25: 增速排名 | F25: 周转量 | G25: 排名 | H25: 同比 | I25: 增速排名 | J25: 周转量 | K25: 排名 | L25: 同比 | M25: 增速排名
A26: 武汉市 | B26: 1235761 | C26: 1 | D26: -10.3% | E26: 9 | F26: 2692207 | G26: 1 | H26: 2.8% | I26: 7 | J26: 3927968 | K26: 1 | L26: -1.7% | M26: 15
A27: 黄石市 | B27: 102905 | C27: 8 | D27: -19.0% | E27: 12 | F27: 181022 | G27: 11 | H27: 13.9% | I27: 3 | J27: 283926 | K27: 11 | L27: -0.7% | M27: 11
A28: 十堰市 | B28: 23110 | C28: 13 | D28: -7.6% | E28: 8 | F28: 254333 | G28: 8 | H28: 2.2% | I28: 10 | J28: 277443 | K28: 12 | L28: 1.3% | M28: 2
A29: 宜昌市 | B29: 394891 | C29: 4 | D29: 7.2% | E29: 5 | F29: 300889 | G29: 7 | H29: -10.5% | I29: 15 | J29: 695779 | K29: 7 | L29: -1.3% | M29: 12
A30: 襄阳市 | B30: 500109 | C30: 3 | D30: -15.7% | E30: 11 | F30: 2566987 | G30: 2 | H30: 1.5% | I30: 12 | J30: 3067096 | K30: 2 | L30: -1.7% | M30: 14
A31: 鄂州市 | B31: 30498 | C31: 12 | D31: -47.9% | E31: 15 | F31: 58156 | G31: 16 | H31: 63.7% | I31: 1 | J31: 88654 | K31: 16 | L31: -5.7% | M31: 17
A32: 荆门市 | B32: 130878 | C32: 7 | D32: -14.8% | E32: 10 | F32: 634416 | G32: 5 | H32: 4.0% | I32: 6 | J32: 765294 | K32: 4 | L32: 0.2% | M32: 7
A33: 孝感市 | B33: 173194 | C33: 6 | D33: 13.2% | E33: 4 | F33: 121388 | G33: 13 | H33: -18.3% | I33: 16 | J33: 294583 | K33: 10 | L33: -2.3% | M33: 16
A34: 荆州市 | B34: 333204 | C34: 5 | D34: 0.3% | E34: 6 | F34: 645692 | G34: 4 | H34: 2.4% | I34: 9 | J34: 978896 | K34: 3 | L34: 1.7% | M34: 1
A35: 黄冈市 | B35: 576559 | C35: 2 | D35: 14.1% | E35: 2 | F35: 185415 | G35: 10 | H35: -25.8% | I35: 17 | J35: 761974 | K35: 5 | L35: 0.9% | M35: 3
A36: 咸宁市 | B36: 68232 | C36: 11 | D36: -3.2% | E36: 7 | F36: 249547 | G36: 9 | H36: 1.6% | I36: 11 | J36: 317779 | K36: 9 | L36: 0.6% | M36: 5
A37: 随州市 | B37: 70054 | C37: 10 | D37: -42.6% | E37: 14 | F37: 652589 | G37: 3 | H37: 9.5% | I37: 5 | J37: 722643 | K37: 6 | L37: 0.6% | M37: 4
A38: 恩施市 | B38: 4586 | C38: 16 | D38: 42.1% | E38: 1 | F38: 341695 | G38: 6 | H38: -1.9% | I38: 13 | J38: 346281 | K38: 8 | L38: -1.5% | M38: 13
A39: 仙桃市 | B39: 7054 | C39: 15 | D39: -27.5% | E39: 13 | F39: 99761 | G39: 15 | H39: 2.5% | I39: 8 | J39: 106815 | K39: 15 | L39: -0.3% | M39: 8
A40: 潜江市 | B40: 89910 | C40: 9 | D40: 14.0% | E40: 3 | F40: 106378 | G40: 14 | H40: -8.7% | I40: 14 | J40: 196288 | K40: 14 | L40: 0.4% | M40: 6
A41: 天门 | B41: 17099 | C41: 14 | D41: -50.0% | E41: 16 | F41: 179758 | G41: 12 | H41: 9.6% | I41: 4 | J41: 196857 | K41: 13 | L41: -0.6% | M41: 10
A42: 林区 | B42: 1838 | C42: 17 | D42: -66.1% | E42: 17 | F42: 10080 | G42: 17 | H42: 53.4% | I42: 2 | J42: 11918 | K42: 17 | L42: -0.6% | M42: 9
A43: 全省 | B43: 3759879 | D43: -6.4% | F43: 9280314 | H43: 1.5% | J43: 13040193 | L43: -0.9%

Sheet 货运量周转量
A1: 货运量(万吨） | B1: 1月 | C1: 2月 | D1: 3月 | E1: 4月 | F1: 5月 | G1: 6月 | I1: 货运量(万吨） | J1: 1月 | K1: 2月 | L1: 3月 | M1: 4月 | N1: 5月 | O1: 6月 | P1: 7月 | Q1: 8月 | R1: 9月 | S1: 10月 | T1: 11月 | U1: 12月
A2: 武汉市 | B2: 5368 | C2: 3325 | D2: 5046 | E2: 5345 | F2: 5241 | G2: 5041 | I2: 武汉市 | J2: 4657 | K2: 4024 | L2: 5289 | M2: 5460 | N2: 5242 | O2: 4848 | P2: 4878 | Q2: 4885 | R2: 5013 | S2: 4807 | T2: 5152 | U2: 5607
A3: 黄石市 | B3: 570 | C3: 411 | D3: 559 | E3: 632 | F3: 628 | G3: 602 | I3: 黄石市 | J3: 481 | K3: 488 | L3: 583 | M3: 641 | N3: 630 | O3: 577 | P3: 558 | Q3: 572 | R3: 580 | S3: 557 | T3: 582 | U3: 593
A4: 十堰市 | B4: 359 | C4: 237 | D4: 356 | E4: 367 | F4: 366 | G4: 342 | I4: 十堰市 | J4: 275 | K4: 260 | L4: 352 | M4: 359 | N4: 345 | O4: 307 | P4: 311 | Q4: 311 | R4: 329 | S4: 311 | T4: 351 | U4: 366
A5: 宜昌市 | B5: 1215 | C5: 839 | D5: 1325 | E5: 1387 | F5: 1389 | G5: 1321 | I5: 宜昌市 | J5: 1015 | K5: 986 | L5: 1367 | M5: 1416 | N5: 1426 | O5: 1293 | P5: 1273 | Q5: 1354 | R5: 1449 | S5: 1385 | T5: 1553 | U5: 1477
A6: 襄阳市 | B6: 3028 | C6: 2005 | D6: 3124 | E6: 3141 | F6: 3189 | G6: 3051 | I6: 襄阳市 | J6: 2537 | K6: 2416 | L6: 3282 | M6: 3207 | N6: 3220 | O6: 2953 | P6: 2905 | Q6: 2895 | R6: 2911 | S6: 2789 | T6: 3042 | U6: 3198
A7: 鄂州市 | B7: 236 | C7: 164 | D7: 218 | E7: 207 | F7: 206 | G7: 212 | I7: 鄂州市 | J7: 196 | K7: 182 | L7: 216 | M7: 203 | N7: 191 | O7: 188 | P7: 190 | Q7: 191 | R7: 229 | S7: 211 | T7: 236 | U7: 280
A8: 荆门市 | B8: 1048 | C8: 667 | D8: 1045 | E8: 1125 | F8: 1163 | G8: 1065 | I8: 荆门市 | J8: 843 | K8: 772 | L8: 1060 | M8: 1116 | N8: 1131 | O8: 1001 | P8: 1057 | Q8: 985 | R8: 1025 | S8: 919 | T8: 976 | U8: 1004
A9: 孝感市 | B9: 410 | C9: 252 | D9: 396 | E9: 416 | F9: 421 | G9: 403 | I9: 孝感市 | J9: 347 | K9: 295 | L9: 404 | M9: 414 | N9: 407 | O9: 371 | P9: 378 | Q9: 391 | R9: 421 | S9: 388 | T9: 425 | U9: 439
A10: 荆州市 | B10: 1079 | C10: 673 | D10: 999 | E10: 1070 | F10: 1087 | G10: 1041 | I10: 荆州市 | J10: 841 | K10: 756 | L10: 998 | M10: 1043 | N10: 1019 | O10: 966 | P10: 968 | Q10: 949 | R10: 1031 | S10: 946 | T10: 1057 | U10: 1108
A11: 黄冈市 | B11: 1206 | C11: 806 | D11: 1177 | E11: 1228 | F11: 1219 | G11: 1138 | I11: 黄冈市 | J11: 995 | K11: 902 | L11: 1185 | M11: 1224 | N11: 1180 | O11: 1051 | P11: 1071 | Q11: 1057 | R11: 1129 | S11: 1104 | T11: 1132 | U11: 1180
A12: 咸宁市 | B12: 810 | C12: 467 | D12: 683 | E12: 717 | F12: 726 | G12: 680 | I12: 咸宁市 | J12: 644 | K12: 522 | L12: 685 | M12: 703 | N12: 690 | O12: 634 | P12: 702 | Q12: 671 | R12: 721 | S12: 681 | T12: 753 | U12: 837
A13: 随州市 | B13: 854 | C13: 507 | D13: 774 | E13: 825 | F13: 846 | G13: 862 | I13: 随州市 | J13: 700 | K13: 591 | L13: 795 | M13: 831 | N13: 821 | O13: 755 | P13: 721 | Q13: 751 | R13: 850 | S13: 746 | T13: 766 | U13: 777
A14: 恩施州 | B14: 447 | C14: 279 | D14: 398 | E14: 412 | F14: 413 | G14: 413 | I14: 恩施州 | J14: 375 | K14: 318 | L14: 414 | M14: 423 | N14: 416 | O14: 398 | P14: 416 | Q14: 440 | R14: 422 | S14: 386 | T14: 424 | U14: 416
A15: 仙桃市 | B15: 153 | C15: 93 | D15: 136 | E15: 132 | F15: 146 | G15: 133 | I15: 仙桃市 | J15: 120 | K15: 106 | L15: 136 | M15: 129 | N15: 135 | O15: 116 | P15: 119 | Q15: 122 | R15: 136 | S15: 129 | T15: 138 | U15: 141
A16: 潜江市 | B16: 216 | C16: 146 | D16: 192 | E16: 205 | F16: 216 | G16: 196 | I16: 潜江市 | J16: 184 | K16: 172 | L16: 194 | M16: 202 | N16: 212 | O16: 186 | P16: 190 | Q16: 194 | R16: 188 | S16: 184 | T16: 190 | U16: 190
A17: 天门市 | B17: 302 | C17: 201 | D17: 309 | E17: 293 | F17: 306 | G17: 325 | I17: 天门市 | J17: 236 | K17: 227 | L17: 312 | M17: 288 | N17: 291 | O17: 289 | P17: 267 | Q17: 245 | R17: 254 | S17: 230 | T17: 274 | U17: 288
A18: 林区 | B18: 21 | C18: 14 | D18: 32 | E18: 30 | F18: 22 | G18: 21 | I18: 林区 | J18: 16 | K18: 17 | L18: 29 | M18: 26 | N18: 21 | O18: 19 | P18: 34 | Q18: 45 | R18: 30 | S18: 24 | T18: 31 | U18: 23
A19: 湖北省 | B19: 17322 | C19: 11089 | D19: 16768 | E19: 17531 | F19: 17583 | G19: 16844 | I19: 湖北省 | J19: 14462 | K19: 13033 | L19: 17301 | M19: 17684 | N19: 17376 | O19: 15954 | P19: 16038 | Q19: 16060 | R19: 16722 | S19: 15799 | T19: 17082 | U19: 17923
A20: 周转量（万吨公里） | B20: 1月 | C20: 2月 | D20: 3月 | E20: 4月 | F20: 5月 | G20: 6月 | I20: 周转量（万吨公里） | J20: 1月 | K20: 2月 | L20: 3月 | M20: 4月 | N20: 5月 | O20: 6月 | P20: 7月 | Q20: 8月 | R20: 9月 | S20: 10月 | T20: 11月 | U20: 12月
A21: 武汉市 | B21: 687807 | C21: 459304 | D21: 675053 | E21: 704561 | F21: 714139 | G21: 687104 | I21: 武汉市 | J21: 616800 | K21: 558388 | L21: 705460 | M21: 715687 | N21: 723438 | O21: 677714 | P21: 662506 | Q21: 659500 | R21: 692384 | S21: 643793 | T21: 666113 | U21: 721625
A22: 黄石市 | B22: 47508 | C22: 35951 | D22: 49150 | E22: 51335 | F22: 50815 | G22: 49167 | I22: 黄石市 | J22: 41640 | K22: 41873 | L22: 50427 | M22: 51696 | N22: 51771 | O22: 48556 | P22: 45555 | Q22: 46735 | R22: 49316 | S22: 47624 | T22: 51126 | U22: 53505
A23: 十堰市 | B23: 48699 | C23: 34422 | D23: 49381 | E23: 49925 | F23: 49675 | G23: 45342 | I23: 十堰市 | J23: 40166 | K23: 38851 | L23: 50241 | M23: 50035 | N23: 50309 | O23: 44373 | P23: 43681 | Q23: 44240 | R23: 46706 | S23: 43773 | T23: 46747 | U23: 48760
A24: 宜昌市 | B24: 104923 | C24: 79232 | D24: 126115 | E24: 127912 | F24: 131818 | G24: 125779 | I24: 宜昌市 | J24: 92267 | K24: 92383 | L24: 130080 | M24: 130161 | N24: 134802 | O24: 125120 | P24: 116500 | Q24: 123257 | R24: 130397 | S24: 127600 | T24: 133444 | U24: 137113
A25: 襄阳市 | B25: 513760 | C25: 361068 | D25: 543947 | E25: 552442 | F25: 560268 | G25: 535610 | I25: 襄阳市 | J25: 446782 | K25: 433739 | L25: 570108 | M25: 562604 | N25: 576947 | O25: 531112 | P25: 518314 | Q25: 519737 | R25: 525791 | S25: 487433 | T25: 508764 | U25: 535330
A26: 鄂州市 | B26: 17119 | C26: 12818 | D26: 15538 | E26: 14280 | F26: 13888 | G26: 15012 | I26: 鄂州市 | J26: 15785 | K26: 15716 | L26: 17044 | M26: 15174 | N26: 14893 | O26: 15427 | P26: 13160 | Q26: 13573 | R26: 14947 | S26: 15735 | T26: 17922 | U26: 21098
A27: 荆门市 | B27: 128146 | C27: 87616 | D27: 134669 | E27: 139785 | F27: 146993 | G27: 128085 | I27: 荆门市 | J27: 108345 | K27: 102412 | L27: 138059 | M27: 139760 | N27: 148769 | O27: 126130 | P27: 131550 | Q27: 124370 | R27: 128141 | S27: 116539 | T27: 123471 | U27: 129597
A28: 孝感市 | B28: 49417 | C28: 34787 | D28: 51946 | E28: 54017 | F28: 53613 | G28: 50803 | I28: 孝感市 | J28: 44141 | K28: 41655 | L28: 54436 | M28: 55172 | N28: 55296 | O28: 50841 | P28: 50609 | Q28: 52081 | R28: 55316 | S28: 51109 | T28: 54171 | U28: 57814
A29: 荆州市 | B29: 178372 | C29: 116959 | D29: 170168 | E29: 173940 | F29: 174277 | G29: 165180 | I29: 荆州市 | J29: 147587 | K29: 135257 | L29: 172900 | M29: 172508 | N29: 171966 | O29: 162296 | P29: 153610 | Q29: 149519 | R29: 162721 | S29: 151173 | T29: 164476 | U29: 173616
A30: 黄冈市 | B30: 127672 | C30: 97007 | D30: 134508 | E30: 136532 | F30: 138307 | G30: 127948 | I30: 黄冈市 | J30: 111727 | K30: 110335 | L30: 135188 | M30: 136712 | N30: 137580 | O30: 123470 | P30: 118973 | Q30: 117271 | R30: 126014 | S30: 121372 | T30: 122086 | U30: 130349
A31: 咸宁市 | B31: 60258 | C31: 39156 | D31: 57178 | E31: 55055 | F31: 54395 | G31: 51736 | I31: 咸宁市 | J31: 51099 | K31: 45029 | L31: 59703 | M31: 55031 | N31: 54243 | O31: 50907 | P31: 53122 | Q31: 49710 | R31: 55244 | S31: 51612 | T31: 56395 | U31: 64461
A32: 随州市 | B32: 124170 | C32: 82788 | D32: 126513 | E32: 127784 | F32: 130454 | G32: 130934 | I32: 随州市 | J32: 106095 | K32: 97416 | L32: 130582 | M32: 128978 | N32: 130657 | O32: 124489 | P32: 117818 | Q32: 120222 | R32: 131790 | S32: 113176 | T32: 118098 | U32: 121991
A33: 恩施州 | B33: 62810 | C33: 42674 | D33: 59582 | E33: 60902 | F33: 60203 | G33: 60110 | I33: 恩施州 | J33: 54968 | K33: 49436 | L33: 62292 | M33: 62617 | N33: 62177 | O33: 60021 | P33: 61135 | Q33: 64253 | R33: 64138 | S33: 55500 | T33: 58776 | U33: 58790
A34: 仙桃市 | B34: 19903 | C34: 13495 | D34: 18881 | E34: 17865 | F34: 19219 | G34: 17452 | I34: 仙桃市 | J34: 16765 | K34: 15744 | L34: 20021 | M34: 18044 | N34: 19362 | O34: 17163 | P34: 17361 | Q34: 18090 | R34: 18867 | S34: 17514 | T34: 17776 | U34: 19282
A35: 潜江市 | B35: 34891 | C35: 25423 | D35: 33099 | E35: 34645 | F35: 35612 | G35: 32618 | I35: 潜江市 | J35: 30425 | K35: 29180 | L35: 33447 | M35: 34503 | N35: 35850 | O35: 32023 | P35: 31991 | Q35: 32851 | R35: 31153 | S35: 30630 | T35: 32442 | U35: 35155
A36: 天门市 | B36: 30768 | C36: 26008 | D36: 37472 | E36: 35729 | F36: 35297 | G36: 31583 | I36: 天门市 | J36: 26643 | K36: 30251 | L36: 38905 | M36: 36464 | N36: 35449 | O36: 30421 | P36: 28224 | Q36: 26873 | R36: 28029 | S36: 25787 | T36: 29207 | U36: 31967
A37: 林区 | B37: 1987 | C37: 1525 | D37: 3417 | E37: 2365 | F37: 1369 | G37: 1255 | I37: 林区 | J37: 1843 | K37: 1859 | L37: 3244 | M37: 2244 | N37: 1447 | O37: 1354 | P37: 3099 | Q37: 4073 | R37: 2801 | S37: 2269 | T37: 2264 | U37: 1371
A38: 湖北省 | B38: 2238211 | C38: 1550234 | D38: 2286618 | E38: 2339073 | F38: 2370340 | G38: 2255717 | I38: 湖北省 | J38: 1953078 | K38: 1839524 | L38: 2372138 | M38: 2367390 | N38: 2404958 | O38: 2221418 | P38: 2167206 | Q38: 2166356 | R38: 2263752.31 | S38: 2102640 | T38: 2203279 | U38: 2341823

Sheet 货运量分市州明细
A1: 3月10日厅开会确定拆分方案，1-2月数据以此为准。
A3: 地区 名称 | B3: 指标 | C3: 2026-01-01 | D3: 1月与去年同比 | E3: 2026-02-01 | F3: 2月与去年同比 | G3: 2026-03-01 | H3: 3月与去年同比 | I3: 2026-04-01 | J3: 4月与去年同比 | K3: 2026-05-01 | L3: 5月与去年同比 | M3: 2026-06-01 | N3: 6月与去年同比 | O3: 累计周转量 | P3: 同比
A5: 全省 | B5: 货运量 （万吨） | C5: 17322.04 | D5: 19.78% | E5: 11089.38 | F5: -14.92% | G5: 16768.31 | H5: -3.08% | I5: 17531.03 | J5: -0.86% | K5: 17582.56 | L5: 1.19% | M5: 16844.09 | N5: 5.58% | O5: 97137.42 | P5: 1.39%
B6: 货物周转量 （万吨公里） | C6: 2238211.09 | D6: 14.60% | E6: 1550233.62 | F6: -15.73% | G6: 2286617.97 | H6: -3.61% | I6: 2339073.25 | J6: -1.20% | K6: 2370340.27 | L6: -1.44% | M6: 2255716.54 | N6: 1.54% | O6: 13040192.74 | P6: -0.90%
B7: 其中规上货运量 (万吨) | C7: 3735.53 | D7: -10.30% | E7: 3402.82 | F7: -15.03% | G7: 4284.9515 | H7: -4.10% | I7: 4183.3731 | J7: -8.64% | K7: 4131.7772 | L7: -10.73% | M7: 4241.2271 | N7: -7.45% | O7: 23979.68 | P7: -9.26%
B8: 其中规上货物周转量 (万吨公里) | C8: 565704.65 | D8: -9.18% | E8: 500562.26 | F8: -14.89% | G8: 669448.8862 | H8: -0.97% | I8: 650911.7673 | J8: -4.35% | K8: 680437.3899 | L8: -6.24% | M8: 692813.7474 | N8: -4.37% | O8: 3759878.70 | P8: -6.42%
B9: 其中规下货运量 (万吨) | C9: 13586.51 | D9: 31.94% | E9: 7686.57 | F9: -14.86% | G9: 12483.36 | H9: -2.72% | I9: 13347.66 | J9: 1.85% | K9: 13450.78 | L9: 5.52% | M9: 12602.87 | N9: 10.83% | O9: 73157.74 | P9: 5.44%
B10: 其中规下货物周转量 (万吨公里) | C10: 1672506.44 | D10: 25.74% | E10: 1049671.36 | F10: -16.12% | G10: 1617169.09 | H10: -4.66% | I10: 1688161.48 | J10: 0.08% | K10: 1689902.88 | L10: 0.63% | M10: 1562902.79 | N10: 4.41% | O10: 9280314.04 | P10: 1.53%
A11: 武汉市 | B11: 规上+规下货运量(万吨) | C11: 1068.203 | D11: -36.39% | E11: 1082.0457 | F11: -31.85% | G11: 1315.4117 | H11: -20.70% | I11: 1395.7514 | J11: -18.35% | K11: 1404.6304 | L11: -16.65% | M11: 1411.5586 | N11: -14.82% | O11: 7677.60 | P11: -23.05%
B12: 规上货运量 (万吨) | C12: 1068.203 | D12: -36.39% | E12: 1082.0457 | F12: -31.85% | G12: 1315.4117 | H12: -20.70% | I12: 1395.7514 | J12: -18.35% | K12: 1404.6304 | L12: -16.65% | M12: 1411.5586 | N12: -14.82% | O12: 7677.60 | P12: -23.05%
B13: 规下货运量 (万吨) | C13: 1068.203 | D13: -36.39% | E13: 1082.0457 | F13: -31.85% | G13: 1315.4117 | H13: -20.70% | I13: 1395.7514 | J13: -18.35% | K13: 1404.6304 | L13: -16.65% | M13: 1411.5586 | N13: -14.82% | O13: 7677.60 | P13: -23.05%
B14: 规上+规下周转量 (万吨公里) | C14: 687807.49 | D14: 11.51% | E14: 459304.08 | F14: -17.74% | G14: 675053.06 | H14: -4.31% | I14: 704560.76 | J14: -1.55% | K14: 714138.90 | L14: -1.29% | M14: 687103.88 | N14: 1.39% | O14: 3927968.18 | P14: -1.74%
B15: 规上货物周转量 (万吨公里) | C15: 165332.6054 | D15: -26.11% | E15: 149830.2083 | F15: -30.56% | G15: 212998.4307 | H15: -6.59% | I15: 227544.8264 | J15: -1.64% | K15: 238395.1236 | L15: 1.35% | M15: 241659.5295 | N15: -0.77% | O15: 1235760.72 | P15: -10.30%
B16: 规下货物周转量 (万吨公里) | C16: 522475 | D16: 32.93% | E16: 309474 | F16: -9.68% | G16: 462055 | H16: -3.22% | I16: 477016 | J16: -1.51% | K16: 475744 | L16: -2.56% | M16: 445444 | N16: 2.60% | O16: 2692207.45 | P16: 2.76%
A17: 黄石 | B17: 规上+规下货运量(万吨) | C17: 1068.203 | D17: -36.39% | E17: 1082.0457 | F17: -31.85% | G17: 1315.4117 | H17: -20.70% | I17: 1395.7514 | J17: -18.35% | K17: 1404.6304 | L17: -16.65% | M17: 1411.5586 | N17: -14.82% | O17: 7677.60 | P17: -23.05%
B18: 规上货运量 (万吨) | C18: 1068.203 | D18: -36.39% | E18: 1082.0457 | F18: -31.85% | G18: 1315.4117 | H18: -20.70% | I18: 1395.7514 | J18: -18.35% | K18: 1404.6304 | L18: -16.65% | M18: 1411.5586 | N18: -14.82% | O18: 7677.60 | P18: -23.05%
B19: 规下货运量 (万吨) | C19: 1068.203 | D19: -36.39% | E19: 1082.0457 | F19: -31.85% | G19: 1315.4117 | H19: -20.70% | I19: 1395.7514 | J19: -18.35% | K19: 1404.6304 | L19: -16.65% | M19: 1411.5586 | N19: -14.82% | O19: 7677.60 | P19: -23.05%
B20: 规上+规下周转量 (万吨公里) | C20: 687807.49 | D20: 11.51% | E20: 459304.08 | F20: -17.74% | G20: 675053.06 | H20: -4.31% | I20: 704560.76 | J20: -1.55% | K20: 714138.90 | L20: -1.29% | M20: 687103.88 | N20: 1.39% | O20: 3927968.18 | P20: -1.74%
B21: 规上货物周转量 (万吨公里) | C21: 165332.6054 | D21: -26.11% | E21: 149830.2083 | F21: -30.56% | G21: 212998.4307 | H21: -6.59% | I21: 227544.8264 | J21: -1.64% | K21: 238395.1236 | L21: 1.35% | M21: 241659.5295 | N21: -0.77% | O21: 1235760.72 | P21: -10.30%
B22: 规下货物周转量 (万吨公里) | C22: 522475 | D22: 32.93% | E22: 309474 | F22: -9.68% | G22: 462055 | H22: -3.22% | I22: 477016 | J22: -1.51% | K22: 475744 | L22: -2.56% | M22: 445444 | N22: 2.60% | O22: 2692207.45 | P22: 2.76%
A23: 十堰 | B23: 规上+规下货运量(万吨) | C23: 1068.203 | D23: -36.39% | E23: 1082.0457 | F23: -31.85% | G23: 1315.4117 | H23: -20.70% | I23: 1395.7514 | J23: -18.35% | K23: 1404.6304 | L23: -16.65% | M23: 1411.5586 | N23: -14.82% | O23: 7677.60 | P23: -23.05%
B24: 规上货运量 (万吨) | C24: 1068.203 | D24: -36.39% | E24: 1082.0457 | F24: -31.85% | G24: 1315.4117 | H24: -20.70% | I24: 1395.7514 | J24: -18.35% | K24: 1404.6304 | L24: -16.65% | M24: 1411.5586 | N24: -14.82% | O24: 7677.60 | P24: -23.05%
B25: 规下货运量 (万吨) | C25: 1068.203 | D25: -36.39% | E25: 1082.0457 | F25: -31.85% | G25: 1315.4117 | H25: -20.70% | I25: 1395.7514 | J25: -18.35% | K25: 1404.6304 | L25: -16.65% | M25: 1411.5586 | N25: -14.82% | O25: 7677.60 | P25: -23.05%
B26: 规上+规下周转量 (万吨公里) | C26: 687807.49 | D26: 11.51% | E26: 459304.08 | F26: -17.74% | G26: 675053.06 | H26: -4.31% | I26: 704560.76 | J26: -1.55% | K26: 714138.90 | L26: -1.29% | M26: 687103.88 | N26: 1.39% | O26: 3927968.18 | P26: -1.74%
B27: 规上货物周转量 (万吨公里) | C27: 165332.6054 | D27: -26.11% | E27: 149830.2083 | F27: -30.56% | G27: 212998.4307 | H27: -6.59% | I27: 227544.8264 | J27: -1.64% | K27: 238395.1236 | L27: 1.35% | M27: 241659.5295 | N27: -0.77% | O27: 1235760.72 | P27: -10.30%
B28: 规下货物周转量 (万吨公里) | C28: 522475 | D28: 32.93% | E28: 309474 | F28: -9.68% | G28: 462055 | H28: -3.22% | I28: 477016 | J28: -1.51% | K28: 475744 | L28: -2.56% | M28: 445444 | N28: 2.60% | O28: 2692207.45 | P28: 2.76%
A29: 宜昌 | B29: 规上+规下货运量(万吨) | C29: 1068.203 | D29: -36.39% | E29: 1082.0457 | F29: -31.85% | G29: 1315.4117 | H29: -20.70% | I29: 1395.7514 | J29: -18.35% | K29: 1404.6304 | L29: -16.65% | M29: 1411.5586 | N29: -14.82% | O29: 7677.60 | P29: -23.05%
B30: 规上货运量 (万吨) | C30: 1068.203 | D30: -36.39% | E30: 1082.0457 | F30: -31.85% | G30: 1315.4117 | H30: -20.70% | I30: 1395.7514 | J30: -18.35% | K30: 1404.6304 | L30: -16.65% | M30: 1411.5586 | N30: -14.82% | O30: 7677.60 | P30: -23.05%
B31: 规下货运量 (万吨) | C31: 1068.203 | D31: -36.39% | E31: 1082.0457 | F31: -31.85% | G31: 1315.4117 | H31: -20.70% | I31: 1395.7514 | J31: -18.35% | K31: 1404.6304 | L31: -16.65% | M31: 1411.5586 | N31: -14.82% | O31: 7677.60 | P31: -23.05%
B32: 规上+规下周转量 (万吨公里) | C32: 687807.49 | D32: 11.51% | E32: 459304.08 | F32: -17.74% | G32: 675053.06 | H32: -4.31% | I32: 704560.76 | J32: -1.55% | K32: 714138.90 | L32: -1.29% | M32: 687103.88 | N32: 1.39% | O32: 3927968.18 | P32: -1.74%
B33: 规上货物周转量 (万吨公里) | C33: 165332.6054 | D33: -26.11% | E33: 149830.2083 | F33: -30.56% | G33: 212998.4307 | H33: -6.59% | I33: 227544.8264 | J33: -1.64% | K33: 238395.1236 | L33: 1.35% | M33: 241659.5295 | N33: -0.77% | O33: 1235760.72 | P33: -10.30%
B34: 规下货物周转量 (万吨公里) | C34: 522475 | D34: 32.93% | E34: 309474 | F34: -9.68% | G34: 462055 | H34: -3.22% | I34: 477016 | J34: -1.51% | K34: 475744 | L34: -2.56% | M34: 445444 | N34: 2.60% | O34: 2692207.45 | P34: 2.76%
A35: 襄阳 | B35: 规上+规下货运量(万吨) | C35: 1068.203 | D35: -36.39% | E35: 1082.0457 | F35: -31.85% | G35: 1315.4117 | H35: -20.70% | I35: 1395.7514 | J35: -18.35% | K35: 1404.6304 | L35: -16.65% | M35: 1411.5586 | N35: -14.82% | O35: 7677.60 | P35: -23.05%
B36: 规上货运量 (万吨) | C36: 1068.203 | D36: -36.39% | E36: 1082.0457 | F36: -31.85% | G36: 1315.4117 | H36: -20.70% | I36: 1395.7514 | J36: -18.35% | K36: 1404.6304 | L36: -16.65% | M36: 1411.5586 | N36: -14.82% | O36: 7677.60 | P36: -23.05%
B37: 规下货运量 (万吨) | C37: 1068.203 | D37: -36.39% | E37: 1082.0457 | F37: -31.85% | G37: 1315.4117 | H37: -20.70% | I37: 1395.7514 | J37: -18.35% | K37: 1404.6304 | L37: -16.65% | M37: 1411.5586 | N37: -14.82% | O37: 7677.60 | P37: -23.05%
B38: 规上+规下周转量 (万吨公里) | C38: 687807.49 | D38: 11.51% | E38: 459304.08 | F38: -17.74% | G38: 675053.06 | H38: -4.31% | I38: 704560.76 | J38: -1.55% | K38: 714138.90 | L38: -1.29% | M38: 687103.88 | N38: 1.39% | O38: 3927968.18 | P38: -1.74%
B39: 规上货物周转量 (万吨公里) | C39: 165332.6054 | D39: -26.11% | E39: 149830.2083 | F39: -30.56% | G39: 212998.4307 | H39: -6.59% | I39: 227544.8264 | J39: -1.64% | K39: 238395.1236 | L39: 1.35% | M39: 241659.5295 | N39: -0.77% | O39: 1235760.72 | P39: -10.30%
B40: 规下货物周转量 (万吨公里) | C40: 522475 | D40: 32.93% | E40: 309474 | F40: -9.68% | G40: 462055 | H40: -3.22% | I40: 477016 | J40: -1.51% | K40: 475744 | L40: -2.56% | M40: 445444 | N40: 2.60% | O40: 2692207.45 | P40: 2.76%
A41: 鄂州 | B41: 规上+规下货运量(万吨) | C41: 1068.203 | D41: -36.39% | E41: 1082.0457 | F41: -31.85% | G41: 1315.4117 | H41: -20.70% | I41: 1395.7514 | J41: -18.35% | K41: 1404.6304 | L41: -16.65% | M41: 1411.5586 | N41: -14.82% | O41: 7677.60 | P41: -23.05%
B42: 规上货运量 (万吨) | C42: 1068.203 | D42: -36.39% | E42: 1082.0457 | F42: -31.85% | G42: 1315.4117 | H42: -20.70% | I42: 1395.7514 | J42: -18.35% | K42: 1404.6304 | L42: -16.65% | M42: 1411.5586 | N42: -14.82% | O42: 7677.60 | P42: -23.05%
B43: 规下货运量 (万吨) | C43: 1068.203 | D43: -36.39% | E43: 1082.0457 | F43: -31.85% | G43: 1315.4117 | H43: -20.70% | I43: 1395.7514 | J43: -18.35% | K43: 1404.6304 | L43: -16.65% | M43: 1411.5586 | N43: -14.82% | O43: 7677.60 | P43: -23.05%
B44: 规上+规下周转量 (万吨公里) | C44: 687807.49 | D44: 11.51% | E44: 459304.08 | F44: -17.74% | G44: 675053.06 | H44: -4.31% | I44: 704560.76 | J44: -1.55% | K44: 714138.90 | L44: -1.29% | M44: 687103.88 | N44: 1.39% | O44: 3927968.18 | P44: -1.74%
B45: 规上货物周转量 (万吨公里) | C45: 165332.6054 | D45: -26.11% | E45: 149830.2083 | F45: -30.56% | G45: 212998.4307 | H45: -6.59% | I45: 227544.8264 | J45: -1.64% | K45: 238395.1236 | L45: 1.35% | M45: 241659.5295 | N45: -0.77% | O45: 1235760.72 | P45: -10.30%
B46: 规下货物周转量 (万吨公里) | C46: 522475 | D46: 32.93% | E46: 309474 | F46: -9.68% | G46: 462055 | H46: -3.22% | I46: 477016 | J46: -1.51% | K46: 475744 | L46: -2.56% | M46: 445444 | N46: 2.60% | O46: 2692207.45 | P46: 2.76%
A47: 荆门 | B47: 规上+规下货运量(万吨) | C47: 1068.203 | D47: -36.39% | E47: 1082.0457 | F47: -31.85% | G47: 1315.4117 | H47: -20.70% | I47: 1395.7514 | J47: -18.35% | K47: 1404.6304 | L47: -16.65% | M47: 1411.5586 | N47: -14.82% | O47: 7677.60 | P47: -23.05%
B48: 规上货运量 (万吨) | C48: 1068.203 | D48: -36.39% | E48: 1082.0457 | F48: -31.85% | G48: 1315.4117 | H48: -20.70% | I48: 1395.7514 | J48: -18.35% | K48: 1404.6304 | L48: -16.65% | M48: 1411.5586 | N48: -14.82% | O48: 7677.60 | P48: -23.05%
B49: 规下货运量 (万吨) | C49: 1068.203 | D49: -36.39% | E49: 1082.0457 | F49: -31.85% | G49: 1315.4117 | H49: -20.70% | I49: 1395.7514 | J49: -18.35% | K49: 1404.6304 | L49: -16.65% | M49: 1411.5586 | N49: -14.82% | O49: 7677.60 | P49: -23.05%
B50: 规上+规下周转量 (万吨公里) | C50: 687807.49 | D50: 11.51% | E50: 459304.08 | F50: -17.74% | G50: 675053.06 | H50: -4.31% | I50: 704560.76 | J50: -1.55% | K50: 714138.90 | L50: -1.29% | M50: 687103.88 | N50: 1.39% | O50: 3927968.18 | P50: -1.74%
B51: 规上货物周转量 (万吨公里) | C51: 165332.6054 | D51: -26.11% | E51: 149830.2083 | F51: -30.56% | G51: 212998.4307 | H51: -6.59% | I51: 227544.8264 | J51: -1.64% | K51: 238395.1236 | L51: 1.35% | M51: 241659.5295 | N51: -0.77% | O51: 1235760.72 | P51: -10.30%
B52: 规下货物周转量 (万吨公里) | C52: 522475 | D52: 32.93% | E52: 309474 | F52: -9.68% | G52: 462055 | H52: -3.22% | I52: 477016 | J52: -1.51% | K52: 475744 | L52: -2.56% | M52: 445444 | N52: 2.60% | O52: 2692207.45 | P52: 2.76%
A53: 孝感 | B53: 规上+规下货运量(万吨) | C53: 1068.203 | D53: -36.39% | E53: 1082.0457 | F53: -31.85% | G53: 1315.4117 | H53: -20.70% | I53: 1395.7514 | J53: -18.35% | K53: 1404.6304 | L53: -16.65% | M53: 1411.5586 | N53: -14.82% | O53: 7677.60 | P53: -23.05%
B54: 规上货运量 (万吨) | C54: 1068.203 | D54: -36.39% | E54: 1082.0457 | F54: -31.85% | G54: 1315.4117 | H54: -20.70% | I54: 1395.7514 | J54: -18.35% | K54: 1404.6304 | L54: -16.65% | M54: 1411.5586 | N54: -14.82% | O54: 7677.60 | P54: -23.05%
B55: 规下货运量 (万吨) | C55: 1068.203 | D55: -36.39% | E55: 1082.0457 | F55: -31.85% | G55: 1315.4117 | H55: -20.70% | I55: 1395.7514 | J55: -18.35% | K55: 1404.6304 | L55: -16.65% | M55: 1411.5586 | N55: -14.82% | O55: 7677.60 | P55: -23.05%
B56: 规上+规下周转量 (万吨公里) | C56: 687807.49 | D56: 11.51% | E56: 459304.08 | F56: -17.74% | G56: 675053.06 | H56: -4.31% | I56: 704560.76 | J56: -1.55% | K56: 714138.90 | L56: -1.29% | M56: 687103.88 | N56: 1.39% | O56: 3927968.18 | P56: -1.74%
B57: 规上货物周转量 (万吨公里) | C57: 165332.6054 | D57: -26.11% | E57: 149830.2083 | F57: -30.56% | G57: 212998.4307 | H57: -6.59% | I57: 227544.8264 | J57: -1.64% | K57: 238395.1236 | L57: 1.35% | M57: 241659.5295 | N57: -0.77% | O57: 1235760.72 | P57: -10.30%
B58: 规下货物周转量 (万吨公里) | C58: 522475 | D58: 32.93% | E58: 309474 | F58: -9.68% | G58: 462055 | H58: -3.22% | I58: 477016 | J58: -1.51% | K58: 475744 | L58: -2.56% | M58: 445444 | N58: 2.60% | O58: 2692207.45 | P58: 2.76%
A59: 荆州 | B59: 规上+规下货运量(万吨) | C59: 1068.203 | D59: -36.39% | E59: 1082.0457 | F59: -31.85% | G59: 1315.4117 | H59: -20.70% | I59: 1395.7514 | J59: -18.35% | K59: 1404.6304 | L59: -16.65% | M59: 1411.5586 | N59: -14.82% | O59: 7677.60 | P59: -23.05%
B60: 规上货运量 (万吨) | C60: 1068.203 | D60: -36.39% | E60: 1082.0457 | F60: -31.85% | G60: 1315.4117 | H60: -20.70% | I60: 1395.7514 | J60: -18.35% | K60: 1404.6304 | L60: -16.65% | M60: 1411.5586 | N60: -14.82% | O60: 7677.60 | P60: -23.05%
B61: 规下货运量 (万吨) | C61: 1068.203 | D61: -36.39% | E61: 1082.0457 | F61: -31.85% | G61: 1315.4117 | H61: -20.70% | I61: 1395.7514 | J61: -18.35% | K61: 1404.6304 | L61: -16.65% | M61: 1411.5586 | N61: -14.82% | O61: 7677.60 | P61: -23.05%
B62: 规上+规下周转量 (万吨公里) | C62: 687807.49 | D62: 11.51% | E62: 459304.08 | F62: -17.74% | G62: 675053.06 | H62: -4.31% | I62: 704560.76 | J62: -1.55% | K62: 714138.90 | L62: -1.29% | M62: 687103.88 | N62: 1.39% | O62: 3927968.18 | P62: -1.74%
B63: 规上货物周转量 (万吨公里) | C63: 165332.6054 | D63: -26.11% | E63: 149830.2083 | F63: -30.56% | G63: 212998.4307 | H63: -6.59% | I63: 227544.8264 | J63: -1.64% | K63: 238395.1236 | L63: 1.35% | M63: 241659.5295 | N63: -0.77% | O63: 1235760.72 | P63: -10.30%
B64: 规下货物周转量 (万吨公里) | C64: 522475 | D64: 32.93% | E64: 309474 | F64: -9.68% | G64: 462055 | H64: -3.22% | I64: 477016 | J64: -1.51% | K64: 475744 | L64: -2.56% | M64: 445444 | N64: 2.60% | O64: 2692207.45 | P64: 2.76%
A65: 黄冈 | B65: 规上+规下货运量(万吨) | C65: 1068.203 | D65: -36.39% | E65: 1082.0457 | F65: -31.85% | G65: 1315.4117 | H65: -20.70% | I65: 1395.7514 | J65: -18.35% | K65: 1404.6304 | L65: -16.65% | M65: 1411.5586 | N65: -14.82% | O65: 7677.60 | P65: -23.05%
B66: 规上货运量 (万吨) | C66: 1068.203 | D66: -36.39% | E66: 1082.0457 | F66: -31.85% | G66: 1315.4117 | H66: -20.70% | I66: 1395.7514 | J66: -18.35% | K66: 1404.6304 | L66: -16.65% | M66: 1411.5586 | N66: -14.82% | O66: 7677.60 | P66: -23.05%
B67: 规下货运量 (万吨) | C67: 1068.203 | D67: -36.39% | E67: 1082.0457 | F67: -31.85% | G67: 1315.4117 | H67: -20.70% | I67: 1395.7514 | J67: -18.35% | K67: 1404.6304 | L67: -16.65% | M67: 1411.5586 | N67: -14.82% | O67: 7677.60 | P67: -23.05%
B68: 规上+规下周转量 (万吨公里) | C68: 687807.49 | D68: 11.51% | E68: 459304.08 | F68: -17.74% | G68: 675053.06 | H68: -4.31% | I68: 704560.76 | J68: -1.55% | K68: 714138.90 | L68: -1.29% | M68: 687103.88 | N68: 1.39% | O68: 3927968.18 | P68: -1.74%
B69: 规上货物周转量 (万吨公里) | C69: 165332.6054 | D69: -26.11% | E69: 149830.2083 | F69: -30.56% | G69: 212998.4307 | H69: -6.59% | I69: 227544.8264 | J69: -1.64% | K69: 238395.1236 | L69: 1.35% | M69: 241659.5295 | N69: -0.77% | O69: 1235760.72 | P69: -10.30%
B70: 规下货物周转量 (万吨公里) | C70: 522475 | D70: 32.93% | E70: 309474 | F70: -9.68% | G70: 462055 | H70: -3.22% | I70: 477016 | J70: -1.51% | K70: 475744 | L70: -2.56% | M70: 445444 | N70: 2.60% | O70: 2692207.45 | P70: 2.76%
A71: 咸宁 | B71: 规上+规下货运量(万吨) | C71: 1068.203 | D71: -36.39% | E71: 1082.0457 | F71: -31.85% | G71: 1315.4117 | H71: -20.70% | I71: 1395.7514 | J71: -18.35% | K71: 1404.6304 | L71: -16.65% | M71: 1411.5586 | N71: -14.82% | O71: 7677.60 | P71: -23.05%
B72: 规上货运量 (万吨) | C72: 1068.203 | D72: -36.39% | E72: 1082.0457 | F72: -31.85% | G72: 1315.4117 | H72: -20.70% | I72: 1395.7514 | J72: -18.35% | K72: 1404.6304 | L72: -16.65% | M72: 1411.5586 | N72: -14.82% | O72: 7677.60 | P72: -23.05%
B73: 规下货运量 (万吨) | C73: 1068.203 | D73: -36.39% | E73: 1082.0457 | F73: -31.85% | G73: 1315.4117 | H73: -20.70% | I73: 1395.7514 | J73: -18.35% | K73: 1404.6304 | L73: -16.65% | M73: 1411.5586 | N73: -14.82% | O73: 7677.60 | P73: -23.05%
B74: 规上+规下周转量 (万吨公里) | C74: 687807.49 | D74: 11.51% | E74: 459304.08 | F74: -17.74% | G74: 675053.06 | H74: -4.31% | I74: 704560.76 | J74: -1.55% | K74: 714138.90 | L74: -1.29% | M74: 687103.88 | N74: 1.39% | O74: 3927968.18 | P74: -1.74%
B75: 规上货物周转量 (万吨公里) | C75: 165332.6054 | D75: -26.11% | E75: 149830.2083 | F75: -30.56% | G75: 212998.4307 | H75: -6.59% | I75: 227544.8264 | J75: -1.64% | K75: 238395.1236 | L75: 1.35% | M75: 241659.5295 | N75: -0.77% | O75: 1235760.72 | P75: -10.30%
B76: 规下货物周转量 (万吨公里) | C76: 522475 | D76: 32.93% | E76: 309474 | F76: -9.68% | G76: 462055 | H76: -3.22% | I76: 477016 | J76: -1.51% | K76: 475744 | L76: -2.56% | M76: 445444 | N76: 2.60% | O76: 2692207.45 | P76: 2.76%
A77: 随州 | B77: 规上+规下货运量(万吨) | C77: 1068.203 | D77: -36.39% | E77: 1082.0457 | F77: -31.85% | G77: 1315.4117 | H77: -20.70% | I77: 1395.7514 | J77: -18.35% | K77: 1404.6304 | L77: -16.65% | M77: 1411.5586 | N77: -14.82% | O77: 7677.60 | P77: -23.05%
B78: 规上货运量 (万吨) | C78: 1068.203 | D78: -36.39% | E78: 1082.0457 | F78: -31.85% | G78: 1315.4117 | H78: -20.70% | I78: 1395.7514 | J78: -18.35% | K78: 1404.6304 | L78: -16.65% | M78: 1411.5586 | N78: -14.82% | O78: 7677.60 | P78: -23.05%
B79: 规下货运量 (万吨) | C79: 1068.203 | D79: -36.39% | E79: 1082.0457 | F79: -31.85% | G79: 1315.4117 | H79: -20.70% | I79: 1395.7514 | J79: -18.35% | K79: 1404.6304 | L79: -16.65% | M79: 1411.5586 | N79: -14.82% | O79: 7677.60 | P79: -23.05%
B80: 规上+规下周转量 (万吨公里) | C80: 687807.49 | D80: 11.51% | E80: 459304.08 | F80: -17.74% | G80: 675053.06 | H80: -4.31% | I80: 704560.76 | J80: -1.55% | K80: 714138.90 | L80: -1.29% | M80: 687103.88 | N80: 1.39% | O80: 3927968.18 | P80: -1.74%
B81: 规上货物周转量 (万吨公里) | C81: 165332.6054 | D81: -26.11% | E81: 149830.2083 | F81: -30.56% | G81: 212998.4307 | H81: -6.59% | I81: 227544.8264 | J81: -1.64% | K81: 238395.1236 | L81: 1.35% | M81: 241659.5295 | N81: -0.77% | O81: 1235760.72 | P81: -10.30%
B82: 规下货物周转量 (万吨公里) | C82: 522475 | D82: 32.93% | E82: 309474 | F82: -9.68% | G82: 462055 | H82: -3.22% | I82: 477016 | J82: -1.51% | K82: 475744 | L82: -2.56% | M82: 445444 | N82: 2.60% | O82: 2692207.45 | P82: 2.76%
A83: 恩施 | B83: 规上+规下货运量(万吨) | C83: 1068.203 | D83: -36.39% | E83: 1082.0457 | F83: -31.85% | G83: 1315.4117 | H83: -20.70% | I83: 1395.7514 | J83: -18.35% | K83: 1404.6304 | L83: -16.65% | M83: 1411.5586 | N83: -14.82% | O83: 7677.60 | P83: -23.05%
B84: 规上货运量 (万吨) | C84: 1068.203 | D84: -36.39% | E84: 1082.0457 | F84: -31.85% | G84: 1315.4117 | H84: -20.70% | I84: 1395.7514 | J84: -18.35% | K84: 1404.6304 | L84: -16.65% | M84: 1411.5586 | N84: -14.82% | O84: 7677.60 | P84: -23.05%
B85: 规下货运量 (万吨) | C85: 1068.203 | D85: -36.39% | E85: 1082.0457 | F85: -31.85% | G85: 1315.4117 | H85: -20.70% | I85: 1395.7514 | J85: -18.35% | K85: 1404.6304 | L85: -16.65% | M85: 1411.5586 | N85: -14.82% | O85: 7677.60 | P85: -23.05%
B86: 规上+规下周转量 (万吨公里) | C86: 687807.49 | D86: 11.51% | E86: 459304.08 | F86: -17.74% | G86: 675053.06 | H86: -4.31% | I86: 704560.76 | J86: -1.55% | K86: 714138.90 | L86: -1.29% | M86: 687103.88 | N86: 1.39% | O86: 3927968.18 | P86: -1.74%
B87: 规上货物周转量 (万吨公里) | C87: 165332.6054 | D87: -26.11% | E87: 149830.2083 | F87: -30.56% | G87: 212998.4307 | H87: -6.59% | I87: 227544.8264 | J87: -1.64% | K87: 238395.1236 | L87: 1.35% | M87: 241659.5295 | N87: -0.77% | O87: 1235760.72 | P87: -10.30%
B88: 规下货物周转量 (万吨公里) | C88: 522475 | D88: 32.93% | E88: 309474 | F88: -9.68% | G88: 462055 | H88: -3.22% | I88: 477016 | J88: -1.51% | K88: 475744 | L88: -2.56% | M88: 445444 | N88: 2.60% | O88: 2692207.45 | P88: 2.76%
A89: 仙桃 | B89: 规上+规下货运量(万吨) | C89: 1068.203 | D89: -36.39% | E89: 1082.0457 | F89: -31.85% | G89: 1315.4117 | H89: -20.70% | I89: 1395.7514 | J89: -18.35% | K89: 1404.6304 | L89: -16.65% | M89: 1411.5586 | N89: -14.82% | O89: 7677.60 | P89: -23.05%
B90: 规上货运量 (万吨) | C90: 1068.203 | D90: -36.39% | E90: 1082.0457 | F90: -31.85% | G90: 1315.4117 | H90: -20.70% | I90: 1395.7514 | J90: -18.35% | K90: 1404.6304 | L90: -16.65% | M90: 1411.5586 | N90: -14.82% | O90: 7677.60 | P90: -23.05%
B91: 规下货运量 (万吨) | C91: 1068.203 | D91: -36.39% | E91: 1082.0457 | F91: -31.85% | G91: 1315.4117 | H91: -20.70% | I91: 1395.7514 | J91: -18.35% | K91: 1404.6304 | L91: -16.65% | M91: 1411.5586 | N91: -14.82% | O91: 7677.60 | P91: -23.05%
B92: 规上+规下周转量 (万吨公里) | C92: 687807.49 | D92: 11.51% | E92: 459304.08 | F92: -17.74% | G92: 675053.06 | H92: -4.31% | I92: 704560.76 | J92: -1.55% | K92: 714138.90 | L92: -1.29% | M92: 687103.88 | N92: 1.39% | O92: 3927968.18 | P92: -1.74%
B93: 规上货物周转量 (万吨公里) | C93: 165332.6054 | D93: -26.11% | E93: 149830.2083 | F93: -30.56% | G93: 212998.4307 | H93: -6.59% | I93: 227544.8264 | J93: -1.64% | K93: 238395.1236 | L93: 1.35% | M93: 241659.5295 | N93: -0.77% | O93: 1235760.72 | P93: -10.30%
B94: 规下货物周转量 (万吨公里) | C94: 522475 | D94: 32.93% | E94: 309474 | F94: -9.68% | G94: 462055 | H94: -3.22% | I94: 477016 | J94: -1.51% | K94: 475744 | L94: -2.56% | M94: 445444 | N94: 2.60% | O94: 2692207.45 | P94: 2.76%
A95: 潜江 | B95: 规上+规下货运量(万吨) | C95: 1068.203 | D95: -36.39% | E95: 1082.0457 | F95: -31.85% | G95: 1315.4117 | H95: -20.70% | I95: 1395.7514 | J95: -18.35% | K95: 1404.6304 | L95: -16.65% | M95: 1411.5586 | N95: -14.82% | O95: 7677.60 | P95: -23.05%
B96: 规上货运量 (万吨) | C96: 1068.203 | D96: -36.39% | E96: 1082.0457 | F96: -31.85% | G96: 1315.4117 | H96: -20.70% | I96: 1395.7514 | J96: -18.35% | K96: 1404.6304 | L96: -16.65% | M96: 1411.5586 | N96: -14.82% | O96: 7677.60 | P96: -23.05%
B97: 规下货运量 (万吨) | C97: 1068.203 | D97: -36.39% | E97: 1082.0457 | F97: -31.85% | G97: 1315.4117 | H97: -20.70% | I97: 1395.7514 | J97: -18.35% | K97: 1404.6304 | L97: -16.65% | M97: 1411.5586 | N97: -14.82% | O97: 7677.60 | P97: -23.05%
B98: 规上+规下周转量 (万吨公里) | C98: 687807.49 | D98: 11.51% | E98: 459304.08 | F98: -17.74% | G98: 675053.06 | H98: -4.31% | I98: 704560.76 | J98: -1.55% | K98: 714138.90 | L98: -1.29% | M98: 687103.88 | N98: 1.39% | O98: 3927968.18 | P98: -1.74%
B99: 规上货物周转量 (万吨公里) | C99: 165332.6054 | D99: -26.11% | E99: 149830.2083 | F99: -30.56% | G99: 212998.4307 | H99: -6.59% | I99: 227544.8264 | J99: -1.64% | K99: 238395.1236 | L99: 1.35% | M99: 241659.5295 | N99: -0.77% | O99: 1235760.72 | P99: -10.30%
B100: 规下货物周转量 (万吨公里) | C100: 522475 | D100: 32.93% | E100: 309474 | F100: -9.68% | G100: 462055 | H100: -3.22% | I100: 477016 | J100: -1.51% | K100: 475744 | L100: -2.56% | M100: 445444 | N100: 2.60% | O100: 2692207.45 | P100: 2.76%
A101: 天门 | B101: 规上+规下货运量(万吨) | C101: 1068.203 | D101: -36.39% | E101: 1082.0457 | F101: -31.85% | G101: 1315.4117 | H101: -20.70% | I101: 1395.7514 | J101: -18.35% | K101: 1404.6304 | L101: -16.65% | M101: 1411.5586 | N101: -14.82% | O101: 7677.60 | P101: -23.05%
B102: 规上货运量 (万吨) | C102: 1068.203 | D102: -36.39% | E102: 1082.0457 | F102: -31.85% | G102: 1315.4117 | H102: -20.70% | I102: 1395.7514 | J102: -18.35% | K102: 1404.6304 | L102: -16.65% | M102: 1411.5586 | N102: -14.82% | O102: 7677.60 | P102: -23.05%
B103: 规下货运量 (万吨) | C103: 1068.203 | D103: -36.39% | E103: 1082.0457 | F103: -31.85% | G103: 1315.4117 | H103: -20.70% | I103: 1395.7514 | J103: -18.35% | K103: 1404.6304 | L103: -16.65% | M103: 1411.5586 | N103: -14.82% | O103: 7677.60 | P103: -23.05%
B104: 规上+规下周转量 (万吨公里) | C104: 687807.49 | D104: 11.51% | E104: 459304.08 | F104: -17.74% | G104: 675053.06 | H104: -4.31% | I104: 704560.76 | J104: -1.55% | K104: 714138.90 | L104: -1.29% | M104: 687103.88 | N104: 1.39% | O104: 3927968.18 | P104: -1.74%
B105: 规上货物周转量 (万吨公里) | C105: 165332.6054 | D105: -26.11% | E105: 149830.2083 | F105: -30.56% | G105: 212998.4307 | H105: -6.59% | I105: 227544.8264 | J105: -1.64% | K105: 238395.1236 | L105: 1.35% | M105: 241659.5295 | N105: -0.77% | O105: 1235760.72 | P105: -10.30%
B106: 规下货物周转量 (万吨公里) | C106: 522475 | D106: 32.93% | E106: 309474 | F106: -9.68% | G106: 462055 | H106: -3.22% | I106: 477016 | J106: -1.51% | K106: 475744 | L106: -2.56% | M106: 445444 | N106: 2.60% | O106: 2692207.45 | P106: 2.76%
A107: 林区 | B107: 规上+规下货运量(万吨) | C107: 1068.203 | D107: -36.39% | E107: 1082.0457 | F107: -31.85% | G107: 1315.4117 | H107: -20.70% | I107: 1395.7514 | J107: -18.35% | K107: 1404.6304 | L107: -16.65% | M107: 1411.5586 | N107: -14.82% | O107: 7677.60 | P107: -23.05%
B108: 规上货运量 (万吨) | C108: 1068.203 | D108: -36.39% | E108: 1082.0457 | F108: -31.85% | G108: 1315.4117 | H108: -20.70% | I108: 1395.7514 | J108: -18.35% | K108: 1404.6304 | L108: -16.65% | M108: 1411.5586 | N108: -14.82% | O108: 7677.60 | P108: -23.05%
B109: 规下货运量 (万吨) | C109: 1068.203 | D109: -36.39% | E109: 1082.0457 | F109: -31.85% | G109: 1315.4117 | H109: -20.70% | I109: 1395.7514 | J109: -18.35% | K109: 1404.6304 | L109: -16.65% | M109: 1411.5586 | N109: -14.82% | O109: 7677.60 | P109: -23.05%
B110: 规上+规下周转量 (万吨公里) | C110: 687807.49 | D110: 11.51% | E110: 459304.08 | F110: -17.74% | G110: 675053.06 | H110: -4.31% | I110: 704560.76 | J110: -1.55% | K110: 714138.90 | L110: -1.29% | M110: 687103.88 | N110: 1.39% | O110: 3927968.18 | P110: -1.74%
B111: 规上货物周转量 (万吨公里) | C111: 165332.6054 | D111: -26.11% | E111: 149830.2083 | F111: -30.56% | G111: 212998.4307 | H111: -6.59% | I111: 227544.8264 | J111: -1.64% | K111: 238395.1236 | L111: 1.35% | M111: 241659.5295 | N111: -0.77% | O111: 1235760.72 | P111: -10.30%
B112: 规下货物周转量 (万吨公里) | C112: 522475 | D112: 32.93% | E112: 309474 | F112: -9.68% | G112: 462055 | H112: -3.22% | I112: 477016 | J112: -1.51% | K112: 475744 | L112: -2.56% | M112: 445444 | N112: 2.60% | O112: 2692207.45 | P112: 2.76%

Sheet 货运量排名
A1: 2026年1-6月全省分市州累计完成公路货运量情况
A2: 市州 | B2: 规上货运量 | E2: 规上增速 | G2: 规下货运量 | J2: 规下增速 | L2: 合计货运量 | O2: 合计增速 | Q2: 分市州规上规下占比
B3: 累计完成 (万吨） | C3: 排名 | D3: 占全省比重 | E3: 同比 | F3: 增速 排名 | G3: 累计完成 (万吨） | H3: 排名 | I3: 占全省比重 | J3: 同比 | K3: 增速排名 | L3: 累计完成 (万吨） | M3: 排名 | N3: 占全省比重 | O3: 同比 | P3: 增速排名
A4: 全省 | B4: 23979.68 | E4: -9.26% | G4: 73157.74 | J4: 5.44% | L4: 97137 | O4: 1.39% | Q4: =ROUND(B4/L4*10,1) -> 2.5 | R4: =10-Q4 -> 7.5
A5: 武汉 | B5: 7677.60 | C5: 1 | D5: 32.02% | E5: -23.05% | F5: 14 | G5: 21688 | H5: 1 | I5: 29.65% | J5: 10.98% | K5: 4 | L5: 29366 | M5: 1 | N5: 26.14% | O5: -0.52% | P5: 17 | Q5: 2.6 | R5: 7.4
A6: 黄石 | B6: 876.97 | C6: 7 | D6: 3.66% | E6: -36.23% | F6: 16 | G6: 2526 | H6: 9 | I6: 3.45% | J6: 24.77% | K6: 1 | L6: 3403 | M6: 9 | N6: 25.77% | O6: 0.09% | P6: 14 | Q6: 2.6 | R6: 7.4
A7: 十堰 | B7: 71.93 | C7: 15 | D7: 0.30% | E7: -5.77% | F7: 11 | G7: 1954 | H7: 11 | I7: 2.67% | J7: 7.28% | K7: 5 | L7: 2026 | M7: 12 | N7: 3.55% | O7: 6.76% | P7: 3 | Q7: 0.4 | R7: 9.6
A8: 宜昌 | B8: 4467.20 | C8: 2 | D8: 18.63% | E8: 1.47% | F8: 10 | G8: 3008 | H8: 7 | I8: 4.11% | J8: -2.98% | K8: 13 | L8: 7476 | M8: 3 | N8: 59.76% | O8: -0.37% | P8: 15 | Q8: 6 | R8: 4
A9: 襄阳 | B9: 1857.65 | C9: 4 | D9: 7.75% | E9: -28.19% | F9: 15 | G9: 15681 | H9: 2 | I9: 21.43% | J9: 4.35% | K9: 8 | L9: 17538 | M9: 2 | N9: 10.59% | O9: -0.43% | P9: 16 | Q9: 1.1 | R9: 8.9
A10: 鄂州 | B10: 692.01 | C10: 8 | D10: 2.89% | E10: 39.74% | F10: 4 | G10: 550 | H10: 16 | I10: 0.75% | J10: -19.19% | K10: 17 | L10: 1242 | M10: 14 | N10: 55.71% | O10: 5.62% | P10: 5 | Q10: 5.6 | R10: 4.4
A11: 荆门 | B11: 474.26 | C11: 10 | D11: 1.98% | E11: -7.29% | F11: 12 | G11: 5639 | H11: 3 | I11: 7.71% | J11: 4.21% | K11: 9 | L11: 6113 | M11: 5 | N11: 7.76% | O11: 3.22% | P11: 10 | Q11: 0.8 | R11: 9.2
A12: 孝感 | B12: 1038.64 | C12: 5 | D12: 4.33% | E12: 30.73% | F12: 5 | G12: 1259 | H12: 13 | I12: 1.72% | J12: -12.79% | K12: 15 | L12: 2297 | M12: 11 | N12: 45.21% | O12: 2.66% | P12: 11 | Q12: 4.5 | R12: 5.5
A13: 荆州 | B13: 1021.08 | C13: 6 | D13: 4.26% | E13: 2.01% | F13: 9 | G13: 4929 | H13: 4 | I13: 6.74% | J13: 6.64% | K13: 6 | L13: 5950 | M13: 6 | N13: 17.16% | O13: 5.81% | P13: 4 | Q13: 1.7 | R13: 8.3
A14: 黄冈 | B14: 4227.75 | C14: 3 | D14: 17.63% | E14: 17.72% | F14: 6 | G14: 2547 | H14: 8 | I14: 3.48% | J14: -13.53% | K14: 16 | L14: 6775 | M14: 4 | N14: 62.40% | O14: 3.64% | P14: 9 | Q14: 6.2 | R14: 3.8
A15: 咸宁 | B15: 567.75 | C15: 9 | D15: 2.37% | E15: 41.37% | F15: 3 | G15: 3515 | H15: 6 | I15: 4.80% | J15: 1.13% | K15: 10 | L15: 4083 | M15: 8 | N15: 13.91% | O15: 5.29% | P15: 7 | Q15: 1.4 | R15: 8.6
A16: 随州 | B16: 358.78 | C16: 11 | D16: 1.50% | E16: -46.71% | F16: 17 | G16: 4309 | H16: 5 | I16: 5.89% | J16: 12.80% | K16: 3 | L16: 4668 | M16: 7 | N16: 7.69% | O16: 3.88% | P16: 8 | Q16: 0.8 | R16: 9.2
A17: 恩施州 | B17: 35.70 | C17: 16 | D17: 0.15% | E17: 42.38% | F17: 2 | G17: 2327 | H17: 10 | I17: 3.18% | J17: 0.37% | K17: 12 | L17: 2363 | M17: 10 | N17: 1.51% | O17: 0.82% | P17: 13 | Q17: 0.2 | R17: 9.8
A18: 仙桃 | B18: 98.26 | C18: 14 | D18: 0.41% | E18: 508.38% | F18: 1 | G18: 694 | H18: 15 | I18: 0.95% | J18: -4.40% | K18: 14 | L18: 792 | M18: 16 | N18: 12.40% | O18: 6.77% | P18: 2 | Q18: 1.2 | R18: 8.8
A19: 潜江 | B19: 230.44 | C19: 13 | D19: 0.96% | E19: 7.39% | F19: 7 | G19: 940 | H19: 14 | I19: 1.28% | J19: 0.50% | K19: 11 | L19: 1170 | M19: 15 | N19: 19.69% | O19: 1.79% | P19: 12 | Q19: 2 | R19: 8
A20: 天门 | B20: 252.46 | C20: 12 | D20: 1.05% | E20: 2.58% | F20: 8 | G20: 1484 | H20: 12 | I20: 2.03% | J20: 6.16% | K20: 7 | L20: 1736 | M20: 13 | N20: 14.54% | O20: 5.62% | P20: 6 | Q20: 1.5 | R20: 8.5
A21: 林区 | B21: 31.20 | C21: 17 | D21: 0.13% | E21: -17.97% | F21: 13 | G21: 108 | H21: 17 | I21: 0.15% | J21: 20.54% | K21: 2 | L21: 139 | M21: 17 | N21: 22.37% | O21: 9.08% | P21: 1 | Q21: 2.2 | R21: 7.8
A23: 2026年6月全省分市州累计完成公路货运量情况
A24: 市州 | B24: 规上货运量 | E24: 规上增速 | G24: 规下货运量 | J24: 规下增速 | L24: 合计货运量 | O24: 合计增速 | Q24: 分市州规上规下占比
B25: 累计完成 (万吨） | C25: 排名 | D25: 占全省比重 | E25: 同比 | F25: 增速 排名 | G25: 累计完成 (万吨） | H25: 排名 | I25: 占全省比重 | J25: 同比 | K25: 增速排名 | L25: 累计完成 (万吨） | M25: 排名 | N25: 占全省比重 | O25: 同比 | P25: 增速排名
A26: 全省 | B26: 23979.68 | E26: -9.26% | G26: 73157.74 | J26: 5.44% | L26: 97137 | O26: 1.39% | Q26: =ROUND(B26/L26*10,1) -> 2.5 | R26: =10-Q26 -> 7.5
A27: 武汉 | B27: 7677.60 | C27: 1 | D27: 32.02% | E27: -23.05% | F27: 14 | G27: 21688 | H27: 1 | I27: 29.65% | J27: 10.98% | K27: 4 | L27: 29366 | M27: 1 | N27: 26.14% | O27: -0.52% | P27: 17 | Q27: 2.6 | R27: 7.4
A28: 黄石 | B28: 876.97 | C28: 7 | D28: 3.66% | E28: -36.23% | F28: 16 | G28: 2526 | H28: 9 | I28: 3.45% | J28: 24.77% | K28: 1 | L28: 3403 | M28: 9 | N28: 25.77% | O28: 0.09% | P28: 14 | Q28: 2.6 | R28: 7.4
A29: 十堰 | B29: 71.93 | C29: 15 | D29: 0.30% | E29: -5.77% | F29: 11 | G29: 1954 | H29: 11 | I29: 2.67% | J29: 7.28% | K29: 5 | L29: 2026 | M29: 12 | N29: 3.55% | O29: 6.76% | P29: 3 | Q29: 0.4 | R29: 9.6
A30: 宜昌 | B30: 4467.20 | C30: 2 | D30: 18.63% | E30: 1.47% | F30: 10 | G30: 3008 | H30: 7 | I30: 4.11% | J30: -2.98% | K30: 13 | L30: 7476 | M30: 3 | N30: 59.76% | O30: -0.37% | P30: 15 | Q30: 6 | R30: 4
A31: 襄阳 | B31: 1857.65 | C31: 4 | D31: 7.75% | E31: -28.19% | F31: 15 | G31: 15681 | H31: 2 | I31: 21.43% | J31: 4.35% | K31: 8 | L31: 17538 | M31: 2 | N31: 10.59% | O31: -0.43% | P31: 16 | Q31: 1.1 | R31: 8.9
A32: 鄂州 | B32: 692.01 | C32: 8 | D32: 2.89% | E32: 39.74% | F32: 4 | G32: 550 | H32: 16 | I32: 0.75% | J32: -19.19% | K32: 17 | L32: 1242 | M32: 14 | N32: 55.71% | O32: 5.62% | P32: 5 | Q32: 5.6 | R32: 4.4
A33: 荆门 | B33: 474.26 | C33: 10 | D33: 1.98% | E33: -7.29% | F33: 12 | G33: 5639 | H33: 3 | I33: 7.71% | J33: 4.21% | K33: 9 | L33: 6113 | M33: 5 | N33: 7.76% | O33: 3.22% | P33: 10 | Q33: 0.8 | R33: 9.2
A34: 孝感 | B34: 1038.64 | C34: 5 | D34: 4.33% | E34: 30.73% | F34: 5 | G34: 1259 | H34: 13 | I34: 1.72% | J34: -12.79% | K34: 15 | L34: 2297 | M34: 11 | N34: 45.21% | O34: 2.66% | P34: 11 | Q34: 4.5 | R34: 5.5
A35: 荆州 | B35: 1021.08 | C35: 6 | D35: 4.26% | E35: 2.01% | F35: 9 | G35: 4929 | H35: 4 | I35: 6.74% | J35: 6.64% | K35: 6 | L35: 5950 | M35: 6 | N35: 17.16% | O35: 5.81% | P35: 4 | Q35: 1.7 | R35: 8.3
A36: 黄冈 | B36: 4227.75 | C36: 3 | D36: 17.63% | E36: 17.72% | F36: 6 | G36: 2547 | H36: 8 | I36: 3.48% | J36: -13.53% | K36: 16 | L36: 6775 | M36: 4 | N36: 62.40% | O36: 3.64% | P36: 9 | Q36: 6.2 | R36: 3.8
A37: 咸宁 | B37: 567.75 | C37: 9 | D37: 2.37% | E37: 41.37% | F37: 3 | G37: 3515 | H37: 6 | I37: 4.80% | J37: 1.13% | K37: 10 | L37: 4083 | M37: 8 | N37: 13.91% | O37: 5.29% | P37: 7 | Q37: 1.4 | R37: 8.6
A38: 随州 | B38: 358.78 | C38: 11 | D38: 1.50% | E38: -46.71% | F38: 17 | G38: 4309 | H38: 5 | I38: 5.89% | J38: 12.80% | K38: 3 | L38: 4668 | M38: 7 | N38: 7.69% | O38: 3.88% | P38: 8 | Q38: 0.8 | R38: 9.2
A39: 恩施州 | B39: 35.70 | C39: 16 | D39: 0.15% | E39: 42.38% | F39: 2 | G39: 2327 | H39: 10 | I39: 3.18% | J39: 0.37% | K39: 12 | L39: 2363 | M39: 10 | N39: 1.51% | O39: 0.82% | P39: 13 | Q39: 0.2 | R39: 9.8
A40: 仙桃 | B40: 98.26 | C40: 14 | D40: 0.41% | E40: 508.38% | F40: 1 | G40: 694 | H40: 15 | I40: 0.95% | J40: -4.40% | K40: 14 | L40: 792 | M40: 16 | N40: 12.40% | O40: 6.77% | P40: 2 | Q40: 1.2 | R40: 8.8
A41: 潜江 | B41: 230.44 | C41: 13 | D41: 0.96% | E41: 7.39% | F41: 7 | G41: 940 | H41: 14 | I41: 1.28% | J41: 0.50% | K41: 11 | L41: 1170 | M41: 15 | N41: 19.69% | O41: 1.79% | P41: 12 | Q41: 2 | R41: 8
A42: 天门 | B42: 252.46 | C42: 12 | D42: 1.05% | E42: 2.58% | F42: 8 | G42: 1484 | H42: 12 | I42: 2.03% | J42: 6.16% | K42: 7 | L42: 1736 | M42: 13 | N42: 14.54% | O42: 5.62% | P42: 6 | Q42: 1.5 | R42: 8.5
A43: 林区 | B43: 31.20 | C43: 17 | D43: 0.13% | E43: -17.97% | F43: 13 | G43: 108 | H43: 17 | I43: 0.15% | J43: 20.54% | K43: 2 | L43: 139 | M43: 17 | N43: 22.37% | O43: 9.08% | P43: 1 | Q43: 2.2 | R43: 7.8
E47: 当月+累计

Sheet 周转量排名
A1: 2026年1-6月全省分市州累计完成公路货物运输周转量情况
A2: 市州 | B2: 规上周转量 | E2: 规上增速 | G2: 规下周转量 | J2: 规下增速 | L2: 合计周转量 | O2: 合计增速 | Q2: 分市州规上规下占比
B3: 累计完成 (万吨公里） | C3: 排名 | D3: 占全省 比重 | E3: 同比 | F3: 增速 排名 | G3: 累计完成 (万吨公里） | H3: 排名 | I3: 占全省比重 | J3: 同比 | K3: 增速排名 | L3: 累计完成 (万吨公里） | M3: 排名 | N3: 占全省比重 | O3: 同比 | P3: 增速排名
A4: 全省 | B4: 3759879 | E4: -6.42% | G4: 9280314 | J4: 0.96% | L4: 13040193 | O4: -0.90% | Q4: 2.9 | R4: 7.1
A5: 武汉 | B5: 1235761 | C5: 1 | D5: 32.87% | E5: -10.30% | F5: 9 | G5: 2692207 | H5: 1 | I5: 29.01% | J5: 2.80% | K5: 7 | L5: 3927968 | M5: 1 | N5: 30.12% | O5: -1.74% | P5: 15 | Q5: 3.1 | R5: 6.9
A6: 黄石 | B6: 102905 | C6: 8 | D6: 2.74% | E6: -19.02% | F6: 12 | G6: 181022 | H6: 11 | I6: 1.95% | J6: 13.23% | K6: 3 | L6: 283926 | M6: 11 | N6: 2.18% | O6: -0.71% | P6: 11 | Q6: 3.6 | R6: 6.4
A7: 十堰 | B7: 23110 | C7: 13 | D7: 0.61% | E7: -7.58% | F7: 8 | G7: 254333 | H7: 8 | I7: 2.74% | J7: 2.08% | K7: 8 | L7: 277443 | M7: 12 | N7: 2.13% | O7: 1.27% | P7: 2 | Q7: 0.8 | R7: 9.2
A8: 宜昌 | B8: 394891 | C8: 4 | D8: 10.50% | E8: 7.18% | F8: 5 | G8: 300889 | H8: 7 | I8: 3.24% | J8: -12.84% | K8: 15 | L8: 695779 | M8: 7 | N8: 5.34% | O8: -1.28% | P8: 12 | Q8: 5.7 | R8: 4.3
A9: 襄阳 | B9: 500109 | C9: 3 | D9: 13.30% | E9: -15.66% | F9: 11 | G9: 2566987 | H9: 2 | I9: 27.66% | J9: 0.67% | K9: 12 | L9: 3067096 | M9: 2 | N9: 23.52% | O9: -1.74% | P9: 14 | Q9: 1.6 | R9: 8.4
A10: 鄂州 | B10: 30498 | C10: 12 | D10: 0.81% | E10: -47.88% | F10: 15 | G10: 58156 | H10: 16 | I10: 0.63% | J10: 64.20% | K10: 1 | L10: 88654 | M10: 16 | N10: 0.68% | O10: -5.73% | P10: 17 | Q10: 3.4 | R10: 6.6
A11: 荆门 | B11: 130878 | C11: 7 | D11: 3.48% | E11: -14.85% | F11: 10 | G11: 634416 | H11: 5 | I11: 6.84% | J11: 3.65% | K11: 6 | L11: 765294 | M11: 4 | N11: 5.87% | O11: 0.24% | P11: 7 | Q11: 1.7 | R11: 8.3
A12: 孝感 | B12: 173194 | C12: 6 | D12: 4.61% | E12: 13.16% | F12: 4 | G12: 121388 | H12: 13 | I12: 1.31% | J12: -18.84% | K12: 16 | L12: 294583 | M12: 10 | N12: 2.26% | O12: -2.31% | P12: 16 | Q12: 5.9 | R12: 4.1
A13: 荆州 | B13: 333204 | C13: 5 | D13: 8.86% | E13: 0.32% | F13: 6 | G13: 645692 | H13: 4 | I13: 6.96% | J13: 1.68% | K13: 10 | L13: 978896 | M13: 3 | N13: 7.51% | O13: 1.70% | P13: 1 | Q13: 3.4 | R13: 6.6
A14: 黄冈 | B14: 576559 | C14: 2 | D14: 15.33% | E14: 14.13% | F14: 2 | G14: 185415 | H14: 10 | I14: 2.00% | J14: -26.33% | K14: 17 | L14: 761974 | M14: 5 | N14: 5.84% | O14: 0.92% | P14: 3 | Q14: 7.6 | R14: 2.4
A15: 咸宁 | B15: 68232 | C15: 11 | D15: 1.81% | E15: -3.19% | F15: 7 | G15: 249547 | H15: 9 | I15: 2.69% | J15: 1.30% | K15: 11 | L15: 317779 | M15: 9 | N15: 2.44% | O15: 0.56% | P15: 5 | Q15: 2.1 | R15: 7.9
A16: 随州 | B16: 70054 | C16: 10 | D16: 1.86% | E16: -42.61% | F16: 14 | G16: 652589 | H16: 3 | I16: 7.03% | J16: 8.21% | K16: 5 | L16: 722643 | M16: 6 | N16: 5.54% | O16: 0.62% | P16: 4 | Q16: 1 | R16: 9
A17: 恩施 | B17: 4586 | C17: 16 | D17: 0.12% | E17: 42.09% | F17: 1 | G17: 341695 | H17: 6 | I17: 3.68% | J17: -2.23% | K17: 13 | L17: 346281 | M17: 8 | N17: 2.66% | O17: -1.49% | P17: 13 | Q17: 0.1 | R17: 9.9
A18: 仙桃 | B18: 7054 | C18: 15 | D18: 0.19% | E18: -27.49% | F18: 13 | G18: 99761 | H18: 15 | I18: 1.07% | J18: 1.97% | K18: 9 | L18: 106815 | M18: 15 | N18: 0.82% | O18: -0.27% | P18: 8 | Q18: 0.7 | R18: 9.3
A19: 潜江 | B19: 89910 | C19: 9 | D19: 2.39% | E19: 14.01% | F19: 3 | G19: 106378 | H19: 14 | I19: 1.15% | J19: -10.22% | K19: 14 | L19: 196288 | M19: 14 | N19: 1.51% | O19: 0.44% | P19: 6 | Q19: 4.6 | R19: 5.4
A20: 天门 | B20: 17099 | C20: 14 | D20: 0.45% | E20: -49.99% | F20: 16 | G20: 179758 | H20: 12 | I20: 1.94% | J20: 10.91% | K20: 4 | L20: 196857 | M20: 13 | N20: 1.51% | O20: -0.64% | P20: 10 | Q20: 0.9 | R20: 9.1
A21: 林区 | B21: 1838 | C21: 17 | D21: 0.05% | E21: -66.08% | F21: 17 | G21: 10080 | H21: 17 | I21: 0.11% | J21: 43.65% | K21: 2 | L21: 11918 | M21: 17 | N21: 0.09% | O21: -0.62% | P21: 9 | Q21: 1.5 | R21: 8.5
A23: 2026年1-6月全省分市州累计完成公路货物运输周转量情况
A24: 市州 | B24: 规上周转量 | E24: 规上增速 | G24: 规下周转量 | J24: 规下增速 | L24: 合计周转量 | O24: 合计增速 | Q24: 分市州规上规下占比
B25: 累计完成 (万吨公里） | C25: 排名 | D25: 占全省 比重 | E25: 同比 | F25: 增速 排名 | G25: 累计完成 (万吨公里） | H25: 排名 | I25: 占全省比重 | J25: 同比 | K25: 增速排名 | L25: 累计完成 (万吨公里） | M25: 排名 | N25: 占全省比重 | O25: 同比 | P25: 增速排名
A26: 全省 | B26: 3759879 | E26: -6.42% | G26: 9280314 | J26: 0.96% | L26: 13040193 | O26: -0.90% | Q26: 2.9 | R26: 7.1
A27: 武汉 | B27: 1235761 | C27: 1 | D27: 32.87% | E27: -10.30% | F27: 9 | G27: 2692207 | H27: 1 | I27: 29.01% | J27: 2.80% | K27: 7 | L27: 3927968 | M27: 1 | N27: 30.12% | O27: -1.74% | P27: 15 | Q27: 3.1 | R27: 6.9
A28: 黄石 | B28: 102905 | C28: 8 | D28: 2.74% | E28: -19.02% | F28: 12 | G28: 181022 | H28: 11 | I28: 1.95% | J28: 13.23% | K28: 3 | L28: 283926 | M28: 11 | N28: 2.18% | O28: -0.71% | P28: 11 | Q28: 3.6 | R28: 6.4
A29: 十堰 | B29: 23110 | C29: 13 | D29: 0.61% | E29: -7.58% | F29: 8 | G29: 254333 | H29: 8 | I29: 2.74% | J29: 2.08% | K29: 8 | L29: 277443 | M29: 12 | N29: 2.13% | O29: 1.27% | P29: 2 | Q29: 0.8 | R29: 9.2
A30: 宜昌 | B30: 394891 | C30: 4 | D30: 10.50% | E30: 7.18% | F30: 5 | G30: 300889 | H30: 7 | I30: 3.24% | J30: -12.84% | K30: 15 | L30: 695779 | M30: 7 | N30: 5.34% | O30: -1.28% | P30: 12 | Q30: 5.7 | R30: 4.3
A31: 襄阳 | B31: 500109 | C31: 3 | D31: 13.30% | E31: -15.66% | F31: 11 | G31: 2566987 | H31: 2 | I31: 27.66% | J31: 0.67% | K31: 12 | L31: 3067096 | M31: 2 | N31: 23.52% | O31: -1.74% | P31: 14 | Q31: 1.6 | R31: 8.4
A32: 鄂州 | B32: 30498 | C32: 12 | D32: 0.81% | E32: -47.88% | F32: 15 | G32: 58156 | H32: 16 | I32: 0.63% | J32: 64.20% | K32: 1 | L32: 88654 | M32: 16 | N32: 0.68% | O32: -5.73% | P32: 17 | Q32: 3.4 | R32: 6.6
A33: 荆门 | B33: 130878 | C33: 7 | D33: 3.48% | E33: -14.85% | F33: 10 | G33: 634416 | H33: 5 | I33: 6.84% | J33: 3.65% | K33: 6 | L33: 765294 | M33: 4 | N33: 5.87% | O33: 0.24% | P33: 7 | Q33: 1.7 | R33: 8.3
A34: 孝感 | B34: 173194 | C34: 6 | D34: 4.61% | E34: 13.16% | F34: 4 | G34: 121388 | H34: 13 | I34: 1.31% | J34: -18.84% | K34: 16 | L34: 294583 | M34: 10 | N34: 2.26% | O34: -2.31% | P34: 16 | Q34: 5.9 | R34: 4.1
A35: 荆州 | B35: 333204 | C35: 5 | D35: 8.86% | E35: 0.32% | F35: 6 | G35: 645692 | H35: 4 | I35: 6.96% | J35: 1.68% | K35: 10 | L35: 978896 | M35: 3 | N35: 7.51% | O35: 1.70% | P35: 1 | Q35: 3.4 | R35: 6.6
A36: 黄冈 | B36: 576559 | C36: 2 | D36: 15.33% | E36: 14.13% | F36: 2 | G36: 185415 | H36: 10 | I36: 2.00% | J36: -26.33% | K36: 17 | L36: 761974 | M36: 5 | N36: 5.84% | O36: 0.92% | P36: 3 | Q36: 7.6 | R36: 2.4
A37: 咸宁 | B37: 68232 | C37: 11 | D37: 1.81% | E37: -3.19% | F37: 7 | G37: 249547 | H37: 9 | I37: 2.69% | J37: 1.30% | K37: 11 | L37: 317779 | M37: 9 | N37: 2.44% | O37: 0.56% | P37: 5 | Q37: 2.1 | R37: 7.9
A38: 随州 | B38: 70054 | C38: 10 | D38: 1.86% | E38: -42.61% | F38: 14 | G38: 652589 | H38: 3 | I38: 7.03% | J38: 8.21% | K38: 5 | L38: 722643 | M38: 6 | N38: 5.54% | O38: 0.62% | P38: 4 | Q38: 1 | R38: 9
A39: 恩施 | B39: 4586 | C39: 16 | D39: 0.12% | E39: 42.09% | F39: 1 | G39: 341695 | H39: 6 | I39: 3.68% | J39: -2.23% | K39: 13 | L39: 346281 | M39: 8 | N39: 2.66% | O39: -1.49% | P39: 13 | Q39: 0.1 | R39: 9.9
A40: 仙桃 | B40: 7054 | C40: 15 | D40: 0.19% | E40: -27.49% | F40: 13 | G40: 99761 | H40: 15 | I40: 1.07% | J40: 1.97% | K40: 9 | L40: 106815 | M40: 15 | N40: 0.82% | O40: -0.27% | P40: 8 | Q40: 0.7 | R40: 9.3
A41: 潜江 | B41: 89910 | C41: 9 | D41: 2.39% | E41: 14.01% | F41: 3 | G41: 106378 | H41: 14 | I41: 1.15% | J41: -10.22% | K41: 14 | L41: 196288 | M41: 14 | N41: 1.51% | O41: 0.44% | P41: 6 | Q41: 4.6 | R41: 5.4
A42: 天门 | B42: 17099 | C42: 14 | D42: 0.45% | E42: -49.99% | F42: 16 | G42: 179758 | H42: 12 | I42: 1.94% | J42: 10.91% | K42: 4 | L42: 196857 | M42: 13 | N42: 1.51% | O42: -0.64% | P42: 10 | Q42: 0.9 | R42: 9.1
A43: 林区 | B43: 1838 | C43: 17 | D43: 0.05% | E43: -66.08% | F43: 17 | G43: 10080 | H43: 17 | I43: 0.11% | J43: 43.65% | K43: 2 | L43: 11918 | M43: 17 | N43: 0.09% | O43: -0.62% | P43: 9 | Q43: 1.5 | R43: 8.5
E47: 当月+累计

Sheet 合计周转量
A1: 2026年1-6月全省累计完成交通周转量情况
A2: 分类 | B2: 纳入GDP核算的公路运输总周转量 | G2: 其中：道路货运周转量 | L2: 其中：城市客运量 | Q2: 其中：道路客运周转量
B3: 周转量总值 | C3: 排名 | D3: 占全省比例 | E3: 同比 | F3: 增速排名 | G3: 货物周转量（万吨公里） | H3: 排名 | I3: 占全省比例 | J3: 同比 | K3: 增速排名 | L3: 城市客运量（万人次） | M3: 排名 | N3: 占全省比例 | O3: 同比 | P3: 增速排名 | Q3: 公路客运周转量（万人公里） | R3: 排名 | S3: 占全省比例 | T3: 同比 | U3: 增速排名
A4: 全省 | B4: =SUM(B5:B21) -> 13234070.81 | E4: =B4/V4-1 -> -0.92% | G4: =SUM(G5:G21) -> 13040192.74 | J4: -0.90% | L4: =SUM(L5:L21) -> 204344.3 | O4: -1.11% | Q4: =SUM(Q5:Q21) -> 917059.20 | T4: -2.95% | V4: =W4+X4/2+Y4/10 -> 13356316.22 | W4: =SUM(W5:W21) -> 13158506.63 | X4: 206639.67 | Y4: 944897.56
A5: 武汉 | B5: =G5+L5/2+Q5/10 -> 3997620.286 | C5: =RANK(B5,B$5:B$21) -> 1 | D5: =B5/B$4 -> 30.21% | E5: -1.74% | F5: 15 | G5: 3927968 | H5: 1 | I5: =G5/G$4 -> 30.12% | J5: -1.74% | K5: =RANK(J5,J$5:J$21) -> 15 | L5: 116609.55 | M5: 1 | N5: =L5/L$4 -> 57.07% | O5: -2.98% | P5: 13 | Q5: 113473.31 | R5: =RANK(Q5,Q$5:Q$21) -> 1 | S5: =Q5/Q$4 -> 12.37% | T5: 4.75% | U5: =RANK(T5,T$5:T$21) -> 2 | V5: 4068416.06 | W5: 3997487.17 | X5: 120192.63 | Y5: 108325.77
A6: 黄石 | B6: 291341.9627 | C6: =RANK(B6,B$5:B$21) -> 11 | D6: 2.20% | E6: -1.08% | F6: 11 | G6: 283926 | H6: 11 | I6: 2.18% | J6: -0.71% | K6: =RANK(J6,J$5:J$21) -> 11 | L6: 7900.24 | M6: 6 | N6: 3.87% | O6: -10.40% | P6: 16 | Q6: 34657.26 | R6: 11 | S6: 3.78% | T6: -16.41% | U6: 17 | V6: 294518.2641 | W6: 285963.63 | X6: 8817.05 | Y6: 41461.05
A7: 十堰 | B7: 287984.5195 | C7: =RANK(B7,B$5:B$21) -> 12 | D7: 2.18% | E7: 1.10% | F7: 2 | G7: 277443 | H7: 12 | I7: 2.13% | J7: 1.27% | K7: =RANK(J7,J$5:J$21) -> 2 | L7: 10837.21 | M7: 4 | N7: 5.30% | O7: 5.85% | P7: 7 | Q7: 51231.75 | R7: 8 | S7: 5.59% | T7: -11.17% | U7: 15 | V7: 284861.8122 | W7: 273975.27 | X7: 10238.05 | Y7: 57675.14
A8: 宜昌 | B8: 712897.09 | C8: =RANK(B8,B$5:B$21) -> 7 | D8: 5.39% | E8: -1.25% | F8: 12 | G8: 695779 | H8: 7 | I8: 5.34% | J8: -1.28% | K8: =RANK(J8,J$5:J$21) -> 12 | L8: 12711.17 | M8: 2 | N8: 6.22% | O8: 8.69% | P8: 5 | Q8: 107622.25 | R8: 3 | S8: 11.74% | T8: -4.24% | U8: 11 | V8: 721900.5294 | W8: 704814.31 | X8: 11694.39 | Y8: 112390.23
A9: 襄阳 | B9: 3083776.012 | C9: =RANK(B9,B$5:B$21) -> 2 | D9: 23.30% | E9: -1.74% | F9: 14 | G9: 3067096 | H9: 2 | I9: 23.52% | J9: -1.74% | K9: =RANK(J9,J$5:J$21) -> 14 | L9: 11459.51 | M9: 3 | N9: 5.61% | O9: -5.59% | P9: 14 | Q9: 109502.09 | R9: 2 | S9: 11.94% | T9: -0.40% | U9: 6 | V9: 3138355.615 | W9: 3121292.42 | X9: 12138.32 | Y9: 109940.34
A10: 鄂州 | B10: 91176.63646 | C10: =RANK(B10,B$5:B$21) -> 16 | D10: 0.69% | E10: -5.72% | F10: 17 | G10: 88654 | H10: 16 | I10: 0.68% | J10: -5.73% | K10: =RANK(J10,J$5:J$21) -> 17 | L10: 1854.99 | M10: 13 | N10: 0.91% | O10: -9.37% | P10: 15 | Q10: 15951.09 | R10: 14 | S10: 1.74% | T10: -3.45% | U10: 9 | V10: 96713.35343 | W10: 94037.85 | X10: 2046.79 | Y10: 16521.04
A11: 荆门 | B11: 770427.3823 | C11: =RANK(B11,B$5:B$21) -> 5 | D11: 5.82% | E11: 0.19% | F11: 7 | G11: 765294 | H11: 4 | I11: 5.87% | J11: 0.24% | K11: =RANK(J11,J$5:J$21) -> 7 | L11: 5688.25 | M11: 8 | N11: 2.78% | O11: 1.01% | P11: 8 | Q11: 22897.28 | R11: 12 | S11: 2.50% | T11: -14.88% | U11: 16 | V11: 768980.9151 | W11: 763475.25 | X11: 5631.51 | Y11: 26899.05
A12: 孝感 | B12: 301769.6311 | C12: =RANK(B12,B$5:B$21) -> 10 | D12: 2.28% | E12: -2.12% | F12: 16 | G12: 294583 | H12: 10 | I12: 2.26% | J12: -2.31% | K12: =RANK(J12,J$5:J$21) -> 16 | L12: 4788.64 | M12: 11 | N12: 2.34% | O12: 16.87% | P12: 3 | Q12: 47925.07 | R12: 9 | S12: 5.23% | T12: 1.36% | U12: 3 | V12: 308318.6135 | W12: 301541.80 | X12: 4097.52 | Y12: 47280.50
A13: 荆州 | B13: 990666.1663 | C13: =RANK(B13,B$5:B$21) -> 3 | D13: 7.49% | E13: 1.63% | F13: 1 | G13: 978896 | H13: 3 | I13: 7.51% | J13: 1.70% | K13: =RANK(J13,J$5:J$21) -> 1 | L13: 9677.58 | M13: 5 | N13: 4.74% | O13: -1.36% | P13: 11 | Q13: 69310.90 | R13: 6 | S13: 7.56% | T13: -5.96% | U13: 12 | V13: 974790.7202 | W13: 962514.88 | X13: 9811.21 | Y13: 73702.28
A14: 黄冈 | B14: 773747.7903 | C14: =RANK(B14,B$5:B$21) -> 4 | D14: 5.85% | E14: 0.92% | F14: 3 | G14: 761974 | H14: 5 | I14: 5.84% | J14: 0.92% | K14: =RANK(J14,J$5:J$21) -> 3 | L14: 5177.90 | M14: 9 | N14: 2.53% | O14: -2.00% | P14: 12 | Q14: 91847.41 | R14: 5 | S14: 10.02% | T14: 1.30% | U14: 4 | V14: 766719.1133 | W14: 755010.75 | X14: 5283.82 | Y14: 90664.49
A15: 咸宁 | B15: 327103.0913 | C15: =RANK(B15,B$5:B$21) -> 9 | D15: 2.47% | E15: 0.36% | F15: 6 | G15: 317779 | H15: 9 | I15: 2.44% | J15: 0.56% | K15: =RANK(J15,J$5:J$21) -> 5 | L15: 5023.05 | M15: 10 | N15: 2.46% | O15: 0.34% | P15: 9 | Q15: 68126.60 | R15: 7 | S15: 7.43% | T15: -8.02% | U15: 13 | V15: 325921.796 | W15: 316012.00 | X15: 5005.96 | Y15: 74068.13
A16: 随州 | B16: 728262.5886 | C16: =RANK(B16,B$5:B$21) -> 6 | D16: 5.50% | E16: 0.61% | F16: 4 | G16: 722643 | H16: 6 | I16: 5.54% | J16: 0.62% | K16: =RANK(J16,J$5:J$21) -> 4 | L16: 2309.54 | M16: 12 | N16: 1.13% | O16: 19.81% | P16: 2 | Q16: 44650.56 | R16: 10 | S16: 4.87% | T16: -3.75% | U16: 10 | V16: 723819.7046 | W16: 718216.95 | X16: 1927.66 | Y16: 46389.26
A17: 恩施 | B17: 359482.4837 | C17: =RANK(B17,B$5:B$21) -> 8 | D17: 2.72% | E17: -1.45% | F17: 13 | G17: 346281 | H17: 8 | I17: 2.66% | J17: -1.49% | K17: =RANK(J17,J$5:J$21) -> 13 | L17: 6494.24 | M17: 7 | N17: 3.18% | O17: 7.55% | P17: 6 | Q17: 99547.16 | R17: 4 | S17: 10.86% | T17: -2.78% | U17: 7 | V17: 364769.5176 | W17: 351510.84 | X17: 6038.29 | Y17: 102395.32
A18: 仙桃 | B18: 108166.0591 | C18: =RANK(B18,B$5:B$21) -> 15 | D18: 0.82% | E18: -0.42% | F18: 9 | G18: 106815 | H18: 15 | I18: 0.82% | J18: -0.27% | K18: =RANK(J18,J$5:J$21) -> 8 | L18: 1533.73 | M18: 14 | N18: 0.75% | O18: -12.19% | P18: 17 | Q18: 5841.44 | R18: 16 | S18: 0.64% | T18: -9.31% | U18: 14 | V18: 108617.1404 | W18: 107099.71 | X18: 1746.68 | Y18: 6440.87
A19: 潜江 | B19: 198233.727 | C19: =RANK(B19,B$5:B$21) -> 14 | D19: 1.50% | E19: 0.44% | F19: 5 | G19: 196288 | H19: 14 | I19: 1.51% | J19: 0.44% | K19: =RANK(J19,J$5:J$21) -> 6 | L19: 1137.87 | M19: 15 | N19: 0.56% | O19: 11.44% | P19: 4 | Q19: 13772.14 | R19: 15 | S19: 1.50% | T19: -3.30% | U19: 8 | V19: 197362.2314 | W19: 195427.53 | X19: 1021.10 | Y19: 14241.54
A20: 天门 | B20: 199223.6226 | C20: =RANK(B20,B$5:B$21) -> 13 | D20: 1.51% | E20: -0.38% | F20: 8 | G20: 196857 | H20: 13 | I20: 1.51% | J20: -0.64% | K20: =RANK(J20,J$5:J$21) -> 10 | L20: 1005.93 | M20: 16 | N20: 0.49% | O20: 23.56% | P20: 1 | Q20: 18636.48 | R20: 13 | S20: 2.03% | T20: 29.14% | U20: 1 | V20: 199984.4064 | W20: 198134.26 | X20: 814.15 | Y20: 14430.70
A21: 林区 | B21: 12191.75993 | C21: =RANK(B21,B$5:B$21) -> 17 | D21: 0.09% | E21: -0.61% | F21: 10 | G21: 11918 | H21: 17 | I21: 0.09% | J21: -0.62% | K21: =RANK(J21,J$5:J$21) -> 9 | L21: 134.89 | M21: 17 | N21: 0.07% | O21: 0.27% | P21: 10 | Q21: 2066.40 | R21: 17 | S21: 0.23% | T21: -0.26% | U21: 5 | V21: 12266.42789 | W21: 11991.98 | X21: 134.53 | Y21: 2071.83
G24: 当月+累计
